{"text_format":"1","workbook":"xlsx","n_sheets":3,"sheets":["Fixed Aid","Buoy","Sheet1"],"not_rendered":{"charts":2,"images":0,"macros":1,"external_links":0,"defined_names":2,"comments":0,"pivot_tables":0},"unopened":[],"bounds":{"document_bytes":16777216,"sheet_cells":100000,"rows_first":2000,"rows_last":500,"rows_between":2000,"halvings":0,"cell_chars":16384,"cell_head_chars":4096},"cells_cut":0,"cells_raw":0,"read":"whole","date_system":"1900"}

{"sheet":"Fixed Aid","index":0,"n_rows":374,"n_cols":48,"rows_kept":374,"cut":false,"hidden":false,"merged":[[28,12,29,17],[32,12,32,13],[32,14,32,15],[32,16,32,17],[34,12,34,13],[34,14,34,15],[34,16,34,17],[33,12,33,13],[33,14,33,15],[33,16,33,17],[33,2,33,9],[34,2,34,9],[35,2,35,9],[30,2,31,9],[2,2,2,7],[24,2,24,7],[26,2,26,7],[28,2,28,7],[22,2,22,7],[3,2,3,7]]}
[null,null,null,null,null,null,null,null,null,null,null,null,null,null,null,null,null,null,null,null,null,null,null,null,"FIXED"]
[null,null,null,null,null,null,null,null,null,null,null,null,null,null,null,null,null,null,null,null,null,null,null,null,null,null,null,null,null,null,null,null,null,null,null,null,"1 yard","1 yard",null,null,null,null,"1 yrd","3yrds","2DRMS"]
[null,null,"D7NS 1010                                           IS THIS BEACON IN ITS AP?",null,null,null,null,null,null,null,null,null,null,null,null,null,null,null,null,null,null,null,null,null,null,null,null,null,null,null,null,null,null,null,null,null,{"$f":"AK5/AK22","v":8.2142425988774217E-6},{"$f":"AL5/AL22","v":9.2671460569163507E-6},null,null,null,"Lon",{"$f":"AL3","v":9.2671460569163507E-6},{"$f":"AQ3*3","v":2.7801438170749054E-5},{"$f":"AQ3*AD19","v":5.5602876341498108E-5}]
[null,null,"USE ONLY IF FIX OBTAINED WITH GPS ON THE PILING",null,null,null,null,null,null,null,null,null,null,null,null,null,null,null,null,null,null,null,null,null,null,null,null,null,null,null,null,null,null,null,null,null,null,null,null,null,null,"Lat",{"$f":"AK3","v":8.2142425988774217E-6},{"$f":"AQ4*3","v":2.4642727796632265E-5},{"$f":"AQ4*AD19","v":4.928545559326453E-5}]
[null,null,"LLNR",24885,null,"DATE:",null,"2022-09-05",null,null,null,null,null,null,null,null,null,null,null,null,null,null,null,null,null,null,null,null,null,null,null,null,null,null,null,null,1E-3,1E-3]
[null,null,"FIX",null,null,null,null,null,null,null,null,null,null,null,null,null,null,null,null,null,null,null,null,null,null,null,null,null,null,"Degrees","Radians",null,null,null,null,null,"scaleLat","scaleLong",null,null,null,null,null,"X","Y"]
[null,null,"Latitude",27,"°",34,"'",40,"''","N",null,null,null,null,null,null,null,null,null,null,null,null,null,null,null,"ERROR CALCULATIONS",null,null,"Lat1",{"$f":"D7+F7/60+H7/60/60","v":27.577777777777779},{"$f":"AD7*PI()/180","v":0.48132302260554738},null,null,null,null,null,{"$f":"AD11+AK5","v":27.57877777777778},{"$f":"AD11","v":27.577777777777779},null,null,null,null,"Fix",{"$f":"IF(AB35<>0,0,#N/A)","v":0},{"$f":"IF(AB35<>0,0,#N/A)","v":0}]
[null,null,"Longitude",81,"°",30,"'",15,"''","W",null,null,null,null,null,null,null,null,null,null,null,null,null,null,null,"EPE",2.4022000000000001,null,"Lon1",{"$f":"-(D8+F8/60+H8/60/60)","v":-81.504166666666663},{"$f":"AD8*PI()/180","v":-1.422516062427545},null,null,null,null,null,{"$f":"AD12","v":-81.504166666666663},{"$f":"AD12+AL5","v":-81.503166666666658},null,null,null,null,"AP",{"$f":"IF(AB35<>0,-AD11+AD7,#N/A)","v":0},{"$f":"IF(AB35<>0,-AD12+AD8,#N/A)","v":0}]
[null,null,null,"* Longitude will always assumed to be a negative value for US Coasts in D7",null,null,null,null,null,null,null,null,null,null,null,null,null,null,null,null,null,null,null,null,null,"CPE",2.4022000000000001,null,null,null,null,null,null,null,null,null,{"$f":"AK7*PI()/180","v":0.48134047589806733},{"$f":"AL7*PI()/180","v":0.48132302260554738}]
[null,null,"AP (Assigned Position)",null,null,null,null,null,null,null,null,null,null,null,null,null,null,null,null,null,null,null,null,null,null,"DRMS",2,null,null,null,null,null,null,null,null,null,{"$f":"AK8*PI()/180","v":-1.422516062427545},{"$f":"AL8*PI()/180","v":-1.4224986091350249}]
[null,null,"Latitude",27,"°",34,"'",40,"''","N",null,null,null,null,null,null,null,null,null,null,null,null,null,null,null,"2DRMS",1,null,"Lat1",{"$f":"D11+F11/60+H11/60/60","v":27.577777777777779},{"$f":"AD11*PI()/180","v":0.48132302260554738},null,null,null,null,null,{"$f":"AD11","v":27.577777777777779},{"$f":"AD11","v":27.577777777777779}]
[null,null,"Longitude",81,"°",30,"'",15,"''","W",null,null,null,null,null,null,null,null,null,null,null,null,null,null,null,"R95",1.1555,null,"Lon1",{"$f":"-(D12+F12/60+H12/60/60)","v":-81.504166666666663},{"$f":"AD12*PI()/180","v":-1.422516062427545},null,null,null,null,null,{"$f":"AD12","v":-81.504166666666663},{"$f":"AD12","v":-81.504166666666663}]
[null,null,null,"* Longitude will always assumed to be a negative value for US Coasts in D7",null,null,null,null,null,null,null,null,null,null,null,null,null,null,null,null,null,null,null,null,null,"R99.7",0.89280000000000004,null,null,{"$f":"ABS(AD7-AD11)","v":0},null,null,null,null,null,null,{"$f":"AK11*PI()/180","v":0.48132302260554738},{"$f":"AL11*PI()/180","v":0.48132302260554738}]
[null,null,"GPS Error","Select Type",null,"Error Value",null,"Select Unit",null,null,null,null,null,null,null,null,null,null,null,null,null,null,null,null,null,"feet",29.527200000000001,1,null,{"$f":"ABS(AD8-AD12)","v":0},null,null,null,null,null,null,{"$f":"AK12*PI()/180","v":-1.422516062427545},{"$f":"AL12*PI()/180","v":-1.422516062427545},null,null,null,null,null,"3 yard Radius",null,null,"2DRMS"]
[null,null,null,"2DRMS",null,18,null,"feet",null,null,null,null,null,null,null,null,null,null,null,null,null,null,null,null,null,"yards",9.8000000000000007,3,null,null,null,null,null,null,null,null,3443.89849,3443.89849,null,null,null,0,{"$f":"AP15*PI()/180","v":0},{"$f":"$AR$7+$AR$4*SIN(AQ15)","v":0},{"$f":"$AS$7+$AR$3*COS(AQ15)","v":2.7801438170749054E-5},null,{"$f":"$AR$7+$AS$4*SIN(AQ15)","v":0},{"$f":"$AS$7+$AS$3*COS(AQ15)","v":5.5602876341498108E-5}]
[null,null,null,null,null,null,null,null,null,null,null,null,null,null,null,null,null,null,null,null,null,null,null,null,null,"meters",9,{"$f":"AA15/AA16*3","v":3.2666666666666671},null,null,null,null,null,null,null,null,{"$f":"AK13-AK9","v":-1.7453292519953312E-5},{"$f":"AL13-AL9","v":0},null,null,null,1,1.7453292519943295E-2,4.3007490123017027E-7,2.7797203877056359E-5,null,8.6014980246034055E-7,5.5594407754112718E-5]
[null,null,null,null,null,null,null,null,null,null,null,null,null,null,null,null,null,null,null,null,null,null,null,null,null,null,"2DMRS",null,"Maxiumum 2DRMS",{"$f":"9*3.2808","v":29.527200000000001},"ft",null,null,null,null,null,{"$f":"AK14-AK10","v":0},{"$f":"AL14-AL10","v":-1.7453292520119845E-5},null,null,null,2,3.4906585039886591E-2,8.6001879747919674E-7,2.7784502285785152E-5,null,1.7200375949583935E-6,5.5569004571570305E-5]
[null,null,{"$f":"IF('Fixed Aid'!$AB$35>0,\"Distance from Fix to AP\",\"\")","v":"Distance from Fix to AP"},{"$f":"IF('Fixed Aid'!$AB$35>0,TEXT('Fixed Aid'!AA23,\"0.00\"& \" ft\"),\"\")","v":"0.00 ft"},null,{"$f":"IF('Fixed Aid'!$AB$35>0,\"=   \"&TEXT('Fixed Aid'!AA24,\"0.00\")&\" yd\",\"\")","v":"=   0.00 yd"},null,null,null,null,null,null,null,null,null,null,null,null,null,null,null,null,null,null,null,null,{"$f":"VLOOKUP(D15,'Fixed Aid'!$Z$8:$AA$13,2,FALSE)*F15","v":18},{"$f":"H15","v":"feet"},null,null,null,null,null,null,null,null,{"$f":" (SIN($AK$16/2))^2+COS($AK$9)*COS($AK$13)*(SIN($AK$17/2))^2","v":7.6154354944831399E-11},{"$f":" (SIN($AL$16/2))^2+COS($AL$9)*COS($AL$13)*(SIN($AL$17/2))^2","v":5.9832586641043709E-11},null,null,null,3,5.2359877559829883E-2,1.2897007236713218E-6,2.7763337265963179E-5,null,2.5794014473426436E-6,5.5526674531926357E-5]
[null,null,null,null,null,null,null,null,null,null,null,null,null,null,null,null,null,null,null,null,null,null,null,null,null,null,{"$f":"VLOOKUP(D15,'Fixed Aid'!$Z$8:$AA$13,2,FALSE)*F15*VLOOKUP(H15,'Fixed Aid'!$Z$14:$AB$16,3,FALSE)","v":18},"feet",null,{"$f":"IF('Fixed Aid'!AA19<>0,'Fixed Aid'!AA19/3,\"\")","v":6},"yards",null,null,null,null,null,{"$f":"2*ATAN2(SQRT(1-$AK$18),SQRT($AK$18))","v":1.7453292519953312E-5},{"$f":"2*ATAN2(SQRT(1-$AL$18),SQRT($AL$18))","v":1.5470305315957669E-5},null,null,null,4,6.9813170079773182E-2,1.7189897945294053E-6,2.7733715264660502E-5,null,3.4379795890588107E-6,5.5467430529321005E-5]
[null,null,{"$f":"IF('Fixed Aid'!$AB$35>0,\"Bearing from Fix to AP\",\"\")","v":"Bearing from Fix to AP"},{"$f":"IF('Fixed Aid'!$AB$35>0,'Fixed Aid'!AA26,\"\")","v":"N/A"},{"$f":"IF(AND('Fixed Aid'!$AB$35>0,NOT(ISERROR(AD31))),\"°T\",\"\")","v":""},null,null,null,null,null,null,null,null,null,null,null,null,null,null,null,null,null,null,null,null,null,null,null,null,null,null,null,null,null,null,null,null,null,null,null,null,5,8.7266462599716474E-2,2.1477552444438468E-6,2.7695645305025684E-5,null,4.2955104888876936E-6,5.5391290610051369E-5]
[null,null,null,null,null,null,null,null,null,null,null,null,null,null,null,null,null,null,null,null,null,null,null,null,"Restriction to US Northern West Coast",null,null,null,null,null,null,null,null,null,null,null,{"$f":"AK19*AK15","v":6.0107367754995505E-2},{"$f":"AL19*AL15","v":5.327816111746559E-2},null,null,null,6,0.10471975511965977,2.5758664673050587E-6,2.7649138983537209E-5,null,5.1517329346101174E-6,5.5298277967074418E-5]
[null,null,{"$f":"IF('Fixed Aid'!$AB$35>0,\"2DRMS\",\"\")","v":"2DRMS"},{"$f":"IF('Fixed Aid'!$AB$35>0,TEXT('Fixed Aid'!AA19,\"0.00\"& \" ft\"),\"\")","v":"18.00 ft"},null,{"$f":"IF(AB35<>0,\"=   \"&TEXT(AA19/3,\"0.00\")&\" yd\",\"\")","v":"=   6.00 yd"},null,null,null,null,null,null,null,null,null,null,null,null,null,null,null,null,null,null,null,null,null,null,null,null,null,null,null,null,null,null,{"$f":"AK21*6076.11549/3","v":121.73976942641825},{"$f":"AL21*6076.11549/3","v":107.90808668151612},null,null,null,7,0.12217304763960307,3.0031930562873505E-6,2.7594210466471129E-5,null,6.0063861125747011E-6,5.5188420932942257E-5]
[null,null,{"$f":"IF(IFERROR(AA19>AD17,0),\"2DRMS EXCEEDS MAX 29.5ft - CANNOT USE THE FIX\",\"\")","v":""},null,null,null,null,null,null,null,null,null,null,null,null,null,null,null,null,null,null,null,null,null,null,null,{"$f":"IFERROR($AD$32*6076.11549,\"\")","v":0},null,"r",3443.89849,"nm",null,null,null,null,null,null,null,null,null,null,8,0.13962634015954636,3.4296048435721132E-6,2.7530876485585844E-5,null,6.8592096871442264E-6,5.5061752971171688E-5]
[null,null,null,null,null,null,null,null,null,null,null,null,null,null,null,null,null,null,null,null,null,null,null,null,null,null,{"$f":"AA23/3","v":0},null,null,null,null,null,null,null,null,null,null,null,null,null,null,9,0.15707963267948966,3.8549719399981956E-6,2.7459156333025456E-5,null,7.7099438799963912E-6,5.4918312666050912E-5]
[null,null,{"$f":"IF($AC$36=1,$AC$38,IF($AC$36=2,$AC$37,\"\"))","v":"Distance from Fix to AP less than 3 yards"},null,null,null,null,null,null,{"$f":"IF($AB$34,'Fixed Aid'!AC36,\"\")","v":1},null,null,null,null,null,null,null,null,null,null,null,null,null,null,null,null,"AC19",null,null,null,null,null,null,null,null,null,null,null,null,null,null,10,0.17453292519943295,4.2791647746274023E-6,2.7379071855443206E-5,null,8.5583295492548047E-6,5.4758143710886412E-5]
[null,null,null,null,null,null,null,null,null,null,null,null,null,null,null,null,null,null,null,null,null,null,null,null,null,null,{"$f":"IFERROR(AD31*180/PI(),\"N/A\")","v":"N/A"},null,"dLat",{"$f":"AE11-AE7","v":0},null,null,null,null,null,null,null,null,null,null,null,11,0.19198621771937624,4.7020541342130577E-6,2.7290647447346768E-5,null,9.4041082684261154E-6,5.4581294894693535E-5]
[null,null,{"$f":"IF($AC$44=2,$AC$45,IF($AC$44=1,$AC$46,\"\"))","v":"AP is inside the 2DRMS circle"},null,null,null,null,null,null,{"$f":"IF($AB$34,'Fixed Aid'!AC44,\"\")","v":1},null,null,null,null,null,null,null,null,null,null,null,null,null,null,null,null,null,null,"dLon",{"$f":"AE12-AE8","v":0},null,null,null,null,null,null,null,null,null,null,null,12,0.20943951023931953,5.1235112025596109E-6,2.719391004366743E-5,null,1.0247022405119222E-5,5.4387820087334859E-5]
[null,null,null,null,null,null,null,null,null,null,null,null,null,null,null,null,null,null,null,null,null,null,null,null,null,null,null,null,"a",{"$f":" (SIN($AD$26/2))^2+COS($AE$7)*COS($AE$11)*(SIN($AD$27/2))^2","v":0},null,null,null,null,null,null,null,null,null,null,null,13,0.22689280275926285,5.5434075997612974E-6,2.7088889111555466E-5,null,1.1086815199522595E-5,5.4177778223110933E-5]
[null,null,{"$f":"IF(OR(AC48=2,AC48=3),AC49,IF(AC48=4,AC50,\"\"))","v":"AID IS IN AP"},null,null,null,null,null,null,{"$f":"IF($AB$34,'Fixed Aid'!AC48,\"\")","v":2},null,null,null,null,null,null,null,null,null,null,null,null,null,null,null,null,null,null,"c",{"$f":"2*ATAN2(SQRT(1-$AD$28),SQRT($AD$28))","v":0},null,null,null,null,null,null,null,null,null,null,null,14,0.24434609527920614,5.9616154213079004E-6,2.6975616641404163E-5,null,1.1923230842615801E-5,5.3951233282808326E-5]
[null,null,null,null,null,null,null,null,null,null,null,null,null,null,null,null,null,null,null,null,null,null,null,null,null,null,null,null,null,null,null,null,null,null,null,null,null,null,null,null,null,15,0.26179938779914941,6.3780072770457074E-6,2.6854127137105223E-5,null,1.2756014554091415E-5,5.3708254274210447E-5]
[null,null,"If AP is outside the 2DRMS circle and MPP to AP > 3 yards:    Beacon is NOT IN AP",null,null,null,null,null,null,null,null,null,null,null,null,null,null,null,null,null,null,null,null,null,null,null,null,null,"Bearing",{"$f":"MOD(ATAN2((COS($AE$7)*SIN($AE$11))-(SIN($AE$7)*COS($AE$11)*COS($AE$12-$AE$8)), SIN($AE$12-$AE$8)*COS($AE$11)),2*PI())","v":{"$error":"#DIV/0!"}},null,null,null,null,null,null,null,null,null,null,null,16,0.27925268031909273,6.7924563299817832E-6,2.6724457605538549E-5,null,1.3584912659963566E-5,5.3448915211077097E-5]
[null,null,null,null,null,null,null,null,null,null,null,null,"Quick conversion tool:",null,null,null,null,null,null,null,null,null,null,null,null,null,null,null,null,{"$f":"AD29*AD23","v":0},"nm",null,null,null,null,null,null,null,null,null,null,17,0.29670597283903605,7.2048363349197464E-6,2.6586647545299594E-5,null,1.4409672669839493E-5,5.3173295090599187E-5]
[null,null,null,null,null,null,null,null,null,null,null,null,"Decimal",null,27.744122445999999,null,82.6263395,null,null,null,null,null,null,null,null,null,null,null,null,null,null,null,null,null,null,null,null,null,null,null,null,18,0.31415926535897931,7.6150216769152727E-6,2.6440738934667701E-5,null,1.5230043353830545E-5,5.2881477869335402E-5]
[null,null,"District 7 recommends that you save this file as a pdf and include it with Form 7054.",null,null,null,null,null,null,null,null,null,"DM",null,{"$f":"TEXT(O35,\"[hh]° mm\") & TEXT((O35*24*60-TRUNC(O35*24*60)),\".0000'\")","v":"27° 44.6473'"},null,{"$f":"TEXT(Q35,\"[hh]° mm\") & TEXT((Q35*24*60-TRUNC(Q35*24*60)),\".0000'\")","v":"82° 37.5804'"},null,null,null,null,null,null,null,null,null,null,{"$f":"LEN(C23)=0","v":true},null,null,null,null,null,null,null,null,null,null,null,null,null,19,0.33161255787892258,8.0228874095396407E-6,2.6286776218819122E-5,null,1.6045774819079281E-5,5.2573552437638244E-5]
[null,null,null,null,null,null,null,null,null,null,null,null,"DMS",null,{"$f":"ABS(O33)/24","v":1.1560051019166666},null,{"$f":"ABS(Q33/24)","v":3.4427641458333333},null,null,null,null,null,null,null,null,null,null,{"$f":"IF(AND(AC35,AD35),1,0)","v":1},{"$f":"COUNTA(D7,D8,F7,F8,H7,H8,F11,F12,H11,H12,D11,D12,F15,D15,H15)=15","v":true},{"$f":"NOT(ISERROR(SUM(AD7:AD8,AD11:AD12)))","v":true},null,null,null,null,null,null,null,null,null,null,null,20,0.3490658503988659,8.4283092929396074E-6,2.6124806296288572E-5,null,1.6856618585879215E-5,5.2249612592577143E-5]
[null,null,null,null,null,null,null,null,null,null,null,null,null,null,null,null,null,null,null,null,null,null,null,null,null,null,"AE31",null,{"$f":"IF(AND($AB$35,$AB$34),AF36,\"\")","v":1},null,null,{"$f":"IF($AA$24>=3,2,1)","v":1},null,null,null,null,null,null,null,null,null,21,0.36651914291880922,8.8311638316820792E-6,2.5954878504683485E-5,null,1.7662327663364158E-5,5.1909757009366969E-5]
[null,null,"U.S.C.G. AUXILIARY SEVENTH DISTRICT NAVIGATION SYSTEMS",null,null,null,null,null,null,null,null,null,null,null,null,null,null,null,null,null,null,null,null,null,null,null,32,2,"Distance from Fix to AP exceeds 3 yards",null,null,null,null,null,null,null,null,null,null,null,null,22,0.38397243543875248,9.2313283123720163E-6,2.5777044605655325E-5,null,1.8462656624744033E-5,5.1554089211310649E-5]
[null,null,"D7NS 1010    SEPTEMBER 12, 2022",null,null,null,null,null,null,null,null,null,null,null,null,null,null,null,null,null,null,null,null,null,null,null,33,1,"Distance from Fix to AP less than 3 yards",null,null,null,null,null,null,null,null,null,null,null,null,23,0.40142572795869574,9.6286808410321187E-6,2.5591358769132441E-5,null,1.9257361682064237E-5,5.1182717538264881E-5]
[null,null,null,null,null,null,null,null,null,null,null,null,null,null,null,null,null,null,null,null,null,null,null,null,null,null,null,null,null,null,null,null,null,null,null,null,null,null,null,null,null,24,0.41887902047863906,1.0023100380232916E-5,2.5397877556819415E-5,null,2.0046200760465832E-5,5.0795755113638831E-5]
[null,null,null,null,null,null,null,null,null,null,null,null,null,null,null,null,null,null,null,null,null,null,null,null,null,null,null,null,null,9,"METERS",null,null,null,null,null,null,null,null,null,null,25,0.43633231299858238,1.0414466785961945E-5,2.5196659904967826E-5,null,2.082893357192389E-5,5.0393319809935651E-5]
[null,null,null,null,null,null,null,null,null,null,null,null,null,null,null,null,null,null,null,null,null,null,null,null,null,null,null,null,null,{"$f":"AD40*3.2808","v":29.527200000000001},null,null,null,null,null,null,null,null,null,null,null,26,0.4537856055185257,1.080266084422076E-5,2.4987767106423653E-5,null,2.1605321688441521E-5,4.9975534212847307E-5]
[null,null,null,null,null,null,null,null,null,null,null,null,null,null,null,null,null,null,null,null,null,null,null,null,null,null,null,null,null,{"$f":"AD41/3","v":9.8423999999999996},null,null,null,null,null,null,null,null,null,null,null,27,0.47123889803846897,1.1187564307338701E-5,2.4771262791956931E-5,null,2.2375128614677402E-5,4.9542525583913862E-5]
[null,null,null,null,null,null,null,null,null,null,null,null,null,null,null,null,null,null,null,null,null,null,null,null,null,null,null,null,null,null,null,null,null,null,null,null,null,null,null,null,null,28,0.48869219055841229,1.1569059929992261E-5,2.4547212910879168E-5,null,2.3138119859984521E-5,4.9094425821758335E-5]
[null,null,null,null,null,null,null,null,null,null,null,null,null,null,null,null,null,null,null,null,null,null,null,null,null,null,"AE39",null,{"$f":"IF(AND($AB$35,$AB$34),AF44,\"\")","v":1},null,null,{"$f":"IF(AA24>AD19,2,1)","v":1},null,null,null,null,null,null,null,null,null,29,0.50614548307835561,1.1947031504919143E-5,2.4315685710954557E-5,null,2.3894063009838285E-5,4.8631371421909114E-5]
[null,null,null,null,null,null,null,null,null,null,null,null,null,null,null,null,null,null,null,null,null,null,null,null,null,null,40,2,"AP is outside the 2DRMS circle",null,null,null,null,null,null,null,null,null,null,null,null,30,0.52359877559829882,1.2321363898316131E-5,2.4076751717611055E-5,null,2.4642727796632262E-5,4.815350343522211E-5]
[null,null,null,null,null,null,null,null,null,null,null,null,null,null,null,null,null,null,null,null,null,null,null,null,null,null,41,1,"AP is inside the 2DRMS circle",null,null,null,null,null,null,null,null,null,null,null,null,31,0.54105206811824214,1.2691943084909963E-5,2.3830483712457639E-5,null,2.5383886169819926E-5,4.7660967424915277E-5]
[null,null,null,null,null,null,null,null,null,null,null,null,null,null,null,null,null,null,null,null,null,null,null,null,null,null,null,null,null,null,null,null,null,null,null,null,null,null,null,null,null,32,0.55850536063818546,1.3058656182690516E-5,2.3576956711114325E-5,null,2.6117312365381032E-5,4.715391342222865E-5]
[null,null,null,null,null,null,null,null,null,null,null,null,null,null,null,null,null,null,null,null,null,null,null,null,null,null,"AE43",null,{"$f":"IF(AND($AB$35,$AB$34),AC44+AC36,\"\")","v":2},null,null,null,null,null,null,null,null,null,null,null,null,33,0.57595865315812877,1.3421391487295781E-5,2.3316247940361701E-5,null,2.6842782974591563E-5,4.6632495880723402E-5]
[null,null,null,null,null,null,null,null,null,null,null,null,null,null,null,null,null,null,null,null,null,null,null,null,null,null,null,"2-3","AID IS IN AP",null,null,null,null,null,null,null,null,null,null,null,null,34,0.59341194567807209,1.3780038506038078E-5,2.3048436814616874E-5,null,2.7560077012076157E-5,4.6096873629233748E-5]
[null,null,null,null,null,null,null,null,null,null,null,null,null,null,null,null,null,null,null,null,null,null,null,null,null,null,null,4,"AID IS NOT IN AP",null,null,null,null,null,null,null,null,null,null,null,null,35,0.6108652381980153,1.4134487991561199E-5,2.2773604911743096E-5,null,2.8268975983122398E-5,4.5547209823486191E-5]
[null,null,null,null,null,null,null,null,null,null,null,null,null,null,null,null,null,null,null,null,null,null,null,null,null,null,null,null,null,null,null,null,null,null,null,null,null,null,null,null,null,36,0.62831853071795862,1.4484631975118237E-5,2.2491835948200336E-5,null,2.8969263950236474E-5,4.4983671896400672E-5]
[null,null,null,null,null,null,null,null,null,null,null,null,null,null,null,null,null,null,null,null,null,null,null,null,null,null,null,null,null,null,null,null,null,null,null,null,null,null,null,null,null,37,0.64577182323790194,1.483036379945987E-5,2.2203215753544446E-5,null,2.9660727598919741E-5,4.4406431507088892E-5]
[null,null,null,null,null,null,null,null,null,null,null,null,null,null,null,null,null,null,null,null,null,null,null,null,null,null,null,null,null,null,null,null,null,null,null,null,null,null,null,null,null,38,0.66322511575784515,1.5171578151323226E-5,2.190783224428265E-5,null,3.0343156302646452E-5,4.38156644885653E-5]
[null,null,null,null,null,null,null,null,null,null,null,null,null,null,null,null,null,null,null,null,null,null,null,null,null,null,null,null,null,null,null,null,null,null,null,null,null,null,null,null,null,39,0.68067840827778847,1.5508171093511315E-5,2.1605775397093305E-5,null,3.101634218702263E-5,4.321155079418661E-5]
[null,null,null,null,null,null,null,null,null,null,null,null,null,null,null,null,null,null,null,null,null,null,null,null,null,null,null,null,null,null,null,null,null,null,null,null,null,null,null,null,null,40,0.69813170079773179,1.5840040096553293E-5,2.1297137221418157E-5,null,3.1680080193106585E-5,4.2594274442836315E-5]
[null,null,null,null,null,null,null,null,null,null,null,null,null,null,null,null,null,null,null,null,null,null,null,null,null,null,null,null,null,null,null,null,null,null,null,null,null,null,null,null,null,41,0.715584993317675,1.6167084069935945E-5,2.0982011731435373E-5,null,3.2334168139871891E-5,4.1964023462870745E-5]
[null,null,null,null,null,null,null,null,null,null,null,null,null,null,null,null,null,null,null,null,null,null,null,null,null,null,null,null,null,null,null,null,null,null,null,null,null,null,null,null,null,42,0.73303828583761843,1.6489203392896839E-5,2.0660494917421873E-5,null,3.2978406785793677E-5,4.1320989834843746E-5]
[null,null,null,null,null,null,null,null,null,null,null,null,null,null,null,null,null,null,null,null,null,null,null,null,null,null,null,null,null,null,null,null,null,null,null,null,null,null,null,null,null,43,0.75049157835756164,1.6806299944769751E-5,2.0332684716513822E-5,null,3.3612599889539501E-5,4.0665369433027644E-5]
[null,null,null,null,null,null,null,null,null,null,null,null,null,null,null,null,null,null,null,null,null,null,null,null,null,null,null,null,null,null,null,null,null,null,null,null,null,null,null,null,null,44,0.76794487087750496,1.7118277134873204E-5,1.999868098287398E-5,null,3.4236554269746408E-5,3.999736196574796E-5]
[null,null,null,null,null,null,null,null,null,null,null,null,null,null,null,null,null,null,null,null,null,null,null,null,null,null,null,null,null,null,null,null,null,null,null,null,null,null,null,null,null,45,0.78539816339744828,1.7425039931932903E-5,1.9658585457275183E-5,null,3.4850079863865806E-5,3.9317170914550365E-5]
[null,null,null,null,null,null,null,null,null,null,null,null,null,null,null,null,null,null,null,null,null,null,null,null,null,null,null,null,null,null,null,null,null,null,null,null,null,null,null,null,null,46,0.80285145591739149,1.7726494893029182E-5,1.9312501736109105E-5,null,3.5452989786058363E-5,3.862500347221821E-5]
[null,null,null,null,null,null,null,null,null,null,null,null,null,null,null,null,null,null,null,null,null,null,null,null,null,null,null,null,null,null,null,null,null,null,null,null,null,null,null,null,null,47,0.82030474843733492,1.802255019206063E-5,1.8960535239829801E-5,null,3.6045100384121261E-5,3.7921070479659603E-5]
[null,null,null,null,null,null,null,null,null,null,null,null,null,null,null,null,null,null,null,null,null,null,null,null,null,null,null,null,null,null,null,null,null,null,null,null,null,null,null,null,null,48,0.83775804095727813,1.8313115647715212E-5,1.8602793180841621E-5,null,3.6626231295430425E-5,3.7205586361683241E-5]
[null,null,null,null,null,null,null,null,null,null,null,null,null,null,null,null,null,null,null,null,null,null,null,null,null,null,null,null,null,null,null,null,null,null,null,null,null,null,null,null,null,49,0.85521133347722145,1.8598102750940372E-5,1.823938453084125E-5,null,3.7196205501880745E-5,3.64787690616825E-5]
[null,null,null,null,null,null,null,null,null,null,null,null,null,null,null,null,null,null,null,null,null,null,null,null,null,null,null,null,null,null,null,null,null,null,null,null,null,null,null,null,null,50,0.87266462599716477,1.8877424691903724E-5,1.7870419987623899E-5,null,3.7754849383807448E-5,3.5740839975247798E-5]
[null,null,null,null,null,null,null,null,null,null,null,null,null,null,null,null,null,null,null,null,null,null,null,null,null,null,null,null,null,null,null,null,null,null,null,null,null,null,null,null,null,51,0.89011791851710798,1.9150996386436199E-5,1.7496011941363673E-5,null,3.8301992772872399E-5,3.4992023882727345E-5]
[null,null,null,null,null,null,null,null,null,null,null,null,null,null,null,null,null,null,null,null,null,null,null,null,null,null,null,null,null,null,null,null,null,null,null,null,null,null,null,null,null,52,0.90757121103705141,1.9418734501949506E-5,1.7116274440378433E-5,null,3.8837469003899012E-5,3.4232548880756865E-5]
[null,null,null,null,null,null,null,null,null,null,null,null,null,null,null,null,null,null,null,null,null,null,null,null,null,null,null,null,null,null,null,null,null,null,null,null,null,null,null,null,null,53,0.92502450355699462,1.968055748282001E-5,1.6731323156389583E-5,null,3.936111496564002E-5,3.3462646312779167E-5]
[null,null,null,null,null,null,null,null,null,null,null,null,null,null,null,null,null,null,null,null,null,null,null,null,null,null,null,null,null,null,null,null,null,null,null,null,null,null,null,null,null,54,0.94247779607693793,1.9936385575231408E-5,1.6341275349287325E-5,null,3.9872771150462816E-5,3.2682550698574649E-5]
[null,null,null,null,null,null,null,null,null,null,null,null,null,null,null,null,null,null,null,null,null,null,null,null,null,null,null,null,null,null,null,null,null,null,null,null,null,null,null,null,null,55,0.95993108859688125,2.0186140851468482E-5,1.594624983141219E-5,null,4.0372281702936964E-5,3.189249966282438E-5]
[null,null,null,null,null,null,null,null,null,null,null,null,null,null,null,null,null,null,null,null,null,null,null,null,null,null,null,null,null,null,null,null,null,null,null,null,null,null,null,null,null,56,0.97738438111682457,2.0429747233654666E-5,1.554636693136361E-5,null,4.0859494467309332E-5,3.1092733862727219E-5]
[null,null,null,null,null,null,null,null,null,null,null,null,null,null,null,null,null,null,null,null,null,null,null,null,null,null,null,null,null,null,null,null,null,null,null,null,null,null,null,null,null,57,0.99483767363676778,2.0667130516926067E-5,1.5141748457346708E-5,null,4.1334261033852134E-5,3.0283496914693415E-5]
[null,null,null,null,null,null,null,null,null,null,null,null,null,null,null,null,null,null,null,null,null,null,null,null,null,null,null,null,null,null,null,null,null,null,null,null,null,null,null,null,null,58,1.0122909661567112,2.0898218392035029E-5,1.4732517660068276E-5,null,4.1796436784070058E-5,2.9465035320136552E-5]
[null,null,null,null,null,null,null,null,null,null,null,null,null,null,null,null,null,null,null,null,null,null,null,null,null,null,null,null,null,null,null,null,null,null,null,null,null,null,null,null,null,59,1.0297442586766543,2.1122940467376189E-5,1.4318799195193496E-5,null,4.2245880934752377E-5,2.8637598390386992E-5]
[null,null,null,null,null,null,null,null,null,null,null,null,null,null,null,null,null,null,null,null,null,null,null,null,null,null,null,null,null,null,null,null,null,null,null,null,null,null,null,null,null,60,1.0471975511965976,2.1341228290428466E-5,1.390071908537453E-5,null,4.2682456580856933E-5,2.7801438170749061E-5]
[null,null,null,null,null,null,null,null,null,null,null,null,null,null,null,null,null,null,null,null,null,null,null,null,null,null,null,null,null,null,null,null,null,null,null,null,null,null,null,null,null,61,1.064650843716541,2.155301536860636E-5,1.347840468186287E-5,null,4.3106030737212719E-5,2.695680936372574E-5]
[null,null,null,null,null,null,null,null,null,null,null,null,null,null,null,null,null,null,null,null,null,null,null,null,null,null,null,null,null,null,null,null,null,null,null,null,null,null,null,null,null,62,1.0821041362364843,2.1758237189514226E-5,1.3051984625716876E-5,null,4.3516474379028451E-5,2.6103969251433753E-5]
[null,null,null,null,null,null,null,null,null,null,null,null,null,null,null,null,null,null,null,null,null,null,null,null,null,null,null,null,null,null,null,null,null,null,null,null,null,null,null,null,null,63,1.0995574287564276,2.1956831240597389E-5,1.2621588808616474E-5,null,4.3913662481194778E-5,2.5243177617232949E-5]
[null,null,null,null,null,null,null,null,null,null,null,null,null,null,null,null,null,null,null,null,null,null,null,null,null,null,null,null,null,null,null,null,null,null,null,null,null,null,null,null,null,64,{"$f":"AP79*PI()/180","v":1.1170107212763709},{"$f":"$AR$7+$AR$4*SIN(AQ79)","v":2.2148737028184071E-5},{"$f":"$AS$7+$AR$3*COS(AQ79)","v":1.2187348333296894E-5},null,{"$f":"$AR$7+$AS$4*SIN(AQ79)","v":4.4297474056368141E-5},{"$f":"$AS$7+$AS$3*COS(AQ79)","v":2.4374696666593789E-5}]
[null,null,null,null,null,null,null,null,null,null,null,null,null,null,null,null,null,null,null,null,null,null,null,null,null,null,null,null,null,null,null,null,null,null,null,null,null,null,null,null,null,65,1.1344640137963142,2.2333896095912328E-5,1.1749395473613496E-5,null,4.4667792191824656E-5,2.3498790947226993E-5]
[null,null,null,null,null,null,null,null,null,null,null,null,null,null,null,null,null,null,null,null,null,null,null,null,null,null,null,null,null,null,null,null,null,null,null,null,null,null,null,null,null,66,1.1519173063162575,2.2512252042536463E-5,1.1307863634249886E-5,null,4.5024504085072926E-5,2.2615727268499773E-5]
[null,null,null,null,null,null,null,null,null,null,null,null,null,null,null,null,null,null,null,null,null,null,null,null,null,null,null,null,null,null,null,null,null,null,null,null,null,null,null,null,null,67,1.1693705988362006,2.2683750539107358E-5,1.0862887310081554E-5,null,4.5367501078214716E-5,2.1725774620163107E-5]
[null,null,null,null,null,null,null,null,null,null,null,null,null,null,null,null,null,null,null,null,null,null,null,null,null,null,null,null,null,null,null,null,null,null,null,null,null,null,null,null,null,68,1.1868238913561442,2.2848339345521622E-5,1.0414602045207406E-5,null,4.5696678691043243E-5,2.0829204090414812E-5]
[null,null,null,null,null,null,null,null,null,null,null,null,null,null,null,null,null,null,null,null,null,null,null,null,null,null,null,null,null,null,null,null,null,null,null,null,null,null,null,null,null,69,1.2042771838760873,2.3005968326434398E-5,9.9631443916617853E-6,null,4.6011936652868795E-5,1.9926288783323571E-5]
[null,null,null,null,null,null,null,null,null,null,null,null,null,null,null,null,null,null,null,null,null,null,null,null,null,null,null,null,null,null,null,null,null,null,null,null,null,null,null,null,null,70,1.2217304763960306,2.3156589466531125E-5,9.5086518678193122E-6,null,4.6313178933062251E-5,1.9017303735638624E-5]
[null,null,null,null,null,null,null,null,null,null,null,null,null,null,null,null,null,null,null,null,null,null,null,null,null,null,null,null,null,null,null,null,null,null,null,null,null,null,null,null,null,71,1.2391837689159739,2.3300156885153428E-5,9.0512629165055209E-6,null,4.6600313770306857E-5,1.8102525833011042E-5]
[null,null,null,null,null,null,null,null,null,null,null,null,null,null,null,null,null,null,null,null,null,null,null,null,null,null,null,null,null,null,null,null,null,null,null,null,null,null,null,null,null,72,1.2566370614359172,2.3436626850274827E-5,8.591116862825809E-6,null,4.6873253700549653E-5,1.7182233725651618E-5]
[null,null,null,null,null,null,null,null,null,null,null,null,null,null,null,null,null,null,null,null,null,null,null,null,null,null,null,null,null,null,null,null,null,null,null,null,null,null,null,null,null,73,1.2740903539558606,2.3565957791821927E-5,8.128353871725665E-6,null,4.7131915583643854E-5,1.625670774345133E-5]
[null,null,null,null,null,null,null,null,null,null,null,null,null,null,null,null,null,null,null,null,null,null,null,null,null,null,null,null,null,null,null,null,null,null,null,null,null,null,null,null,null,74,1.2915436464758039,2.3688110314337083E-5,7.6631149052950594E-6,null,4.7376220628674166E-5,1.5326229810590119E-5]
[null,null,null,null,null,null,null,null,null,null,null,null,null,null,null,null,null,null,null,null,null,null,null,null,null,null,null,null,null,null,null,null,null,null,null,null,null,null,null,null,null,75,1.3089969389957472,2.3803047208978611E-5,7.1955416798300407E-6,null,4.7606094417957222E-5,1.4391083359660081E-5]
[null,null,null,null,null,null,null,null,null,null,null,null,null,null,null,null,null,null,null,null,null,null,null,null,null,null,null,null,null,null,null,null,null,null,null,null,null,null,null,null,null,76,1.3264502315156903,2.391073346485499E-5,6.7257766226645746E-6,null,4.782146692970998E-5,1.3451553245329149E-5]
[null,null,null,null,null,null,null,null,null,null,null,null,null,null,null,null,null,null,null,null,null,null,null,null,null,null,null,null,null,null,null,null,null,null,null,null,null,null,null,null,null,77,1.3439035240356338,2.4011136279689496E-5,6.2539628287857713E-6,null,4.8022272559378992E-5,1.2507925657571543E-5]
[null,null,null,null,null,null,null,null,null,null,null,null,null,null,null,null,null,null,null,null,null,null,null,null,null,null,null,null,null,null,null,null,null,null,null,null,null,null,null,null,null,78,1.3613568165555769,2.410422506981211E-5,5.7802440172458336E-6,null,4.8208450139624221E-5,1.1560488034491667E-5]
[null,null,null,null,null,null,null,null,null,null,null,null,null,null,null,null,null,null,null,null,null,null,null,null,null,null,null,null,null,null,null,null,null,null,null,null,null,null,null,null,null,79,1.3788101090755203,2.4189971479475588E-5,5.3047644873837559E-6,null,4.8379942958951176E-5,1.0609528974767512E-5]
[null,null,null,null,null,null,null,null,null,null,null,null,null,null,null,null,null,null,null,null,null,null,null,null,null,null,null,null,null,null,null,null,null,null,null,null,null,null,null,null,null,80,1.3962634015954636,2.4268349389492902E-5,4.8276690748704125E-6,null,4.8536698778985803E-5,9.6553381497408251E-6]
[null,null,null,null,null,null,null,null,null,null,null,null,null,null,null,null,null,null,null,null,null,null,null,null,null,null,null,null,null,null,null,null,null,null,null,null,null,null,null,null,null,81,1.4137166941154069,2.4339334925193399E-5,4.3491031075901845E-6,null,4.8678669850386798E-5,8.6982062151803691E-6]
[null,null,null,null,null,null,null,null,null,null,null,null,null,null,null,null,null,null,null,null,null,null,null,null,null,null,null,null,null,null,null,null,null,null,null,null,null,null,null,null,null,82,1.43116998663535,2.4402906463695244E-5,3.8692123613726822E-6,null,4.8805812927390488E-5,7.7384247227453644E-6]
[null,null,null,null,null,null,null,null,null,null,null,null,null,null,null,null,null,null,null,null,null,null,null,null,null,null,null,null,null,null,null,null,null,null,null,null,null,null,null,null,null,83,1.4486232791552935,2.4459044640491987E-5,3.3881430155879917E-6,null,4.8918089280983975E-5,6.7762860311759834E-6]
[null,null,null,null,null,null,null,null,null,null,null,null,null,null,null,null,null,null,null,null,null,null,null,null,null,null,null,null,null,null,null,null,null,null,null,null,null,null,null,null,null,84,1.4660765716752369,2.4507732355351155E-5,2.9060416086190811E-6,null,4.901546471070231E-5,5.8120832172381622E-6]
[null,null,null,null,null,null,null,null,null,null,null,null,null,null,null,null,null,null,null,null,null,null,null,null,null,null,null,null,null,null,null,null,null,null,null,null,null,null,null,null,null,85,1.4835298641951802,2.4548954777523146E-5,2.4230549932247278E-6,null,4.9097909555046292E-5,4.8461099864494557E-6]
[null,null,null,null,null,null,null,null,null,null,null,null,null,null,null,null,null,null,null,null,null,null,null,null,null,null,null,null,null,null,null,null,null,null,null,null,null,null,null,null,null,86,1.5009831567151233,2.4582699350258835E-5,1.9393302918067837E-6,null,4.916539870051767E-5,3.8786605836135675E-6]
[null,null,null,null,null,null,null,null,null,null,null,null,null,null,null,null,null,null,null,null,null,null,null,null,null,null,null,null,null,null,null,null,null,null,null,null,null,null,null,null,null,87,1.5184364492350666,2.4608955794634484E-5,1.4550148515952346E-6,null,4.9217911589268968E-5,2.9100297031904693E-6]
[null,null,null,null,null,null,null,null,null,null,null,null,null,null,null,null,null,null,null,null,null,null,null,null,null,null,null,null,null,null,null,null,null,null,null,null,null,null,null,null,null,88,1.5358897417550099,2.462771611268278E-5,9.7025619976484437E-7,null,4.9255432225365561E-5,1.9405123995296887E-6]
[null,null,null,null,null,null,null,null,null,null,null,null,null,null,null,null,null,null,null,null,null,null,null,null,null,null,null,null,null,null,null,null,null,null,null,null,null,null,null,null,null,89,1.5533430342749535,2.4638974589829107E-5,4.8520199849691651E-7,null,4.9277949179658214E-5,9.7040399699383302E-7]
[null,null,null,null,null,null,null,null,null,null,null,null,null,null,null,null,null,null,null,null,null,null,null,null,null,null,null,null,null,null,null,null,null,null,null,null,null,null,null,null,null,90,1.5707963267948966,2.4642727796632265E-5,1.7030444509565369E-21,null,4.928545559326453E-5,3.4060889019130738E-21]
[null,null,null,null,null,null,null,null,null,null,null,null,null,null,null,null,null,null,null,null,null,null,null,null,null,null,null,null,null,null,null,null,null,null,null,null,null,null,null,null,null,91,1.5882496193148399,2.4638974589829107E-5,-4.8520199849691937E-7,null,4.9277949179658214E-5,-9.7040399699383874E-7]
[null,null,null,null,null,null,null,null,null,null,null,null,null,null,null,null,null,null,null,null,null,null,null,null,null,null,null,null,null,null,null,null,null,null,null,null,null,null,null,null,null,92,1.605702911834783,2.462771611268278E-5,-9.7025619976483463E-7,null,4.9255432225365561E-5,-1.9405123995296693E-6]
[null,null,null,null,null,null,null,null,null,null,null,null,null,null,null,null,null,null,null,null,null,null,null,null,null,null,null,null,null,null,null,null,null,null,null,null,null,null,null,null,null,93,1.6231562043547263,2.4608955794634484E-5,-1.4550148515952249E-6,null,4.9217911589268968E-5,-2.9100297031904498E-6]
[null,null,null,null,null,null,null,null,null,null,null,null,null,null,null,null,null,null,null,null,null,null,null,null,null,null,null,null,null,null,null,null,null,null,null,null,null,null,null,null,null,94,1.6406094968746698,2.4582699350258835E-5,-1.9393302918067799E-6,null,4.916539870051767E-5,-3.8786605836135598E-6]
[null,null,null,null,null,null,null,null,null,null,null,null,null,null,null,null,null,null,null,null,null,null,null,null,null,null,null,null,null,null,null,null,null,null,null,null,null,null,null,null,null,95,1.6580627893946132,2.4548954777523146E-5,-2.4230549932247308E-6,null,4.9097909555046292E-5,-4.8461099864494616E-6]
[null,null,null,null,null,null,null,null,null,null,null,null,null,null,null,null,null,null,null,null,null,null,null,null,null,null,null,null,null,null,null,null,null,null,null,null,null,null,null,null,null,96,1.6755160819145563,2.4507732355351155E-5,-2.9060416086190777E-6,null,4.901546471070231E-5,-5.8120832172381554E-6]
[null,null,null,null,null,null,null,null,null,null,null,null,null,null,null,null,null,null,null,null,null,null,null,null,null,null,null,null,null,null,null,null,null,null,null,null,null,null,null,null,null,97,1.6929693744344996,2.4459044640491991E-5,-3.3881430155879883E-6,null,4.8918089280983981E-5,-6.7762860311759767E-6]
[null,null,null,null,null,null,null,null,null,null,null,null,null,null,null,null,null,null,null,null,null,null,null,null,null,null,null,null,null,null,null,null,null,null,null,null,null,null,null,null,null,98,1.7104226669544429,2.4402906463695247E-5,-3.8692123613726729E-6,null,4.8805812927390494E-5,-7.7384247227453458E-6]
[null,null,null,null,null,null,null,null,null,null,null,null,null,null,null,null,null,null,null,null,null,null,null,null,null,null,null,null,null,null,null,null,null,null,null,null,null,null,null,null,null,99,1.7278759594743864,2.4339334925193396E-5,-4.3491031075901879E-6,null,4.8678669850386792E-5,-8.6982062151803759E-6]
[null,null,null,null,null,null,null,null,null,null,null,null,null,null,null,null,null,null,null,null,null,null,null,null,null,null,null,null,null,null,null,null,null,null,null,null,null,null,null,null,null,100,1.7453292519943295,2.4268349389492902E-5,-4.8276690748704092E-6,null,4.8536698778985803E-5,-9.6553381497408183E-6]
[null,null,null,null,null,null,null,null,null,null,null,null,null,null,null,null,null,null,null,null,null,null,null,null,null,null,null,null,null,null,null,null,null,null,null,null,null,null,null,null,null,101,1.7627825445142729,2.4189971479475588E-5,-5.3047644873837526E-6,null,4.8379942958951176E-5,-1.0609528974767505E-5]
[null,null,null,null,null,null,null,null,null,null,null,null,null,null,null,null,null,null,null,null,null,null,null,null,null,null,null,null,null,null,null,null,null,null,null,null,null,null,null,null,null,102,1.780235837034216,2.4104225069812114E-5,-5.7802440172458243E-6,null,4.8208450139624228E-5,-1.1560488034491649E-5]
[null,null,null,null,null,null,null,null,null,null,null,null,null,null,null,null,null,null,null,null,null,null,null,null,null,null,null,null,null,null,null,null,null,null,null,null,null,null,null,null,null,103,1.7976891295541593,2.4011136279689496E-5,-6.2539628287857679E-6,null,4.8022272559378992E-5,-1.2507925657571536E-5]
[null,null,null,null,null,null,null,null,null,null,null,null,null,null,null,null,null,null,null,null,null,null,null,null,null,null,null,null,null,null,null,null,null,null,null,null,null,null,null,null,null,104,1.8151424220741028,2.391073346485499E-5,-6.7257766226645712E-6,null,4.782146692970998E-5,-1.3451553245329142E-5]
[null,null,null,null,null,null,null,null,null,null,null,null,null,null,null,null,null,null,null,null,null,null,null,null,null,null,null,null,null,null,null,null,null,null,null,null,null,null,null,null,null,105,1.8325957145940461,2.3803047208978611E-5,-7.1955416798300441E-6,null,4.7606094417957222E-5,-1.4391083359660088E-5]
[null,null,null,null,null,null,null,null,null,null,null,null,null,null,null,null,null,null,null,null,null,null,null,null,null,null,null,null,null,null,null,null,null,null,null,null,null,null,null,null,null,106,1.8500490071139892,2.3688110314337083E-5,-7.663114905295056E-6,null,4.7376220628674166E-5,-1.5326229810590112E-5]
[null,null,null,null,null,null,null,null,null,null,null,null,null,null,null,null,null,null,null,null,null,null,null,null,null,null,null,null,null,null,null,null,null,null,null,null,null,null,null,null,null,107,1.8675022996339325,2.356595779182193E-5,-8.1283538717256616E-6,null,4.7131915583643861E-5,-1.6256707743451323E-5]
[null,null,null,null,null,null,null,null,null,null,null,null,null,null,null,null,null,null,null,null,null,null,null,null,null,null,null,null,null,null,null,null,null,null,null,null,null,null,null,null,null,108,1.8849555921538759,2.343662685027483E-5,-8.5911168628258073E-6,null,4.687325370054966E-5,-1.7182233725651615E-5]
[null,null,null,null,null,null,null,null,null,null,null,null,null,null,null,null,null,null,null,null,null,null,null,null,null,null,null,null,null,null,null,null,null,null,null,null,null,null,null,null,null,109,1.902408884673819,2.3300156885153432E-5,-9.0512629165055124E-6,null,4.6600313770306864E-5,-1.8102525833011025E-5]
[null,null,null,null,null,null,null,null,null,null,null,null,null,null,null,null,null,null,null,null,null,null,null,null,null,null,null,null,null,null,null,null,null,null,null,null,null,null,null,null,null,110,1.9198621771937625,2.3156589466531129E-5,-9.5086518678193088E-6,null,4.6313178933062257E-5,-1.9017303735638618E-5]
[null,null,null,null,null,null,null,null,null,null,null,null,null,null,null,null,null,null,null,null,null,null,null,null,null,null,null,null,null,null,null,null,null,null,null,null,null,null,null,null,null,111,1.9373154697137058,2.3005968326434398E-5,-9.9631443916617819E-6,null,4.6011936652868795E-5,-1.9926288783323564E-5]
[null,null,null,null,null,null,null,null,null,null,null,null,null,null,null,null,null,null,null,null,null,null,null,null,null,null,null,null,null,null,null,null,null,null,null,null,null,null,null,null,null,112,1.9547687622336491,2.2848339345521622E-5,-1.0414602045207409E-5,null,4.5696678691043243E-5,-2.0829204090414819E-5]
[null,null,null,null,null,null,null,null,null,null,null,null,null,null,null,null,null,null,null,null,null,null,null,null,null,null,null,null,null,null,null,null,null,null,null,null,null,null,null,null,null,113,1.9722220547535922,2.2683750539107361E-5,-1.0862887310081544E-5,null,4.5367501078214722E-5,-2.1725774620163087E-5]
[null,null,null,null,null,null,null,null,null,null,null,null,null,null,null,null,null,null,null,null,null,null,null,null,null,null,null,null,null,null,null,null,null,null,null,null,null,null,null,null,null,114,1.9896753472735356,2.2512252042536467E-5,-1.1307863634249881E-5,null,4.5024504085072933E-5,-2.2615727268499763E-5]
[null,null,null,null,null,null,null,null,null,null,null,null,null,null,null,null,null,null,null,null,null,null,null,null,null,null,null,null,null,null,null,null,null,null,null,null,null,null,null,null,null,115,2.0071286397934789,2.2333896095912331E-5,-1.1749395473613493E-5,null,4.4667792191824662E-5,-2.3498790947226986E-5]
[null,null,null,null,null,null,null,null,null,null,null,null,null,null,null,null,null,null,null,null,null,null,null,null,null,null,null,null,null,null,null,null,null,null,null,null,null,null,null,null,null,116,2.0245819323134224,2.2148737028184067E-5,-1.2187348333296896E-5,null,4.4297474056368135E-5,-2.4374696666593792E-5]
[null,null,null,null,null,null,null,null,null,null,null,null,null,null,null,null,null,null,null,null,null,null,null,null,null,null,null,null,null,null,null,null,null,null,null,null,null,null,null,null,null,117,2.0420352248333655,2.1956831240597392E-5,-1.2621588808616471E-5,null,4.3913662481194784E-5,-2.5243177617232942E-5]
[null,null,null,null,null,null,null,null,null,null,null,null,null,null,null,null,null,null,null,null,null,null,null,null,null,null,null,null,null,null,null,null,null,null,null,null,null,null,null,null,null,118,2.0594885173533086,2.1758237189514232E-5,-1.3051984625716868E-5,null,4.3516474379028465E-5,-2.6103969251433736E-5]
[null,null,null,null,null,null,null,null,null,null,null,null,null,null,null,null,null,null,null,null,null,null,null,null,null,null,null,null,null,null,null,null,null,null,null,null,null,null,null,null,null,119,2.0769418098732522,2.1553015368606363E-5,-1.3478404681862866E-5,null,4.3106030737212726E-5,-2.6956809363725733E-5]
[null,null,null,null,null,null,null,null,null,null,null,null,null,null,null,null,null,null,null,null,null,null,null,null,null,null,null,null,null,null,null,null,null,null,null,null,null,null,null,null,null,120,2.0943951023931953,2.134122829042847E-5,-1.390071908537452E-5,null,4.2682456580856939E-5,-2.780143817074904E-5]
[null,null,null,null,null,null,null,null,null,null,null,null,null,null,null,null,null,null,null,null,null,null,null,null,null,null,null,null,null,null,null,null,null,null,null,null,null,null,null,null,null,121,2.1118483949131388,2.1122940467376192E-5,-1.4318799195193493E-5,null,4.2245880934752384E-5,-2.8637598390386985E-5]
[null,null,null,null,null,null,null,null,null,null,null,null,null,null,null,null,null,null,null,null,null,null,null,null,null,null,null,null,null,null,null,null,null,null,null,null,null,null,null,null,null,122,2.1293016874330819,2.0898218392035032E-5,-1.4732517660068273E-5,null,4.1796436784070065E-5,-2.9465035320136545E-5]
[null,null,null,null,null,null,null,null,null,null,null,null,null,null,null,null,null,null,null,null,null,null,null,null,null,null,null,null,null,null,null,null,null,null,null,null,null,null,null,null,null,123,2.1467549799530254,2.0667130516926067E-5,-1.5141748457346704E-5,null,4.1334261033852134E-5,-3.0283496914693409E-5]
[null,null,null,null,null,null,null,null,null,null,null,null,null,null,null,null,null,null,null,null,null,null,null,null,null,null,null,null,null,null,null,null,null,null,null,null,null,null,null,null,null,124,2.1642082724729685,2.0429747233654666E-5,-1.5546366931363606E-5,null,4.0859494467309332E-5,-3.1092733862727212E-5]
[null,null,null,null,null,null,null,null,null,null,null,null,null,null,null,null,null,null,null,null,null,null,null,null,null,null,null,null,null,null,null,null,null,null,null,null,null,null,null,null,null,125,2.1816615649929116,2.0186140851468489E-5,-1.594624983141218E-5,null,4.0372281702936977E-5,-3.1892499662824359E-5]
[null,null,null,null,null,null,null,null,null,null,null,null,null,null,null,null,null,null,null,null,null,null,null,null,null,null,null,null,null,null,null,null,null,null,null,null,null,null,null,null,null,126,2.1991148575128552,1.9936385575231408E-5,-1.6341275349287321E-5,null,3.9872771150462816E-5,-3.2682550698574642E-5]
[null,null,null,null,null,null,null,null,null,null,null,null,null,null,null,null,null,null,null,null,null,null,null,null,null,null,null,null,null,null,null,null,null,null,null,null,null,null,null,null,null,127,2.2165681500327987,1.9680557482820006E-5,-1.6731323156389583E-5,null,3.9361114965640013E-5,-3.3462646312779167E-5]
[null,null,null,null,null,null,null,null,null,null,null,null,null,null,null,null,null,null,null,null,null,null,null,null,null,null,null,null,null,null,null,null,null,null,null,null,null,null,null,null,null,128,{"$f":"AP143*PI()/180","v":2.2340214425527418},{"$f":"$AR$7+$AR$4*SIN(AQ143)","v":1.9418734501949506E-5},{"$f":"$AS$7+$AR$3*COS(AQ143)","v":-1.7116274440378433E-5},null,{"$f":"$AR$7+$AS$4*SIN(AQ143)","v":3.8837469003899012E-5},{"$f":"$AS$7+$AS$3*COS(AQ143)","v":-3.4232548880756865E-5}]
[null,null,null,null,null,null,null,null,null,null,null,null,null,null,null,null,null,null,null,null,null,null,null,null,null,null,null,null,null,null,null,null,null,null,null,null,null,null,null,null,null,129,2.2514747350726849,1.9150996386436206E-5,-1.7496011941363666E-5,null,3.8301992772872412E-5,-3.4992023882727332E-5]
[null,null,null,null,null,null,null,null,null,null,null,null,null,null,null,null,null,null,null,null,null,null,null,null,null,null,null,null,null,null,null,null,null,null,null,null,null,null,null,null,null,130,2.2689280275926285,1.8877424691903724E-5,-1.7870419987623899E-5,null,3.7754849383807448E-5,-3.5740839975247798E-5]
[null,null,null,null,null,null,null,null,null,null,null,null,null,null,null,null,null,null,null,null,null,null,null,null,null,null,null,null,null,null,null,null,null,null,null,null,null,null,null,null,null,131,2.286381320112572,1.8598102750940366E-5,-1.8239384530841257E-5,null,3.7196205501880731E-5,-3.6478769061682514E-5]
[null,null,null,null,null,null,null,null,null,null,null,null,null,null,null,null,null,null,null,null,null,null,null,null,null,null,null,null,null,null,null,null,null,null,null,null,null,null,null,null,null,132,2.3038346126325151,1.8313115647715216E-5,-1.8602793180841621E-5,null,3.6626231295430431E-5,-3.7205586361683241E-5]
[null,null,null,null,null,null,null,null,null,null,null,null,null,null,null,null,null,null,null,null,null,null,null,null,null,null,null,null,null,null,null,null,null,null,null,null,null,null,null,null,null,133,2.3212879051524582,1.8022550192060634E-5,-1.8960535239829798E-5,null,3.6045100384121268E-5,-3.7921070479659596E-5]
[null,null,null,null,null,null,null,null,null,null,null,null,null,null,null,null,null,null,null,null,null,null,null,null,null,null,null,null,null,null,null,null,null,null,null,null,null,null,null,null,null,134,2.3387411976724013,1.7726494893029188E-5,-1.9312501736109098E-5,null,3.5452989786058377E-5,-3.8625003472218197E-5]
[null,null,null,null,null,null,null,null,null,null,null,null,null,null,null,null,null,null,null,null,null,null,null,null,null,null,null,null,null,null,null,null,null,null,null,null,null,null,null,null,null,135,2.3561944901923448,1.7425039931932906E-5,-1.9658585457275179E-5,null,3.4850079863865812E-5,-3.9317170914550358E-5]
[null,null,null,null,null,null,null,null,null,null,null,null,null,null,null,null,null,null,null,null,null,null,null,null,null,null,null,null,null,null,null,null,null,null,null,null,null,null,null,null,null,136,2.3736477827122884,1.7118277134873204E-5,-1.999868098287398E-5,null,3.4236554269746408E-5,-3.999736196574796E-5]
[null,null,null,null,null,null,null,null,null,null,null,null,null,null,null,null,null,null,null,null,null,null,null,null,null,null,null,null,null,null,null,null,null,null,null,null,null,null,null,null,null,137,2.3911010752322315,1.6806299944769754E-5,-2.0332684716513819E-5,null,3.3612599889539508E-5,-4.0665369433027638E-5]
[null,null,null,null,null,null,null,null,null,null,null,null,null,null,null,null,null,null,null,null,null,null,null,null,null,null,null,null,null,null,null,null,null,null,null,null,null,null,null,null,null,138,2.4085543677521746,1.6489203392896842E-5,-2.0660494917421866E-5,null,3.2978406785793684E-5,-4.1320989834843733E-5]
[null,null,null,null,null,null,null,null,null,null,null,null,null,null,null,null,null,null,null,null,null,null,null,null,null,null,null,null,null,null,null,null,null,null,null,null,null,null,null,null,null,139,2.4260076602721181,1.6167084069935945E-5,-2.0982011731435369E-5,null,3.2334168139871891E-5,-4.1964023462870739E-5]
[null,null,null,null,null,null,null,null,null,null,null,null,null,null,null,null,null,null,null,null,null,null,null,null,null,null,null,null,null,null,null,null,null,null,null,null,null,null,null,null,null,140,2.4434609527920612,1.5840040096553296E-5,-2.1297137221418154E-5,null,3.1680080193106592E-5,-4.2594274442836308E-5]
[null,null,null,null,null,null,null,null,null,null,null,null,null,null,null,null,null,null,null,null,null,null,null,null,null,null,null,null,null,null,null,null,null,null,null,null,null,null,null,null,null,141,2.4609142453120043,1.5508171093511322E-5,-2.1605775397093298E-5,null,3.1016342187022643E-5,-4.3211550794186597E-5]
[null,null,null,null,null,null,null,null,null,null,null,null,null,null,null,null,null,null,null,null,null,null,null,null,null,null,null,null,null,null,null,null,null,null,null,null,null,null,null,null,null,142,2.4783675378319479,1.5171578151323233E-5,-2.1907832244282647E-5,null,3.0343156302646465E-5,-4.3815664488565293E-5]
[null,null,null,null,null,null,null,null,null,null,null,null,null,null,null,null,null,null,null,null,null,null,null,null,null,null,null,null,null,null,null,null,null,null,null,null,null,null,null,null,null,143,2.4958208303518914,1.4830363799459867E-5,-2.2203215753544449E-5,null,2.9660727598919734E-5,-4.4406431507088898E-5]
[null,null,null,null,null,null,null,null,null,null,null,null,null,null,null,null,null,null,null,null,null,null,null,null,null,null,null,null,null,null,null,null,null,null,null,null,null,null,null,null,null,144,2.5132741228718345,1.4484631975118239E-5,-2.2491835948200333E-5,null,2.8969263950236478E-5,-4.4983671896400665E-5]
[null,null,null,null,null,null,null,null,null,null,null,null,null,null,null,null,null,null,null,null,null,null,null,null,null,null,null,null,null,null,null,null,null,null,null,null,null,null,null,null,null,145,2.5307274153917776,1.4134487991561208E-5,-2.2773604911743089E-5,null,2.8268975983122415E-5,-4.5547209823486178E-5]
[null,null,null,null,null,null,null,null,null,null,null,null,null,null,null,null,null,null,null,null,null,null,null,null,null,null,null,null,null,null,null,null,null,null,null,null,null,null,null,null,null,146,2.5481807079117211,1.3780038506038078E-5,-2.3048436814616874E-5,null,2.7560077012076157E-5,-4.6096873629233748E-5]
[null,null,null,null,null,null,null,null,null,null,null,null,null,null,null,null,null,null,null,null,null,null,null,null,null,null,null,null,null,null,null,null,null,null,null,null,null,null,null,null,null,147,2.5656340004316647,1.3421391487295778E-5,-2.3316247940361705E-5,null,2.6842782974591556E-5,-4.6632495880723409E-5]
[null,null,null,null,null,null,null,null,null,null,null,null,null,null,null,null,null,null,null,null,null,null,null,null,null,null,null,null,null,null,null,null,null,null,null,null,null,null,null,null,null,148,2.5830872929516078,1.3058656182690516E-5,-2.3576956711114325E-5,null,2.6117312365381032E-5,-4.715391342222865E-5]
[null,null,null,null,null,null,null,null,null,null,null,null,null,null,null,null,null,null,null,null,null,null,null,null,null,null,null,null,null,null,null,null,null,null,null,null,null,null,null,null,null,149,2.6005405854715509,1.2691943084909968E-5,-2.3830483712457635E-5,null,2.5383886169819936E-5,-4.766096742491527E-5]
[null,null,null,null,null,null,null,null,null,null,null,null,null,null,null,null,null,null,null,null,null,null,null,null,null,null,null,null,null,null,null,null,null,null,null,null,null,null,null,null,null,150,2.6179938779914944,1.2321363898316131E-5,-2.4076751717611055E-5,null,2.4642727796632262E-5,-4.815350343522211E-5]
[null,null,null,null,null,null,null,null,null,null,null,null,null,null,null,null,null,null,null,null,null,null,null,null,null,null,null,null,null,null,null,null,null,null,null,null,null,null,null,null,null,151,2.6354471705114375,1.1947031504919146E-5,-2.4315685710954557E-5,null,2.3894063009838292E-5,-4.8631371421909114E-5]
[null,null,null,null,null,null,null,null,null,null,null,null,null,null,null,null,null,null,null,null,null,null,null,null,null,null,null,null,null,null,null,null,null,null,null,null,null,null,null,null,null,152,2.6529004630313806,1.1569059929992267E-5,-2.4547212910879161E-5,null,2.3138119859984535E-5,-4.9094425821758321E-5]
[null,null,null,null,null,null,null,null,null,null,null,null,null,null,null,null,null,null,null,null,null,null,null,null,null,null,null,null,null,null,null,null,null,null,null,null,null,null,null,null,null,153,2.6703537555513241,1.1187564307338704E-5,-2.4771262791956928E-5,null,2.2375128614677409E-5,-4.9542525583913855E-5]
[null,null,null,null,null,null,null,null,null,null,null,null,null,null,null,null,null,null,null,null,null,null,null,null,null,null,null,null,null,null,null,null,null,null,null,null,null,null,null,null,null,154,2.6878070480712677,1.0802660844220759E-5,-2.4987767106423653E-5,null,2.1605321688441517E-5,-4.9975534212847307E-5]
[null,null,null,null,null,null,null,null,null,null,null,null,null,null,null,null,null,null,null,null,null,null,null,null,null,null,null,null,null,null,null,null,null,null,null,null,null,null,null,null,null,155,2.7052603405912108,1.0414466785961945E-5,-2.5196659904967826E-5,null,2.082893357192389E-5,-5.0393319809935651E-5]
[null,null,null,null,null,null,null,null,null,null,null,null,null,null,null,null,null,null,null,null,null,null,null,null,null,null,null,null,null,null,null,null,null,null,null,null,null,null,null,null,null,156,2.7227136331111539,1.0023100380232923E-5,-2.5397877556819412E-5,null,2.0046200760465846E-5,-5.0795755113638824E-5]
[null,null,null,null,null,null,null,null,null,null,null,null,null,null,null,null,null,null,null,null,null,null,null,null,null,null,null,null,null,null,null,null,null,null,null,null,null,null,null,null,null,157,2.740166925631097,9.6286808410321289E-6,-2.5591358769132434E-5,null,1.9257361682064258E-5,-5.1182717538264867E-5]
[null,null,null,null,null,null,null,null,null,null,null,null,null,null,null,null,null,null,null,null,null,null,null,null,null,null,null,null,null,null,null,null,null,null,null,null,null,null,null,null,null,158,2.7576202181510405,9.2313283123720213E-6,-2.5777044605655321E-5,null,1.8462656624744043E-5,-5.1554089211310642E-5]
[null,null,null,null,null,null,null,null,null,null,null,null,null,null,null,null,null,null,null,null,null,null,null,null,null,null,null,null,null,null,null,null,null,null,null,null,null,null,null,null,null,159,2.7750735106709841,8.8311638316820792E-6,-2.5954878504683485E-5,null,1.7662327663364158E-5,-5.1909757009366969E-5]
[null,null,null,null,null,null,null,null,null,null,null,null,null,null,null,null,null,null,null,null,null,null,null,null,null,null,null,null,null,null,null,null,null,null,null,null,null,null,null,null,null,160,2.7925268031909272,8.4283092929396125E-6,-2.6124806296288568E-5,null,1.6856618585879225E-5,-5.2249612592577136E-5]
[null,null,null,null,null,null,null,null,null,null,null,null,null,null,null,null,null,null,null,null,null,null,null,null,null,null,null,null,null,null,null,null,null,null,null,null,null,null,null,null,null,161,2.8099800957108703,8.0228874095396509E-6,-2.6286776218819119E-5,null,1.6045774819079302E-5,-5.2573552437638237E-5]
[null,null,null,null,null,null,null,null,null,null,null,null,null,null,null,null,null,null,null,null,null,null,null,null,null,null,null,null,null,null,null,null,null,null,null,null,null,null,null,null,null,162,2.8274333882308138,7.6150216769152752E-6,-2.6440738934667701E-5,null,1.523004335383055E-5,-5.2881477869335402E-5]
[null,null,null,null,null,null,null,null,null,null,null,null,null,null,null,null,null,null,null,null,null,null,null,null,null,null,null,null,null,null,null,null,null,null,null,null,null,null,null,null,null,163,2.8448866807507569,7.2048363349197532E-6,-2.6586647545299594E-5,null,1.4409672669839506E-5,-5.3173295090599187E-5]
[null,null,null,null,null,null,null,null,null,null,null,null,null,null,null,null,null,null,null,null,null,null,null,null,null,null,null,null,null,null,null,null,null,null,null,null,null,null,null,null,null,164,2.8623399732707,6.7924563299817959E-6,-2.6724457605538542E-5,null,1.3584912659963592E-5,-5.3448915211077084E-5]
[null,null,null,null,null,null,null,null,null,null,null,null,null,null,null,null,null,null,null,null,null,null,null,null,null,null,null,null,null,null,null,null,null,null,null,null,null,null,null,null,null,165,2.8797932657906435,6.378007277045715E-6,-2.685412713710522E-5,null,1.275601455409143E-5,-5.370825427421044E-5]
[null,null,null,null,null,null,null,null,null,null,null,null,null,null,null,null,null,null,null,null,null,null,null,null,null,null,null,null,null,null,null,null,null,null,null,null,null,null,null,null,null,166,2.8972465583105871,5.9616154213079004E-6,-2.6975616641404163E-5,null,1.1923230842615801E-5,-5.3951233282808326E-5]
[null,null,null,null,null,null,null,null,null,null,null,null,null,null,null,null,null,null,null,null,null,null,null,null,null,null,null,null,null,null,null,null,null,null,null,null,null,null,null,null,null,167,2.9146998508305306,5.5434075997612923E-6,-2.7088889111555466E-5,null,1.1086815199522585E-5,-5.4177778223110933E-5]
[null,null,null,null,null,null,null,null,null,null,null,null,null,null,null,null,null,null,null,null,null,null,null,null,null,null,null,null,null,null,null,null,null,null,null,null,null,null,null,null,null,168,2.9321531433504737,5.1235112025596109E-6,-2.719391004366743E-5,null,1.0247022405119222E-5,-5.4387820087334859E-5]
[null,null,null,null,null,null,null,null,null,null,null,null,null,null,null,null,null,null,null,null,null,null,null,null,null,null,null,null,null,null,null,null,null,null,null,null,null,null,null,null,null,169,2.9496064358704168,4.7020541342130619E-6,-2.7290647447346768E-5,null,9.4041082684261239E-6,-5.4581294894693535E-5]
[null,null,null,null,null,null,null,null,null,null,null,null,null,null,null,null,null,null,null,null,null,null,null,null,null,null,null,null,null,null,null,null,null,null,null,null,null,null,null,null,null,170,2.9670597283903604,4.2791647746274006E-6,-2.7379071855443206E-5,null,8.5583295492548013E-6,-5.4758143710886412E-5]
[null,null,null,null,null,null,null,null,null,null,null,null,null,null,null,null,null,null,null,null,null,null,null,null,null,null,null,null,null,null,null,null,null,null,null,null,null,null,null,null,null,171,2.9845130209103035,3.8549719399981982E-6,-2.7459156333025453E-5,null,7.7099438799963963E-6,-5.4918312666050906E-5]
[null,null,null,null,null,null,null,null,null,null,null,null,null,null,null,null,null,null,null,null,null,null,null,null,null,null,null,null,null,null,null,null,null,null,null,null,null,null,null,null,null,172,3.0019663134302466,3.4296048435721208E-6,-2.753087648558584E-5,null,6.8592096871442417E-6,-5.5061752971171681E-5]
[null,null,null,null,null,null,null,null,null,null,null,null,null,null,null,null,null,null,null,null,null,null,null,null,null,null,null,null,null,null,null,null,null,null,null,null,null,null,null,null,null,173,3.0194196059501901,3.0031930562873527E-6,-2.7594210466471129E-5,null,6.0063861125747053E-6,-5.5188420932942257E-5]
[null,null,null,null,null,null,null,null,null,null,null,null,null,null,null,null,null,null,null,null,null,null,null,null,null,null,null,null,null,null,null,null,null,null,null,null,null,null,null,null,null,174,3.0368728984701332,2.5758664673050655E-6,-2.7649138983537209E-5,null,5.1517329346101309E-6,-5.5298277967074418E-5]
[null,null,null,null,null,null,null,null,null,null,null,null,null,null,null,null,null,null,null,null,null,null,null,null,null,null,null,null,null,null,null,null,null,null,null,null,null,null,null,null,null,175,3.0543261909900763,2.1477552444438587E-6,-2.7695645305025684E-5,null,4.2955104888877173E-6,-5.5391290610051369E-5]
[null,null,null,null,null,null,null,null,null,null,null,null,null,null,null,null,null,null,null,null,null,null,null,null,null,null,null,null,null,null,null,null,null,null,null,null,null,null,null,null,null,176,3.0717794835100198,1.7189897945294108E-6,-2.7733715264660502E-5,null,3.4379795890588217E-6,-5.5467430529321005E-5]
[null,null,null,null,null,null,null,null,null,null,null,null,null,null,null,null,null,null,null,null,null,null,null,null,null,null,null,null,null,null,null,null,null,null,null,null,null,null,null,null,null,177,3.0892327760299634,1.2897007236713214E-6,-2.7763337265963179E-5,null,2.5794014473426427E-6,-5.5526674531926357E-5]
[null,null,null,null,null,null,null,null,null,null,null,null,null,null,null,null,null,null,null,null,null,null,null,null,null,null,null,null,null,null,null,null,null,null,null,null,null,null,null,null,null,178,3.1066860685499069,8.6001879747919007E-7,-2.7784502285785152E-5,null,1.7200375949583801E-6,-5.5569004571570305E-5]
[null,null,null,null,null,null,null,null,null,null,null,null,null,null,null,null,null,null,null,null,null,null,null,null,null,null,null,null,null,null,null,null,null,null,null,null,null,null,null,null,null,179,3.12413936106985,4.3007490123016847E-7,-2.7797203877056359E-5,null,8.6014980246033695E-7,-5.5594407754112718E-5]
[null,null,null,null,null,null,null,null,null,null,null,null,null,null,null,null,null,null,null,null,null,null,null,null,null,null,null,null,null,null,null,null,null,null,null,null,null,null,null,null,null,180,3.1415926535897931,3.019099988477772E-21,-2.7801438170749054E-5,null,6.038199976955544E-21,-5.5602876341498108E-5]
[null,null,null,null,null,null,null,null,null,null,null,null,null,null,null,null,null,null,null,null,null,null,null,null,null,null,null,null,null,null,null,null,null,null,null,null,null,null,null,null,null,181,3.1590459461097362,-4.3007490123016239E-7,-2.7797203877056359E-5,null,-8.6014980246032477E-7,-5.5594407754112718E-5]
[null,null,null,null,null,null,null,null,null,null,null,null,null,null,null,null,null,null,null,null,null,null,null,null,null,null,null,null,null,null,null,null,null,null,null,null,null,null,null,null,null,182,3.1764992386296798,-8.6001879747919504E-7,-2.7784502285785152E-5,null,-1.7200375949583901E-6,-5.5569004571570305E-5]
[null,null,null,null,null,null,null,null,null,null,null,null,null,null,null,null,null,null,null,null,null,null,null,null,null,null,null,null,null,null,null,null,null,null,null,null,null,null,null,null,null,183,3.1939525311496229,-1.2897007236713152E-6,-2.7763337265963179E-5,null,-2.5794014473426304E-6,-5.5526674531926357E-5]
[null,null,null,null,null,null,null,null,null,null,null,null,null,null,null,null,null,null,null,null,null,null,null,null,null,null,null,null,null,null,null,null,null,null,null,null,null,null,null,null,null,184,3.211405823669566,-1.7189897945293937E-6,-2.7733715264660506E-5,null,-3.4379795890587874E-6,-5.5467430529321011E-5]
[null,null,null,null,null,null,null,null,null,null,null,null,null,null,null,null,null,null,null,null,null,null,null,null,null,null,null,null,null,null,null,null,null,null,null,null,null,null,null,null,null,185,3.2288591161895095,-2.1477552444438413E-6,-2.7695645305025684E-5,null,-4.2955104888876826E-6,-5.5391290610051369E-5]
[null,null,null,null,null,null,null,null,null,null,null,null,null,null,null,null,null,null,null,null,null,null,null,null,null,null,null,null,null,null,null,null,null,null,null,null,null,null,null,null,null,186,3.2463124087094526,-2.5758664673050485E-6,-2.7649138983537213E-5,null,-5.1517329346100971E-6,-5.5298277967074425E-5]
[null,null,null,null,null,null,null,null,null,null,null,null,null,null,null,null,null,null,null,null,null,null,null,null,null,null,null,null,null,null,null,null,null,null,null,null,null,null,null,null,null,187,3.2637657012293966,-3.0031930562873573E-6,-2.7594210466471129E-5,null,-6.0063861125747146E-6,-5.5188420932942257E-5]
[null,null,null,null,null,null,null,null,null,null,null,null,null,null,null,null,null,null,null,null,null,null,null,null,null,null,null,null,null,null,null,null,null,null,null,null,null,null,null,null,null,188,3.2812189937493397,-3.4296048435721153E-6,-2.753087648558584E-5,null,-6.8592096871442307E-6,-5.5061752971171681E-5]
[null,null,null,null,null,null,null,null,null,null,null,null,null,null,null,null,null,null,null,null,null,null,null,null,null,null,null,null,null,null,null,null,null,null,null,null,null,null,null,null,null,189,3.2986722862692828,-3.8549719399981922E-6,-2.7459156333025456E-5,null,-7.7099438799963844E-6,-5.4918312666050912E-5]
[null,null,null,null,null,null,null,null,null,null,null,null,null,null,null,null,null,null,null,null,null,null,null,null,null,null,null,null,null,null,null,null,null,null,null,null,null,null,null,null,null,190,3.3161255787892263,-4.2791647746274057E-6,-2.7379071855443206E-5,null,-8.5583295492548115E-6,-5.4758143710886412E-5]
[null,null,null,null,null,null,null,null,null,null,null,null,null,null,null,null,null,null,null,null,null,null,null,null,null,null,null,null,null,null,null,null,null,null,null,null,null,null,null,null,null,191,3.3335788713091694,-4.702054134213056E-6,-2.7290647447346768E-5,null,-9.404108268426112E-6,-5.4581294894693535E-5]
[null,null,null,null,null,null,null,null,null,null,null,null,null,null,null,null,null,null,null,null,null,null,null,null,null,null,null,null,null,null,null,null,null,null,null,null,null,null,null,null,null,192,{"$f":"AP207*PI()/180","v":3.3510321638291125},{"$f":"$AR$7+$AR$4*SIN(AQ207)","v":-5.1235112025596049E-6},{"$f":"$AS$7+$AR$3*COS(AQ207)","v":-2.719391004366743E-5},null,{"$f":"$AR$7+$AS$4*SIN(AQ207)","v":-1.024702240511921E-5},{"$f":"$AS$7+$AS$3*COS(AQ207)","v":-5.4387820087334859E-5}]
[null,null,null,null,null,null,null,null,null,null,null,null,null,null,null,null,null,null,null,null,null,null,null,null,null,null,null,null,null,null,null,null,null,null,null,null,null,null,null,null,null,193,3.3684854563490561,-5.5434075997612966E-6,-2.7088889111555466E-5,null,-1.1086815199522593E-5,-5.4177778223110933E-5]
[null,null,null,null,null,null,null,null,null,null,null,null,null,null,null,null,null,null,null,null,null,null,null,null,null,null,null,null,null,null,null,null,null,null,null,null,null,null,null,null,null,194,3.3859387488689991,-5.9616154213078954E-6,-2.6975616641404163E-5,null,-1.1923230842615791E-5,-5.3951233282808326E-5]
[null,null,null,null,null,null,null,null,null,null,null,null,null,null,null,null,null,null,null,null,null,null,null,null,null,null,null,null,null,null,null,null,null,null,null,null,null,null,null,null,null,195,3.4033920413889422,-6.3780072770456981E-6,-2.6854127137105227E-5,null,-1.2756014554091396E-5,-5.3708254274210453E-5]
[null,null,null,null,null,null,null,null,null,null,null,null,null,null,null,null,null,null,null,null,null,null,null,null,null,null,null,null,null,null,null,null,null,null,null,null,null,null,null,null,null,196,3.4208453339088858,-6.792456329981779E-6,-2.6724457605538549E-5,null,-1.3584912659963558E-5,-5.3448915211077097E-5]
[null,null,null,null,null,null,null,null,null,null,null,null,null,null,null,null,null,null,null,null,null,null,null,null,null,null,null,null,null,null,null,null,null,null,null,null,null,null,null,null,null,197,3.4382986264288289,-7.2048363349197371E-6,-2.6586647545299594E-5,null,-1.4409672669839474E-5,-5.3173295090599187E-5]
[null,null,null,null,null,null,null,null,null,null,null,null,null,null,null,null,null,null,null,null,null,null,null,null,null,null,null,null,null,null,null,null,null,null,null,null,null,null,null,null,null,198,3.4557519189487729,-7.6150216769152811E-6,-2.6440738934667701E-5,null,-1.5230043353830562E-5,-5.2881477869335402E-5]
[null,null,null,null,null,null,null,null,null,null,null,null,null,null,null,null,null,null,null,null,null,null,null,null,null,null,null,null,null,null,null,null,null,null,null,null,null,null,null,null,null,199,3.473205211468716,-8.0228874095396441E-6,-2.6286776218819119E-5,null,-1.6045774819079288E-5,-5.2573552437638237E-5]
[null,null,null,null,null,null,null,null,null,null,null,null,null,null,null,null,null,null,null,null,null,null,null,null,null,null,null,null,null,null,null,null,null,null,null,null,null,null,null,null,null,200,3.4906585039886591,-8.4283092929396057E-6,-2.6124806296288572E-5,null,-1.6856618585879211E-5,-5.2249612592577143E-5]
[null,null,null,null,null,null,null,null,null,null,null,null,null,null,null,null,null,null,null,null,null,null,null,null,null,null,null,null,null,null,null,null,null,null,null,null,null,null,null,null,null,201,3.5081117965086026,-8.8311638316820843E-6,-2.5954878504683485E-5,null,-1.7662327663364169E-5,-5.1909757009366969E-5]
[null,null,null,null,null,null,null,null,null,null,null,null,null,null,null,null,null,null,null,null,null,null,null,null,null,null,null,null,null,null,null,null,null,null,null,null,null,null,null,null,null,202,3.5255650890285457,-9.2313283123720163E-6,-2.5777044605655325E-5,null,-1.8462656624744033E-5,-5.1554089211310649E-5]
[null,null,null,null,null,null,null,null,null,null,null,null,null,null,null,null,null,null,null,null,null,null,null,null,null,null,null,null,null,null,null,null,null,null,null,null,null,null,null,null,null,203,3.5430183815484888,-9.6286808410321137E-6,-2.5591358769132441E-5,null,-1.9257361682064227E-5,-5.1182717538264881E-5]
[null,null,null,null,null,null,null,null,null,null,null,null,null,null,null,null,null,null,null,null,null,null,null,null,null,null,null,null,null,null,null,null,null,null,null,null,null,null,null,null,null,204,3.5604716740684319,-1.0023100380232909E-5,-2.5397877556819422E-5,null,-2.0046200760465819E-5,-5.0795755113638844E-5]
[null,null,null,null,null,null,null,null,null,null,null,null,null,null,null,null,null,null,null,null,null,null,null,null,null,null,null,null,null,null,null,null,null,null,null,null,null,null,null,null,null,205,3.5779249665883754,-1.041446678596194E-5,-2.5196659904967826E-5,null,-2.082893357192388E-5,-5.0393319809935651E-5]
[null,null,null,null,null,null,null,null,null,null,null,null,null,null,null,null,null,null,null,null,null,null,null,null,null,null,null,null,null,null,null,null,null,null,null,null,null,null,null,null,null,206,3.5953782591083185,-1.0802660844220752E-5,-2.4987767106423657E-5,null,-2.1605321688441504E-5,-4.9975534212847314E-5]
[null,null,null,null,null,null,null,null,null,null,null,null,null,null,null,null,null,null,null,null,null,null,null,null,null,null,null,null,null,null,null,null,null,null,null,null,null,null,null,null,null,207,3.6128315516282616,-1.1187564307338689E-5,-2.4771262791956938E-5,null,-2.2375128614677378E-5,-4.9542525583913875E-5]
[null,null,null,null,null,null,null,null,null,null,null,null,null,null,null,null,null,null,null,null,null,null,null,null,null,null,null,null,null,null,null,null,null,null,null,null,null,null,null,null,null,208,3.6302848441482056,-1.1569059929992262E-5,-2.4547212910879164E-5,null,-2.3138119859984525E-5,-4.9094425821758328E-5]
[null,null,null,null,null,null,null,null,null,null,null,null,null,null,null,null,null,null,null,null,null,null,null,null,null,null,null,null,null,null,null,null,null,null,null,null,null,null,null,null,null,209,3.6477381366681487,-1.1947031504919141E-5,-2.4315685710954557E-5,null,-2.3894063009838282E-5,-4.8631371421909114E-5]
[null,null,null,null,null,null,null,null,null,null,null,null,null,null,null,null,null,null,null,null,null,null,null,null,null,null,null,null,null,null,null,null,null,null,null,null,null,null,null,null,null,210,3.6651914291880923,-1.2321363898316136E-5,-2.4076751717611052E-5,null,-2.4642727796632272E-5,-4.8153503435222104E-5]
[null,null,null,null,null,null,null,null,null,null,null,null,null,null,null,null,null,null,null,null,null,null,null,null,null,null,null,null,null,null,null,null,null,null,null,null,null,null,null,null,null,211,3.6826447217080354,-1.2691943084909963E-5,-2.3830483712457639E-5,null,-2.5383886169819926E-5,-4.7660967424915277E-5]
[null,null,null,null,null,null,null,null,null,null,null,null,null,null,null,null,null,null,null,null,null,null,null,null,null,null,null,null,null,null,null,null,null,null,null,null,null,null,null,null,null,212,3.7000980142279785,-1.3058656182690514E-5,-2.3576956711114328E-5,null,-2.6117312365381029E-5,-4.7153913422228656E-5]
[null,null,null,null,null,null,null,null,null,null,null,null,null,null,null,null,null,null,null,null,null,null,null,null,null,null,null,null,null,null,null,null,null,null,null,null,null,null,null,null,null,213,3.717551306747922,-1.3421391487295781E-5,-2.3316247940361701E-5,null,-2.6842782974591563E-5,-4.6632495880723402E-5]
[null,null,null,null,null,null,null,null,null,null,null,null,null,null,null,null,null,null,null,null,null,null,null,null,null,null,null,null,null,null,null,null,null,null,null,null,null,null,null,null,null,214,3.7350045992678651,-1.3780038506038073E-5,-2.3048436814616877E-5,null,-2.7560077012076146E-5,-4.6096873629233755E-5]
[null,null,null,null,null,null,null,null,null,null,null,null,null,null,null,null,null,null,null,null,null,null,null,null,null,null,null,null,null,null,null,null,null,null,null,null,null,null,null,null,null,215,3.7524578917878082,-1.4134487991561194E-5,-2.2773604911743103E-5,null,-2.8268975983122388E-5,-4.5547209823486205E-5]
[null,null,null,null,null,null,null,null,null,null,null,null,null,null,null,null,null,null,null,null,null,null,null,null,null,null,null,null,null,null,null,null,null,null,null,null,null,null,null,null,null,216,3.7699111843077517,-1.4484631975118234E-5,-2.2491835948200339E-5,null,-2.8969263950236468E-5,-4.4983671896400679E-5]
[null,null,null,null,null,null,null,null,null,null,null,null,null,null,null,null,null,null,null,null,null,null,null,null,null,null,null,null,null,null,null,null,null,null,null,null,null,null,null,null,null,217,3.7873644768276948,-1.4830363799459865E-5,-2.2203215753544453E-5,null,-2.966072759891973E-5,-4.4406431507088905E-5]
[null,null,null,null,null,null,null,null,null,null,null,null,null,null,null,null,null,null,null,null,null,null,null,null,null,null,null,null,null,null,null,null,null,null,null,null,null,null,null,null,null,218,3.8048177693476379,-1.5171578151323217E-5,-2.1907832244282657E-5,null,-3.0343156302646435E-5,-4.3815664488565314E-5]
[null,null,null,null,null,null,null,null,null,null,null,null,null,null,null,null,null,null,null,null,null,null,null,null,null,null,null,null,null,null,null,null,null,null,null,null,null,null,null,null,null,219,3.8222710618675819,-1.5508171093511322E-5,-2.1605775397093302E-5,null,-3.1016342187022643E-5,-4.3211550794186604E-5]
[null,null,null,null,null,null,null,null,null,null,null,null,null,null,null,null,null,null,null,null,null,null,null,null,null,null,null,null,null,null,null,null,null,null,null,null,null,null,null,null,null,220,3.839724354387525,-1.5840040096553293E-5,-2.1297137221418157E-5,null,-3.1680080193106585E-5,-4.2594274442836315E-5]
[null,null,null,null,null,null,null,null,null,null,null,null,null,null,null,null,null,null,null,null,null,null,null,null,null,null,null,null,null,null,null,null,null,null,null,null,null,null,null,null,null,221,3.8571776469074686,-1.6167084069935949E-5,-2.0982011731435366E-5,null,-3.2334168139871898E-5,-4.1964023462870732E-5]
[null,null,null,null,null,null,null,null,null,null,null,null,null,null,null,null,null,null,null,null,null,null,null,null,null,null,null,null,null,null,null,null,null,null,null,null,null,null,null,null,null,222,3.8746309394274117,-1.6489203392896839E-5,-2.0660494917421873E-5,null,-3.2978406785793677E-5,-4.1320989834843746E-5]
[null,null,null,null,null,null,null,null,null,null,null,null,null,null,null,null,null,null,null,null,null,null,null,null,null,null,null,null,null,null,null,null,null,null,null,null,null,null,null,null,null,223,3.8920842319473548,-1.6806299944769747E-5,-2.0332684716513822E-5,null,-3.3612599889539495E-5,-4.0665369433027644E-5]
[null,null,null,null,null,null,null,null,null,null,null,null,null,null,null,null,null,null,null,null,null,null,null,null,null,null,null,null,null,null,null,null,null,null,null,null,null,null,null,null,null,224,3.9095375244672983,-1.7118277134873207E-5,-1.9998680982873977E-5,null,-3.4236554269746415E-5,-3.9997361965747953E-5]
[null,null,null,null,null,null,null,null,null,null,null,null,null,null,null,null,null,null,null,null,null,null,null,null,null,null,null,null,null,null,null,null,null,null,null,null,null,null,null,null,null,225,3.9269908169872414,-1.7425039931932903E-5,-1.9658585457275186E-5,null,-3.4850079863865806E-5,-3.9317170914550372E-5]
[null,null,null,null,null,null,null,null,null,null,null,null,null,null,null,null,null,null,null,null,null,null,null,null,null,null,null,null,null,null,null,null,null,null,null,null,null,null,null,null,null,226,3.9444441095071845,-1.7726494893029175E-5,-1.9312501736109112E-5,null,-3.545298978605835E-5,-3.8625003472218224E-5]
[null,null,null,null,null,null,null,null,null,null,null,null,null,null,null,null,null,null,null,null,null,null,null,null,null,null,null,null,null,null,null,null,null,null,null,null,null,null,null,null,null,227,3.9618974020271276,-1.8022550192060624E-5,-1.8960535239829815E-5,null,-3.6045100384121247E-5,-3.792107047965963E-5]
[null,null,null,null,null,null,null,null,null,null,null,null,null,null,null,null,null,null,null,null,null,null,null,null,null,null,null,null,null,null,null,null,null,null,null,null,null,null,null,null,null,228,3.9793506945470711,-1.8313115647715212E-5,-1.8602793180841627E-5,null,-3.6626231295430425E-5,-3.7205586361683255E-5]
[null,null,null,null,null,null,null,null,null,null,null,null,null,null,null,null,null,null,null,null,null,null,null,null,null,null,null,null,null,null,null,null,null,null,null,null,null,null,null,null,null,229,3.9968039870670142,-1.8598102750940366E-5,-1.8239384530841257E-5,null,-3.7196205501880731E-5,-3.6478769061682514E-5]
[null,null,null,null,null,null,null,null,null,null,null,null,null,null,null,null,null,null,null,null,null,null,null,null,null,null,null,null,null,null,null,null,null,null,null,null,null,null,null,null,null,230,4.0142572795869578,-1.887742469190372E-5,-1.7870419987623902E-5,null,-3.7754849383807441E-5,-3.5740839975247804E-5]
[null,null,null,null,null,null,null,null,null,null,null,null,null,null,null,null,null,null,null,null,null,null,null,null,null,null,null,null,null,null,null,null,null,null,null,null,null,null,null,null,null,231,4.0317105721069018,-1.915099638643621E-5,-1.7496011941363666E-5,null,-3.8301992772872419E-5,-3.4992023882727332E-5]
[null,null,null,null,null,null,null,null,null,null,null,null,null,null,null,null,null,null,null,null,null,null,null,null,null,null,null,null,null,null,null,null,null,null,null,null,null,null,null,null,null,232,4.0491638646268449,-1.9418734501949509E-5,-1.7116274440378426E-5,null,-3.8837469003899019E-5,-3.4232548880756852E-5]
[null,null,null,null,null,null,null,null,null,null,null,null,null,null,null,null,null,null,null,null,null,null,null,null,null,null,null,null,null,null,null,null,null,null,null,null,null,null,null,null,null,233,4.066617157146788,-1.968055748282001E-5,-1.673132315638958E-5,null,-3.936111496564002E-5,-3.346264631277916E-5]
[null,null,null,null,null,null,null,null,null,null,null,null,null,null,null,null,null,null,null,null,null,null,null,null,null,null,null,null,null,null,null,null,null,null,null,null,null,null,null,null,null,234,4.0840704496667311,-1.9936385575231404E-5,-1.6341275349287328E-5,null,-3.9872771150462809E-5,-3.2682550698574656E-5]
[null,null,null,null,null,null,null,null,null,null,null,null,null,null,null,null,null,null,null,null,null,null,null,null,null,null,null,null,null,null,null,null,null,null,null,null,null,null,null,null,null,235,4.1015237421866741,-2.0186140851468478E-5,-1.5946249831412197E-5,null,-4.0372281702936957E-5,-3.1892499662824393E-5]
[null,null,null,null,null,null,null,null,null,null,null,null,null,null,null,null,null,null,null,null,null,null,null,null,null,null,null,null,null,null,null,null,null,null,null,null,null,null,null,null,null,236,4.1189770347066172,-2.0429747233654656E-5,-1.5546366931363623E-5,null,-4.0859494467309311E-5,-3.1092733862727246E-5]
[null,null,null,null,null,null,null,null,null,null,null,null,null,null,null,null,null,null,null,null,null,null,null,null,null,null,null,null,null,null,null,null,null,null,null,null,null,null,null,null,null,237,4.1364303272265612,-2.066713051692607E-5,-1.5141748457346701E-5,null,-4.1334261033852141E-5,-3.0283496914693402E-5]
[null,null,null,null,null,null,null,null,null,null,null,null,null,null,null,null,null,null,null,null,null,null,null,null,null,null,null,null,null,null,null,null,null,null,null,null,null,null,null,null,null,238,4.1538836197465043,-2.0898218392035029E-5,-1.4732517660068279E-5,null,-4.1796436784070058E-5,-2.9465035320136559E-5]
[null,null,null,null,null,null,null,null,null,null,null,null,null,null,null,null,null,null,null,null,null,null,null,null,null,null,null,null,null,null,null,null,null,null,null,null,null,null,null,null,null,239,4.1713369122664474,-2.1122940467376185E-5,-1.4318799195193499E-5,null,-4.2245880934752371E-5,-2.8637598390386999E-5]
[null,null,null,null,null,null,null,null,null,null,null,null,null,null,null,null,null,null,null,null,null,null,null,null,null,null,null,null,null,null,null,null,null,null,null,null,null,null,null,null,null,240,4.1887902047863905,-2.134122829042846E-5,-1.3900719085374539E-5,null,-4.2682456580856919E-5,-2.7801438170749077E-5]
[null,null,null,null,null,null,null,null,null,null,null,null,null,null,null,null,null,null,null,null,null,null,null,null,null,null,null,null,null,null,null,null,null,null,null,null,null,null,null,null,null,241,4.2062434973063345,-2.1553015368606363E-5,-1.3478404681862861E-5,null,-4.3106030737212726E-5,-2.6956809363725723E-5]
[null,null,null,null,null,null,null,null,null,null,null,null,null,null,null,null,null,null,null,null,null,null,null,null,null,null,null,null,null,null,null,null,null,null,null,null,null,null,null,null,null,242,4.2236967898262776,-2.1758237189514229E-5,-1.3051984625716875E-5,null,-4.3516474379028458E-5,-2.6103969251433749E-5]
[null,null,null,null,null,null,null,null,null,null,null,null,null,null,null,null,null,null,null,null,null,null,null,null,null,null,null,null,null,null,null,null,null,null,null,null,null,null,null,null,null,243,4.2411500823462207,-2.1956831240597389E-5,-1.2621588808616478E-5,null,-4.3913662481194778E-5,-2.5243177617232956E-5]
[null,null,null,null,null,null,null,null,null,null,null,null,null,null,null,null,null,null,null,null,null,null,null,null,null,null,null,null,null,null,null,null,null,null,null,null,null,null,null,null,null,244,4.2586033748661638,-2.2148737028184064E-5,-1.2187348333296903E-5,null,-4.4297474056368128E-5,-2.4374696666593806E-5]
[null,null,null,null,null,null,null,null,null,null,null,null,null,null,null,null,null,null,null,null,null,null,null,null,null,null,null,null,null,null,null,null,null,null,null,null,null,null,null,null,null,245,4.2760566673861069,-2.2333896095912324E-5,-1.174939547361351E-5,null,-4.4667792191824649E-5,-2.349879094722702E-5]
[null,null,null,null,null,null,null,null,null,null,null,null,null,null,null,null,null,null,null,null,null,null,null,null,null,null,null,null,null,null,null,null,null,null,null,null,null,null,null,null,null,246,4.2935099599060509,-2.2512252042536467E-5,-1.1307863634249883E-5,null,-4.5024504085072933E-5,-2.2615727268499766E-5]
[null,null,null,null,null,null,null,null,null,null,null,null,null,null,null,null,null,null,null,null,null,null,null,null,null,null,null,null,null,null,null,null,null,null,null,null,null,null,null,null,null,247,4.310963252425994,-2.2683750539107358E-5,-1.086288731008155E-5,null,-4.5367501078214716E-5,-2.1725774620163101E-5]
[null,null,null,null,null,null,null,null,null,null,null,null,null,null,null,null,null,null,null,null,null,null,null,null,null,null,null,null,null,null,null,null,null,null,null,null,null,null,null,null,null,248,4.3284165449459371,-2.2848339345521618E-5,-1.0414602045207415E-5,null,-4.5696678691043237E-5,-2.0829204090414829E-5]
[null,null,null,null,null,null,null,null,null,null,null,null,null,null,null,null,null,null,null,null,null,null,null,null,null,null,null,null,null,null,null,null,null,null,null,null,null,null,null,null,null,249,4.3458698374658802,-2.3005968326434398E-5,-9.9631443916617938E-6,null,-4.6011936652868795E-5,-1.9926288783323588E-5]
[null,null,null,null,null,null,null,null,null,null,null,null,null,null,null,null,null,null,null,null,null,null,null,null,null,null,null,null,null,null,null,null,null,null,null,null,null,null,null,null,null,250,4.3633231299858233,-2.3156589466531122E-5,-9.5086518678193275E-6,null,-4.6313178933062244E-5,-1.9017303735638655E-5]
[null,null,null,null,null,null,null,null,null,null,null,null,null,null,null,null,null,null,null,null,null,null,null,null,null,null,null,null,null,null,null,null,null,null,null,null,null,null,null,null,null,251,4.3807764225057673,-2.3300156885153432E-5,-9.0512629165055192E-6,null,-4.6600313770306864E-5,-1.8102525833011038E-5]
[null,null,null,null,null,null,null,null,null,null,null,null,null,null,null,null,null,null,null,null,null,null,null,null,null,null,null,null,null,null,null,null,null,null,null,null,null,null,null,null,null,252,4.3982297150257104,-2.3436626850274827E-5,-8.5911168628258124E-6,null,-4.6873253700549653E-5,-1.7182233725651625E-5]
[null,null,null,null,null,null,null,null,null,null,null,null,null,null,null,null,null,null,null,null,null,null,null,null,null,null,null,null,null,null,null,null,null,null,null,null,null,null,null,null,null,253,4.4156830075456535,-2.3565957791821927E-5,-8.1283538717256752E-6,null,-4.7131915583643854E-5,-1.625670774345135E-5]
[null,null,null,null,null,null,null,null,null,null,null,null,null,null,null,null,null,null,null,null,null,null,null,null,null,null,null,null,null,null,null,null,null,null,null,null,null,null,null,null,null,254,4.4331363000655974,-2.3688110314337086E-5,-7.6631149052950509E-6,null,-4.7376220628674173E-5,-1.5326229810590102E-5]
[null,null,null,null,null,null,null,null,null,null,null,null,null,null,null,null,null,null,null,null,null,null,null,null,null,null,null,null,null,null,null,null,null,null,null,null,null,null,null,null,null,255,4.4505895925855405,-2.3803047208978611E-5,-7.1955416798300382E-6,null,-4.7606094417957222E-5,-1.4391083359660076E-5]
[null,null,null,null,null,null,null,null,null,null,null,null,null,null,null,null,null,null,null,null,null,null,null,null,null,null,null,null,null,null,null,null,null,null,null,null,null,null,null,null,null,256,{"$f":"AP271*PI()/180","v":4.4680428851054836},{"$f":"$AR$7+$AR$4*SIN(AQ271)","v":-2.391073346485499E-5},{"$f":"$AS$7+$AR$3*COS(AQ271)","v":-6.7257766226645712E-6},null,{"$f":"$AR$7+$AS$4*SIN(AQ271)","v":-4.782146692970998E-5},{"$f":"$AS$7+$AS$3*COS(AQ271)","v":-1.3451553245329142E-5}]
[null,null,null,null,null,null,null,null,null,null,null,null,null,null,null,null,null,null,null,null,null,null,null,null,null,null,null,null,null,null,null,null,null,null,null,null,null,null,null,null,null,257,4.4854961776254267,-2.4011136279689496E-5,-6.2539628287857798E-6,null,-4.8022272559378992E-5,-1.250792565757156E-5]
[null,null,null,null,null,null,null,null,null,null,null,null,null,null,null,null,null,null,null,null,null,null,null,null,null,null,null,null,null,null,null,null,null,null,null,null,null,null,null,null,null,258,4.5029494701453698,-2.410422506981211E-5,-5.7802440172458429E-6,null,-4.8208450139624221E-5,-1.1560488034491686E-5]
[null,null,null,null,null,null,null,null,null,null,null,null,null,null,null,null,null,null,null,null,null,null,null,null,null,null,null,null,null,null,null,null,null,null,null,null,null,null,null,null,null,259,4.5204027626653129,-2.4189971479475584E-5,-5.3047644873837712E-6,null,-4.8379942958951169E-5,-1.0609528974767542E-5]
[null,null,null,null,null,null,null,null,null,null,null,null,null,null,null,null,null,null,null,null,null,null,null,null,null,null,null,null,null,null,null,null,null,null,null,null,null,null,null,null,null,260,4.5378560551852569,-2.4268349389492902E-5,-4.82766907487041E-6,null,-4.8536698778985803E-5,-9.65533814974082E-6]
[null,null,null,null,null,null,null,null,null,null,null,null,null,null,null,null,null,null,null,null,null,null,null,null,null,null,null,null,null,null,null,null,null,null,null,null,null,null,null,null,null,261,4.5553093477052,-2.4339334925193396E-5,-4.3491031075901879E-6,null,-4.8678669850386792E-5,-8.6982062151803759E-6]
[null,null,null,null,null,null,null,null,null,null,null,null,null,null,null,null,null,null,null,null,null,null,null,null,null,null,null,null,null,null,null,null,null,null,null,null,null,null,null,null,null,262,4.572762640225144,-2.4402906463695247E-5,-3.869212361372661E-6,null,-4.8805812927390494E-5,-7.7384247227453221E-6]
[null,null,null,null,null,null,null,null,null,null,null,null,null,null,null,null,null,null,null,null,null,null,null,null,null,null,null,null,null,null,null,null,null,null,null,null,null,null,null,null,null,263,4.5902159327450871,-2.4459044640491991E-5,-3.3881430155879828E-6,null,-4.8918089280983981E-5,-6.7762860311759657E-6]
[null,null,null,null,null,null,null,null,null,null,null,null,null,null,null,null,null,null,null,null,null,null,null,null,null,null,null,null,null,null,null,null,null,null,null,null,null,null,null,null,null,264,4.6076692252650302,-2.4507732355351155E-5,-2.9060416086190785E-6,null,-4.901546471070231E-5,-5.8120832172381571E-6]
[null,null,null,null,null,null,null,null,null,null,null,null,null,null,null,null,null,null,null,null,null,null,null,null,null,null,null,null,null,null,null,null,null,null,null,null,null,null,null,null,null,265,4.6251225177849733,-2.4548954777523146E-5,-2.4230549932247312E-6,null,-4.9097909555046292E-5,-4.8461099864494624E-6]
[null,null,null,null,null,null,null,null,null,null,null,null,null,null,null,null,null,null,null,null,null,null,null,null,null,null,null,null,null,null,null,null,null,null,null,null,null,null,null,null,null,266,4.6425758103049164,-2.4582699350258835E-5,-1.9393302918067871E-6,null,-4.916539870051767E-5,-3.8786605836135742E-6]
[null,null,null,null,null,null,null,null,null,null,null,null,null,null,null,null,null,null,null,null,null,null,null,null,null,null,null,null,null,null,null,null,null,null,null,null,null,null,null,null,null,267,4.6600291028248595,-2.4608955794634484E-5,-1.4550148515952442E-6,null,-4.9217911589268968E-5,-2.9100297031904883E-6]
[null,null,null,null,null,null,null,null,null,null,null,null,null,null,null,null,null,null,null,null,null,null,null,null,null,null,null,null,null,null,null,null,null,null,null,null,null,null,null,null,null,268,4.6774823953448026,-2.4627716112682777E-5,-9.7025619976486004E-7,null,-4.9255432225365554E-5,-1.9405123995297201E-6]
[null,null,null,null,null,null,null,null,null,null,null,null,null,null,null,null,null,null,null,null,null,null,null,null,null,null,null,null,null,null,null,null,null,null,null,null,null,null,null,null,null,269,4.6949356878647466,-2.4638974589829107E-5,-4.852019984969199E-7,null,-4.9277949179658214E-5,-9.704039969938398E-7]
[null,null,null,null,null,null,null,null,null,null,null,null,null,null,null,null,null,null,null,null,null,null,null,null,null,null,null,null,null,null,null,null,null,null,null,null,null,null,null,null,null,270,4.7123889803846897,-2.4642727796632265E-5,-5.10913335286961E-21,null,-4.928545559326453E-5,-1.021826670573922E-20]
[null,null,null,null,null,null,null,null,null,null,null,null,null,null,null,null,null,null,null,null,null,null,null,null,null,null,null,null,null,null,null,null,null,null,null,null,null,null,null,null,null,271,4.7298422729046328,-2.4638974589829107E-5,4.8520199849690973E-7,null,-4.9277949179658214E-5,9.7040399699381947E-7]
[null,null,null,null,null,null,null,null,null,null,null,null,null,null,null,null,null,null,null,null,null,null,null,null,null,null,null,null,null,null,null,null,null,null,null,null,null,null,null,null,null,272,4.7472955654245768,-2.462771611268278E-5,9.7025619976484988E-7,null,-4.9255432225365561E-5,1.9405123995296998E-6]
[null,null,null,null,null,null,null,null,null,null,null,null,null,null,null,null,null,null,null,null,null,null,null,null,null,null,null,null,null,null,null,null,null,null,null,null,null,null,null,null,null,273,4.7647488579445199,-2.4608955794634484E-5,1.455014851595234E-6,null,-4.9217911589268968E-5,2.910029703190468E-6]
[null,null,null,null,null,null,null,null,null,null,null,null,null,null,null,null,null,null,null,null,null,null,null,null,null,null,null,null,null,null,null,null,null,null,null,null,null,null,null,null,null,274,4.782202150464463,-2.4582699350258839E-5,1.939330291806777E-6,null,-4.9165398700517677E-5,3.8786605836135539E-6]
[null,null,null,null,null,null,null,null,null,null,null,null,null,null,null,null,null,null,null,null,null,null,null,null,null,null,null,null,null,null,null,null,null,null,null,null,null,null,null,null,null,275,4.7996554429844061,-2.4548954777523146E-5,2.4230549932247211E-6,null,-4.9097909555046292E-5,4.8461099864494421E-6]
[null,null,null,null,null,null,null,null,null,null,null,null,null,null,null,null,null,null,null,null,null,null,null,null,null,null,null,null,null,null,null,null,null,null,null,null,null,null,null,null,null,276,4.8171087355043491,-2.4507732355351155E-5,2.906041608619068E-6,null,-4.901546471070231E-5,5.8120832172381359E-6]
[null,null,null,null,null,null,null,null,null,null,null,null,null,null,null,null,null,null,null,null,null,null,null,null,null,null,null,null,null,null,null,null,null,null,null,null,null,null,null,null,null,277,4.8345620280242931,-2.4459044640491987E-5,3.3881430155879972E-6,null,-4.8918089280983975E-5,6.7762860311759945E-6]
[null,null,null,null,null,null,null,null,null,null,null,null,null,null,null,null,null,null,null,null,null,null,null,null,null,null,null,null,null,null,null,null,null,null,null,null,null,null,null,null,null,278,4.8520153205442362,-2.4402906463695247E-5,3.8692123613726754E-6,null,-4.8805812927390494E-5,7.7384247227453509E-6]
[null,null,null,null,null,null,null,null,null,null,null,null,null,null,null,null,null,null,null,null,null,null,null,null,null,null,null,null,null,null,null,null,null,null,null,null,null,null,null,null,null,279,4.8694686130641793,-2.4339334925193399E-5,4.3491031075901778E-6,null,-4.8678669850386798E-5,8.6982062151803555E-6]
[null,null,null,null,null,null,null,null,null,null,null,null,null,null,null,null,null,null,null,null,null,null,null,null,null,null,null,null,null,null,null,null,null,null,null,null,null,null,null,null,null,280,4.8869219055841224,-2.4268349389492905E-5,4.8276690748703998E-6,null,-4.853669877898581E-5,9.6553381497407997E-6]
[null,null,null,null,null,null,null,null,null,null,null,null,null,null,null,null,null,null,null,null,null,null,null,null,null,null,null,null,null,null,null,null,null,null,null,null,null,null,null,null,null,281,4.9043751981040655,-2.4189971479475591E-5,5.3047644873837373E-6,null,-4.8379942958951183E-5,1.0609528974767475E-5]
[null,null,null,null,null,null,null,null,null,null,null,null,null,null,null,null,null,null,null,null,null,null,null,null,null,null,null,null,null,null,null,null,null,null,null,null,null,null,null,null,null,282,4.9218284906240086,-2.4104225069812114E-5,5.7802440172458082E-6,null,-4.8208450139624228E-5,1.1560488034491616E-5]
[null,null,null,null,null,null,null,null,null,null,null,null,null,null,null,null,null,null,null,null,null,null,null,null,null,null,null,null,null,null,null,null,null,null,null,null,null,null,null,null,null,283,4.9392817831439526,-2.4011136279689496E-5,6.2539628287857713E-6,null,-4.8022272559378992E-5,1.2507925657571543E-5]
[null,null,null,null,null,null,null,null,null,null,null,null,null,null,null,null,null,null,null,null,null,null,null,null,null,null,null,null,null,null,null,null,null,null,null,null,null,null,null,null,null,284,4.9567350756638957,-2.3910733464854993E-5,6.7257766226645619E-6,null,-4.7821466929709986E-5,1.3451553245329124E-5]
[null,null,null,null,null,null,null,null,null,null,null,null,null,null,null,null,null,null,null,null,null,null,null,null,null,null,null,null,null,null,null,null,null,null,null,null,null,null,null,null,null,285,4.9741883681838397,-2.3803047208978611E-5,7.1955416798300517E-6,null,-4.7606094417957222E-5,1.4391083359660103E-5]
[null,null,null,null,null,null,null,null,null,null,null,null,null,null,null,null,null,null,null,null,null,null,null,null,null,null,null,null,null,null,null,null,null,null,null,null,null,null,null,null,null,286,4.9916416607037828,-2.3688110314337079E-5,7.6631149052950662E-6,null,-4.7376220628674159E-5,1.5326229810590132E-5]
[null,null,null,null,null,null,null,null,null,null,null,null,null,null,null,null,null,null,null,null,null,null,null,null,null,null,null,null,null,null,null,null,null,null,null,null,null,null,null,null,null,287,5.0090949532237259,-2.3565957791821927E-5,8.1283538717256633E-6,null,-4.7131915583643854E-5,1.6256707743451327E-5]
[null,null,null,null,null,null,null,null,null,null,null,null,null,null,null,null,null,null,null,null,null,null,null,null,null,null,null,null,null,null,null,null,null,null,null,null,null,null,null,null,null,288,5.026548245743669,-2.343662685027483E-5,8.5911168628258039E-6,null,-4.687325370054966E-5,1.7182233725651608E-5]
[null,null,null,null,null,null,null,null,null,null,null,null,null,null,null,null,null,null,null,null,null,null,null,null,null,null,null,null,null,null,null,null,null,null,null,null,null,null,null,null,null,289,5.0440015382636121,-2.3300156885153435E-5,9.0512629165055091E-6,null,-4.6600313770306871E-5,1.8102525833011018E-5]
[null,null,null,null,null,null,null,null,null,null,null,null,null,null,null,null,null,null,null,null,null,null,null,null,null,null,null,null,null,null,null,null,null,null,null,null,null,null,null,null,null,290,5.0614548307835552,-2.3156589466531132E-5,9.5086518678192936E-6,null,-4.6313178933062264E-5,1.9017303735638587E-5]
[null,null,null,null,null,null,null,null,null,null,null,null,null,null,null,null,null,null,null,null,null,null,null,null,null,null,null,null,null,null,null,null,null,null,null,null,null,null,null,null,null,291,5.0789081233034983,-2.3005968326434408E-5,9.9631443916617616E-6,null,-4.6011936652868816E-5,1.9926288783323523E-5]
[null,null,null,null,null,null,null,null,null,null,null,null,null,null,null,null,null,null,null,null,null,null,null,null,null,null,null,null,null,null,null,null,null,null,null,null,null,null,null,null,null,292,5.0963614158234423,-2.2848339345521622E-5,1.0414602045207406E-5,null,-4.5696678691043243E-5,2.0829204090414812E-5]
[null,null,null,null,null,null,null,null,null,null,null,null,null,null,null,null,null,null,null,null,null,null,null,null,null,null,null,null,null,null,null,null,null,null,null,null,null,null,null,null,null,293,5.1138147083433854,-2.2683750539107365E-5,1.0862887310081542E-5,null,-4.5367501078214729E-5,2.1725774620163084E-5]
[null,null,null,null,null,null,null,null,null,null,null,null,null,null,null,null,null,null,null,null,null,null,null,null,null,null,null,null,null,null,null,null,null,null,null,null,null,null,null,null,null,294,5.1312680008633293,-2.251225204253646E-5,1.1307863634249895E-5,null,-4.5024504085072919E-5,2.261572726849979E-5]
[null,null,null,null,null,null,null,null,null,null,null,null,null,null,null,null,null,null,null,null,null,null,null,null,null,null,null,null,null,null,null,null,null,null,null,null,null,null,null,null,null,295,5.1487212933832724,-2.2333896095912328E-5,1.17493954736135E-5,null,-4.4667792191824656E-5,2.3498790947226999E-5]
[null,null,null,null,null,null,null,null,null,null,null,null,null,null,null,null,null,null,null,null,null,null,null,null,null,null,null,null,null,null,null,null,null,null,null,null,null,null,null,null,null,296,5.1661745859032155,-2.2148737028184071E-5,1.2187348333296893E-5,null,-4.4297474056368141E-5,2.4374696666593785E-5]
[null,null,null,null,null,null,null,null,null,null,null,null,null,null,null,null,null,null,null,null,null,null,null,null,null,null,null,null,null,null,null,null,null,null,null,null,null,null,null,null,null,297,5.1836278784231586,-2.1956831240597392E-5,1.2621588808616471E-5,null,-4.3913662481194784E-5,2.5243177617232942E-5]
[null,null,null,null,null,null,null,null,null,null,null,null,null,null,null,null,null,null,null,null,null,null,null,null,null,null,null,null,null,null,null,null,null,null,null,null,null,null,null,null,null,298,5.2010811709431017,-2.1758237189514232E-5,1.3051984625716864E-5,null,-4.3516474379028465E-5,2.6103969251433729E-5]
[null,null,null,null,null,null,null,null,null,null,null,null,null,null,null,null,null,null,null,null,null,null,null,null,null,null,null,null,null,null,null,null,null,null,null,null,null,null,null,null,null,299,5.2185344634630448,-2.1553015368606366E-5,1.3478404681862853E-5,null,-4.3106030737212733E-5,2.6956809363725706E-5]
[null,null,null,null,null,null,null,null,null,null,null,null,null,null,null,null,null,null,null,null,null,null,null,null,null,null,null,null,null,null,null,null,null,null,null,null,null,null,null,null,null,300,5.2359877559829888,-2.1341228290428466E-5,1.390071908537453E-5,null,-4.2682456580856933E-5,2.7801438170749061E-5]
[null,null,null,null,null,null,null,null,null,null,null,null,null,null,null,null,null,null,null,null,null,null,null,null,null,null,null,null,null,null,null,null,null,null,null,null,null,null,null,null,null,301,5.2534410485029319,-2.1122940467376192E-5,1.4318799195193491E-5,null,-4.2245880934752384E-5,2.8637598390386982E-5]
[null,null,null,null,null,null,null,null,null,null,null,null,null,null,null,null,null,null,null,null,null,null,null,null,null,null,null,null,null,null,null,null,null,null,null,null,null,null,null,null,null,302,5.270894341022875,-2.0898218392035036E-5,1.4732517660068271E-5,null,-4.1796436784070071E-5,2.9465035320136542E-5]
[null,null,null,null,null,null,null,null,null,null,null,null,null,null,null,null,null,null,null,null,null,null,null,null,null,null,null,null,null,null,null,null,null,null,null,null,null,null,null,null,null,303,5.2883476335428181,-2.0667130516926074E-5,1.5141748457346692E-5,null,-4.1334261033852148E-5,3.0283496914693385E-5]
[null,null,null,null,null,null,null,null,null,null,null,null,null,null,null,null,null,null,null,null,null,null,null,null,null,null,null,null,null,null,null,null,null,null,null,null,null,null,null,null,null,304,5.3058009260627612,-2.0429747233654673E-5,1.5546366931363596E-5,null,-4.0859494467309345E-5,3.1092733862727192E-5]
[null,null,null,null,null,null,null,null,null,null,null,null,null,null,null,null,null,null,null,null,null,null,null,null,null,null,null,null,null,null,null,null,null,null,null,null,null,null,null,null,null,305,5.3232542185827052,-2.0186140851468482E-5,1.5946249831412186E-5,null,-4.0372281702936964E-5,3.1892499662824373E-5]
[null,null,null,null,null,null,null,null,null,null,null,null,null,null,null,null,null,null,null,null,null,null,null,null,null,null,null,null,null,null,null,null,null,null,null,null,null,null,null,null,null,306,5.3407075111026483,-1.9936385575231408E-5,1.6341275349287318E-5,null,-3.9872771150462816E-5,3.2682550698574636E-5]
[null,null,null,null,null,null,null,null,null,null,null,null,null,null,null,null,null,null,null,null,null,null,null,null,null,null,null,null,null,null,null,null,null,null,null,null,null,null,null,null,null,307,5.3581608036225914,-1.9680557482820017E-5,1.673132315638957E-5,null,-3.9361114965640033E-5,3.346264631277914E-5]
[null,null,null,null,null,null,null,null,null,null,null,null,null,null,null,null,null,null,null,null,null,null,null,null,null,null,null,null,null,null,null,null,null,null,null,null,null,null,null,null,null,308,5.3756140961425354,-1.9418734501949503E-5,1.7116274440378439E-5,null,-3.8837469003899005E-5,3.4232548880756879E-5]
[null,null,null,null,null,null,null,null,null,null,null,null,null,null,null,null,null,null,null,null,null,null,null,null,null,null,null,null,null,null,null,null,null,null,null,null,null,null,null,null,null,309,5.3930673886624785,-1.9150996386436199E-5,1.7496011941363673E-5,null,-3.8301992772872399E-5,3.4992023882727345E-5]
[null,null,null,null,null,null,null,null,null,null,null,null,null,null,null,null,null,null,null,null,null,null,null,null,null,null,null,null,null,null,null,null,null,null,null,null,null,null,null,null,null,310,5.4105206811824216,-1.8877424691903727E-5,1.7870419987623895E-5,null,-3.7754849383807454E-5,3.5740839975247791E-5]
[null,null,null,null,null,null,null,null,null,null,null,null,null,null,null,null,null,null,null,null,null,null,null,null,null,null,null,null,null,null,null,null,null,null,null,null,null,null,null,null,null,311,5.4279739737023647,-1.8598102750940379E-5,1.8239384530841243E-5,null,-3.7196205501880759E-5,3.6478769061682487E-5]
[null,null,null,null,null,null,null,null,null,null,null,null,null,null,null,null,null,null,null,null,null,null,null,null,null,null,null,null,null,null,null,null,null,null,null,null,null,null,null,null,null,312,5.4454272662223078,-1.8313115647715226E-5,1.8602793180841607E-5,null,-3.6626231295430452E-5,3.7205586361683214E-5]
[null,null,null,null,null,null,null,null,null,null,null,null,null,null,null,null,null,null,null,null,null,null,null,null,null,null,null,null,null,null,null,null,null,null,null,null,null,null,null,null,null,313,5.4628805587422509,-1.8022550192060644E-5,1.8960535239829791E-5,null,-3.6045100384121288E-5,3.7921070479659582E-5]
[null,null,null,null,null,null,null,null,null,null,null,null,null,null,null,null,null,null,null,null,null,null,null,null,null,null,null,null,null,null,null,null,null,null,null,null,null,null,null,null,null,314,5.480333851262194,-1.7726494893029199E-5,1.9312501736109085E-5,null,-3.5452989786058397E-5,3.862500347221817E-5]
[null,null,null,null,null,null,null,null,null,null,null,null,null,null,null,null,null,null,null,null,null,null,null,null,null,null,null,null,null,null,null,null,null,null,null,null,null,null,null,null,null,315,5.497787143782138,-1.7425039931932906E-5,1.9658585457275176E-5,null,-3.4850079863865812E-5,3.9317170914550352E-5]
[null,null,null,null,null,null,null,null,null,null,null,null,null,null,null,null,null,null,null,null,null,null,null,null,null,null,null,null,null,null,null,null,null,null,null,null,null,null,null,null,null,316,5.5152404363020811,-1.7118277134873214E-5,1.999868098287397E-5,null,-3.4236554269746428E-5,3.999736196574794E-5]
[null,null,null,null,null,null,null,null,null,null,null,null,null,null,null,null,null,null,null,null,null,null,null,null,null,null,null,null,null,null,null,null,null,null,null,null,null,null,null,null,null,317,5.532693728822025,-1.6806299944769747E-5,2.0332684716513826E-5,null,-3.3612599889539495E-5,4.0665369433027651E-5]
[null,null,null,null,null,null,null,null,null,null,null,null,null,null,null,null,null,null,null,null,null,null,null,null,null,null,null,null,null,null,null,null,null,null,null,null,null,null,null,null,null,318,5.5501470213419681,-1.6489203392896835E-5,2.0660494917421873E-5,null,-3.297840678579367E-5,4.1320989834843746E-5]
[null,null,null,null,null,null,null,null,null,null,null,null,null,null,null,null,null,null,null,null,null,null,null,null,null,null,null,null,null,null,null,null,null,null,null,null,null,null,null,null,null,319,5.5676003138619112,-1.6167084069935949E-5,2.0982011731435366E-5,null,-3.2334168139871898E-5,4.1964023462870732E-5]
[null,null,null,null,null,null,null,null,null,null,null,null,null,null,null,null,null,null,null,null,null,null,null,null,null,null,null,null,null,null,null,null,null,null,null,null,null,null,null,null,null,320,{"$f":"AP335*PI()/180","v":5.5850536063818543},{"$f":"$AR$7+$AR$4*SIN(AQ335)","v":-1.5840040096553299E-5},{"$f":"$AS$7+$AR$3*COS(AQ335)","v":2.1297137221418151E-5},null,{"$f":"$AR$7+$AS$4*SIN(AQ335)","v":-3.1680080193106599E-5},{"$f":"$AS$7+$AS$3*COS(AQ335)","v":4.2594274442836301E-5}]
[null,null,null,null,null,null,null,null,null,null,null,null,null,null,null,null,null,null,null,null,null,null,null,null,null,null,null,null,null,null,null,null,null,null,null,null,null,null,null,null,null,321,5.6025068989017974,-1.5508171093511325E-5,2.1605775397093295E-5,null,-3.101634218702265E-5,4.321155079418659E-5]
[null,null,null,null,null,null,null,null,null,null,null,null,null,null,null,null,null,null,null,null,null,null,null,null,null,null,null,null,null,null,null,null,null,null,null,null,null,null,null,null,null,322,5.6199601914217405,-1.5171578151323243E-5,2.1907832244282636E-5,null,-3.0343156302646486E-5,4.3815664488565273E-5]
[null,null,null,null,null,null,null,null,null,null,null,null,null,null,null,null,null,null,null,null,null,null,null,null,null,null,null,null,null,null,null,null,null,null,null,null,null,null,null,null,null,323,5.6374134839416845,-1.483036379945987E-5,2.2203215753544446E-5,null,-2.9660727598919741E-5,4.4406431507088892E-5]
[null,null,null,null,null,null,null,null,null,null,null,null,null,null,null,null,null,null,null,null,null,null,null,null,null,null,null,null,null,null,null,null,null,null,null,null,null,null,null,null,null,324,5.6548667764616276,-1.4484631975118242E-5,2.2491835948200333E-5,null,-2.8969263950236484E-5,4.4983671896400665E-5]
[null,null,null,null,null,null,null,null,null,null,null,null,null,null,null,null,null,null,null,null,null,null,null,null,null,null,null,null,null,null,null,null,null,null,null,null,null,null,null,null,null,325,5.6723200689815707,-1.4134487991561211E-5,2.2773604911743089E-5,null,-2.8268975983122422E-5,4.5547209823486178E-5]
[null,null,null,null,null,null,null,null,null,null,null,null,null,null,null,null,null,null,null,null,null,null,null,null,null,null,null,null,null,null,null,null,null,null,null,null,null,null,null,null,null,326,5.6897733615015138,-1.3780038506038088E-5,2.3048436814616867E-5,null,-2.7560077012076177E-5,4.6096873629233734E-5]
[null,null,null,null,null,null,null,null,null,null,null,null,null,null,null,null,null,null,null,null,null,null,null,null,null,null,null,null,null,null,null,null,null,null,null,null,null,null,null,null,null,327,5.7072266540214578,-1.3421391487295778E-5,2.3316247940361701E-5,null,-2.6842782974591556E-5,4.6632495880723402E-5]
[null,null,null,null,null,null,null,null,null,null,null,null,null,null,null,null,null,null,null,null,null,null,null,null,null,null,null,null,null,null,null,null,null,null,null,null,null,null,null,null,null,328,5.7246799465414,-1.3058656182690538E-5,2.3576956711114308E-5,null,-2.6117312365381076E-5,4.7153913422228616E-5]
[null,null,null,null,null,null,null,null,null,null,null,null,null,null,null,null,null,null,null,null,null,null,null,null,null,null,null,null,null,null,null,null,null,null,null,null,null,null,null,null,null,329,5.742133239061344,-1.2691943084909971E-5,2.3830483712457632E-5,null,-2.5383886169819943E-5,4.7660967424915263E-5]
[null,null,null,null,null,null,null,null,null,null,null,null,null,null,null,null,null,null,null,null,null,null,null,null,null,null,null,null,null,null,null,null,null,null,null,null,null,null,null,null,null,330,5.7595865315812871,-1.2321363898316143E-5,2.4076751717611048E-5,null,-2.4642727796632286E-5,4.8153503435222097E-5]
[null,null,null,null,null,null,null,null,null,null,null,null,null,null,null,null,null,null,null,null,null,null,null,null,null,null,null,null,null,null,null,null,null,null,null,null,null,null,null,null,null,331,5.7770398241012311,-1.1947031504919139E-5,2.4315685710954557E-5,null,-2.3894063009838278E-5,4.8631371421909114E-5]
[null,null,null,null,null,null,null,null,null,null,null,null,null,null,null,null,null,null,null,null,null,null,null,null,null,null,null,null,null,null,null,null,null,null,null,null,null,null,null,null,null,332,5.7944931166211742,-1.1569059929992261E-5,2.4547212910879164E-5,null,-2.3138119859984521E-5,4.9094425821758328E-5]
[null,null,null,null,null,null,null,null,null,null,null,null,null,null,null,null,null,null,null,null,null,null,null,null,null,null,null,null,null,null,null,null,null,null,null,null,null,null,null,null,null,333,5.8119464091411173,-1.1187564307338708E-5,2.4771262791956928E-5,null,-2.2375128614677416E-5,4.9542525583913855E-5]
[null,null,null,null,null,null,null,null,null,null,null,null,null,null,null,null,null,null,null,null,null,null,null,null,null,null,null,null,null,null,null,null,null,null,null,null,null,null,null,null,null,334,5.8293997016610613,-1.0802660844220752E-5,2.4987767106423657E-5,null,-2.1605321688441504E-5,4.9975534212847314E-5]
[null,null,null,null,null,null,null,null,null,null,null,null,null,null,null,null,null,null,null,null,null,null,null,null,null,null,null,null,null,null,null,null,null,null,null,null,null,null,null,null,null,335,5.8468529941810035,-1.0414466785961958E-5,2.5196659904967819E-5,null,-2.0828933571923917E-5,5.0393319809935638E-5]
[null,null,null,null,null,null,null,null,null,null,null,null,null,null,null,null,null,null,null,null,null,null,null,null,null,null,null,null,null,null,null,null,null,null,null,null,null,null,null,null,null,336,5.8643062867009474,-1.0023100380232916E-5,2.5397877556819419E-5,null,-2.0046200760465832E-5,5.0795755113638837E-5]
[null,null,null,null,null,null,null,null,null,null,null,null,null,null,null,null,null,null,null,null,null,null,null,null,null,null,null,null,null,null,null,null,null,null,null,null,null,null,null,null,null,337,5.8817595792208897,-9.6286808410321425E-6,2.5591358769132427E-5,null,-1.9257361682064285E-5,5.1182717538264854E-5]
[null,null,null,null,null,null,null,null,null,null,null,null,null,null,null,null,null,null,null,null,null,null,null,null,null,null,null,null,null,null,null,null,null,null,null,null,null,null,null,null,null,338,5.8992128717408336,-9.2313283123720247E-6,2.5777044605655321E-5,null,-1.8462656624744049E-5,5.1554089211310642E-5]
[null,null,null,null,null,null,null,null,null,null,null,null,null,null,null,null,null,null,null,null,null,null,null,null,null,null,null,null,null,null,null,null,null,null,null,null,null,null,null,null,null,339,5.9166661642607767,-8.8311638316820928E-6,2.5954878504683481E-5,null,-1.7662327663364186E-5,5.1909757009366963E-5]
[null,null,null,null,null,null,null,null,null,null,null,null,null,null,null,null,null,null,null,null,null,null,null,null,null,null,null,null,null,null,null,null,null,null,null,null,null,null,null,null,null,340,5.9341194567807207,-8.4283092929396057E-6,2.6124806296288572E-5,null,-1.6856618585879211E-5,5.2249612592577143E-5]
[null,null,null,null,null,null,null,null,null,null,null,null,null,null,null,null,null,null,null,null,null,null,null,null,null,null,null,null,null,null,null,null,null,null,null,null,null,null,null,null,null,341,5.9515727493006629,-8.0228874095396627E-6,2.6286776218819112E-5,null,-1.6045774819079325E-5,5.2573552437638223E-5]
[null,null,null,null,null,null,null,null,null,null,null,null,null,null,null,null,null,null,null,null,null,null,null,null,null,null,null,null,null,null,null,null,null,null,null,null,null,null,null,null,null,342,5.9690260418206069,-7.6150216769152778E-6,2.6440738934667701E-5,null,-1.5230043353830556E-5,5.2881477869335402E-5]
[null,null,null,null,null,null,null,null,null,null,null,null,null,null,null,null,null,null,null,null,null,null,null,null,null,null,null,null,null,null,null,null,null,null,null,null,null,null,null,null,null,343,5.9864793343405509,-7.2048363349197337E-6,2.6586647545299597E-5,null,-1.4409672669839467E-5,5.3173295090599194E-5]
[null,null,null,null,null,null,null,null,null,null,null,null,null,null,null,null,null,null,null,null,null,null,null,null,null,null,null,null,null,null,null,null,null,null,null,null,null,null,null,null,null,344,6.0039326268604931,-6.7924563299817985E-6,2.6724457605538542E-5,null,-1.3584912659963597E-5,5.3448915211077084E-5]
[null,null,null,null,null,null,null,null,null,null,null,null,null,null,null,null,null,null,null,null,null,null,null,null,null,null,null,null,null,null,null,null,null,null,null,null,null,null,null,null,null,345,6.0213859193804371,-6.3780072770457065E-6,2.6854127137105223E-5,null,-1.2756014554091413E-5,5.3708254274210447E-5]
[null,null,null,null,null,null,null,null,null,null,null,null,null,null,null,null,null,null,null,null,null,null,null,null,null,null,null,null,null,null,null,null,null,null,null,null,null,null,null,null,null,346,6.0388392119003802,-5.9616154213079047E-6,2.6975616641404163E-5,null,-1.1923230842615809E-5,5.3951233282808326E-5]
[null,null,null,null,null,null,null,null,null,null,null,null,null,null,null,null,null,null,null,null,null,null,null,null,null,null,null,null,null,null,null,null,null,null,null,null,null,null,null,null,null,347,6.0562925044203233,-5.5434075997613059E-6,2.7088889111555463E-5,null,-1.1086815199522612E-5,5.4177778223110926E-5]
[null,null,null,null,null,null,null,null,null,null,null,null,null,null,null,null,null,null,null,null,null,null,null,null,null,null,null,null,null,null,null,null,null,null,null,null,null,null,null,null,null,348,6.0737457969402664,-5.1235112025596244E-6,2.7193910043667426E-5,null,-1.0247022405119249E-5,5.4387820087334853E-5]
[null,null,null,null,null,null,null,null,null,null,null,null,null,null,null,null,null,null,null,null,null,null,null,null,null,null,null,null,null,null,null,null,null,null,null,null,null,null,null,null,null,349,6.0911990894602104,-4.7020541342130543E-6,2.7290647447346768E-5,null,-9.4041082684261086E-6,5.4581294894693535E-5]
[null,null,null,null,null,null,null,null,null,null,null,null,null,null,null,null,null,null,null,null,null,null,null,null,null,null,null,null,null,null,null,null,null,null,null,null,null,null,null,null,null,350,6.1086523819801526,-4.2791647746274252E-6,2.7379071855443203E-5,null,-8.5583295492548504E-6,5.4758143710886405E-5]
[null,null,null,null,null,null,null,null,null,null,null,null,null,null,null,null,null,null,null,null,null,null,null,null,null,null,null,null,null,null,null,null,null,null,null,null,null,null,null,null,null,351,6.1261056745000966,-3.8549719399982015E-6,2.7459156333025453E-5,null,-7.7099438799964031E-6,5.4918312666050906E-5]
[null,null,null,null,null,null,null,null,null,null,null,null,null,null,null,null,null,null,null,null,null,null,null,null,null,null,null,null,null,null,null,null,null,null,null,null,null,null,null,null,null,352,6.1435589670200397,-3.4296048435721242E-6,2.753087648558584E-5,null,-6.8592096871442484E-6,5.5061752971171681E-5]
[null,null,null,null,null,null,null,null,null,null,null,null,null,null,null,null,null,null,null,null,null,null,null,null,null,null,null,null,null,null,null,null,null,null,null,null,null,null,null,null,null,353,6.1610122595399828,-3.0031930562873666E-6,2.7594210466471129E-5,null,-6.0063861125747333E-6,5.5188420932942257E-5]
[null,null,null,null,null,null,null,null,null,null,null,null,null,null,null,null,null,null,null,null,null,null,null,null,null,null,null,null,null,null,null,null,null,null,null,null,null,null,null,null,null,354,6.1784655520599268,-2.5758664673050574E-6,2.7649138983537209E-5,null,-5.1517329346101149E-6,5.5298277967074418E-5]
[null,null,null,null,null,null,null,null,null,null,null,null,null,null,null,null,null,null,null,null,null,null,null,null,null,null,null,null,null,null,null,null,null,null,null,null,null,null,null,null,null,355,6.1959188445798699,-2.1477552444438506E-6,2.7695645305025684E-5,null,-4.2955104888877013E-6,5.5391290610051369E-5]
[null,null,null,null,null,null,null,null,null,null,null,null,null,null,null,null,null,null,null,null,null,null,null,null,null,null,null,null,null,null,null,null,null,null,null,null,null,null,null,null,null,356,6.2133721370998138,-1.718989794529392E-6,2.7733715264660506E-5,null,-3.437979589058784E-6,5.5467430529321011E-5]
[null,null,null,null,null,null,null,null,null,null,null,null,null,null,null,null,null,null,null,null,null,null,null,null,null,null,null,null,null,null,null,null,null,null,null,null,null,null,null,null,null,357,6.2308254296197561,-1.2897007236713351E-6,2.7763337265963179E-5,null,-2.5794014473426702E-6,5.5526674531926357E-5]
[null,null,null,null,null,null,null,null,null,null,null,null,null,null,null,null,null,null,null,null,null,null,null,null,null,null,null,null,null,null,null,null,null,null,null,null,null,null,null,null,null,358,6.2482787221397,-8.6001879747919314E-7,2.7784502285785152E-5,null,-1.7200375949583863E-6,5.5569004571570305E-5]
[null,null,null,null,null,null,null,null,null,null,null,null,null,null,null,null,null,null,null,null,null,null,null,null,null,null,null,null,null,null,null,null,null,null,null,null,null,null,null,null,null,359,6.2657320146596422,-4.3007490123019336E-7,2.7797203877056359E-5,null,-8.6014980246038671E-7,5.5594407754112718E-5]

{"sheet":"Buoy","index":1,"n_rows":374,"n_cols":49,"rows_kept":374,"cut":false,"hidden":false,"merged":[[31,12,31,13],[32,12,32,13],[33,12,33,13],[33,14,33,15],[33,16,33,17],[31,14,31,15],[31,16,31,17],[32,14,32,15],[32,16,32,17],[2,2,2,7],[33,2,33,9],[34,2,34,9],[16,3,16,7],[25,2,25,7],[27,2,27,7],[29,2,30,9],[32,2,32,9],[3,2,3,7]]}
[null,null,null,null,null,null,null,null,null,null,null,null,null,null,null,null,null,null,null,null,null,null,null,null,null,"BUOY"]
[null,null,null,null,null,null,null,null,null,null,null,null,null,null,null,null,null,null,null,null,null,null,null,null,null,null,null,null,null,null,null,null,null,null,null,null,null,"1 yard","1 yard",null,null,null,null,"1 yrd","PT circle","2DRMS"]
[null,null,"D7NS 1010                                                IS THIS BUOY ON STATION?",null,null,null,null,null,null,null,null,null,null,null,null,null,null,null,null,null,null,null,null,null,null,null,null,null,null,null,null,null,null,null,null,null,null,{"$f":"AL5/AL22","v":8.2142425988774217E-6},{"$f":"AM5/AM22","v":9.2190599910674295E-6},null,null,null,"Lon",{"$f":"AM3","v":9.2190599910674295E-6},{"$f":"AM3*Buoy!D18","v":2.3047649977668574E-4},{"$f":"AR3*AD19","v":6.146039994044953E-5}]
[null,null,"USE THIS CALCULATOR ONLY IF YOU LOCATED THE BUOY SINKER",null,null,null,null,null,null,null,null,null,null,null,null,null,null,null,null,null,null,null,null,null,null,null,null,null,null,null,null,null,null,null,null,null,null,null,null,null,null,null,"Lat",{"$f":"AL3","v":8.2142425988774217E-6},{"$f":"AL3*Buoy!D18","v":2.0535606497193554E-4},{"$f":"AL3*AD19","v":5.4761617325849483E-5}]
[null,null,"LLNR",24885,null,"DATE:",null,"2021-11-13",null,null,null,null,null,null,null,null,null,null,null,null,null,null,null,null,null,null,null,null,null,"Degrees","Radians",null,null,null,null,null,null,1E-3,1E-3]
[null,null,"FIX","Deg",null,"Min",null,"Sec",null,null,null,null,null,null,null,null,null,null,null,null,null,null,null,null,null,null,null,null,null,null,null,null,null,null,null,null,null,"scaleLat","scaleLong",null,null,null,null,null,"X","Y"]
[null,null,"Latitude",27,"°",0,"'",0,"''","N",null,null,null,null,null,null,null,null,null,null,null,null,null,null,null,null,null,null,"Lat1",{"$f":"Buoy!D7+Buoy!F7/60+Buoy!H7/60/60","v":27},{"$f":"AD7*PI()/180","v":0.47123889803846897},null,null,null,null,null,null,{"$f":"AD11+AL5","v":27.001000000000001},{"$f":"AD11","v":27},null,null,null,null,"Fix",{"$f":"IF($AA$40<>0,AD11-AD7,#N/A)","v":0},{"$f":"IF($AA$40<>0,AD12-AD8,#N/A)","v":0}]
[null,null,"Longitude",80,"°",0,"'",0,"''","W",null,null,null,null,null,null,null,null,null,null,null,null,null,null,null,null,null,null,"Lon1",{"$f":"-(Buoy!D8+Buoy!F8/60+Buoy!H8/60/60)","v":-80},{"$f":"AD8*PI()/180","v":-1.3962634015954636},null,null,null,null,null,null,{"$f":"AD12","v":-80},{"$f":"AD12+AM5","v":-79.998999999999995},null,null,null,null,"AP",{"$f":"IF($AA$40<>0,0,#N/A)","v":0},{"$f":"IF($AA$40<>0,0,#N/A)","v":0}]
[null,null,null,12,null,null,null,null,null,null,null,null,null,null,null,null,null,null,null,null,null,null,null,null,null,null,null,null,null,null,null,null,null,null,null,null,null,{"$f":"AL7*PI()/180","v":0.47125635133098892},{"$f":"AM7*PI()/180","v":0.47123889803846897}]
[null,null,"AP (Assigned Position)",null,null,null,null,null,null,null,null,null,null,null,null,null,null,null,null,null,null,null,null,null,null,null,null,null,null,null,null,null,null,null,null,null,null,{"$f":"AL8*PI()/180","v":-1.3962634015954636},{"$f":"AM8*PI()/180","v":-1.3962459483029437}]
[null,null,"Latitude",27,"°",0,"'",0,"''","N",null,null,null,null,null,null,null,null,null,null,null,null,null,null,null,null,null,null,"Lat2",{"$f":"Buoy!D11+Buoy!F11/60+Buoy!H11/60/60","v":27},{"$f":"AD11*PI()/180","v":0.47123889803846897},null,null,null,null,null,null,{"$f":"AD11","v":27},{"$f":"AD11","v":27}]
[null,null,"Longitude",80,"°",0,"'",0,"''","W",null,null,null,null,null,null,null,null,null,null,null,null,null,null,null,null,null,null,"Lon2",{"$f":"-(Buoy!D12+Buoy!F12/60+Buoy!H12/60/60)","v":-80},{"$f":"AD12*PI()/180","v":-1.3962634015954636},null,null,null,null,null,null,{"$f":"AD12","v":-80},{"$f":"AD12","v":-80}]
[null,null,null,null,null,null,null,null,null,null,null,null,null,null,null,null,null,null,null,null,null,null,null,null,null,null,null,null,null,null,null,null,null,null,null,null,null,{"$f":"AL11*PI()/180","v":0.47123889803846897},{"$f":"AM11*PI()/180","v":0.47123889803846897}]
[null,null,"GPS Error","Type",null,"Error Value",null,"Unit",null,null,null,null,null,null,null,null,null,null,null,null,null,null,null,null,null,null,null,null,null,null,null,null,null,null,null,null,null,{"$f":"AL12*PI()/180","v":-1.3962634015954636},{"$f":"AM12*PI()/180","v":-1.3962634015954636},null,null,null,null,null,"PT circle",null,null,"2DRMS"]
[null,null,null,"DRMS",null,10,null,"feet",null,null,null,null,null,null,null,null,null,null,null,null,null,null,null,null,null,null,null,null,null,null,null,null,null,null,null,null,null,3443.89849,3443.89849,null,null,null,0,{"$f":"AQ15*PI()/180","v":0},{"$f":"$AS$8+$AS$4*SIN(AR15)","v":0},{"$f":"$AT$8+$AS$3*COS(AR15)","v":2.3047649977668574E-4},null,{"$f":"$AS$7+$AT$4*SIN(AR15)","v":0},{"$f":"$AT$7+$AT$3*COS(AR15)","v":6.146039994044953E-5}]
[null,null,null,null,null,null,null,null,null,null,null,null,null,null,null,null,null,null,null,null,null,null,null,null,null,null,null,null,null,null,null,null,null,null,null,null,null,{"$f":"AL13-AL9","v":-1.7453292519953312E-5},{"$f":"AM13-AM9","v":0},null,null,null,1,1.7453292519943295E-2,3.583957510251419E-6,2.3044139708943177E-4,null,9.5572200273371179E-7,6.1451039223848472E-5]
[null,null,"Waterway Type","Deep/Shallow Water Not Maintained-Unrestricted",null,null,null,null,null,null,null,null,null,null,null,null,null,null,null,null,null,null,null,null,null,null,"2DMRS",null,"Maxiumum 2DRMS",null,{"$f":"9*3.2808","v":29.527200000000001},"ft",null,null,null,null,null,{"$f":"AL14-AL10","v":0},{"$f":"AM14-AM10","v":-1.7453292519897801E-5},null,null,null,2,3.4906585039886591E-2,7.1668233123266392E-6,2.3033609972028841E-4,null,1.9111528832871038E-6,6.1422959925410247E-5]
[null,null,{"$f":"IF(LEN(D18),\"Positioning Tolerance\",\"\")","v":"Positioning Tolerance"},{"$f":"IF(D17=\"Deep/Shallow Water Maintained-Restricted\",15,IF(D17=\"Deep/Shallow Water Not Maintained-Unrestricted\",25,IF(D17=\"Sea Coastal and Coastal\",40,\"\")))","v":25},null,{"$f":"IF(LEN(D18),\"yards\",\"\")","v":"yards"},null,null,null,null,null,null,null,null,null,null,null,null,null,null,null,null,null,null,null,null,{"$f":"VLOOKUP(D15,'Fixed Aid'!$Z$8:$AA$13,2,FALSE)*F15","v":20},{"$f":"H15","v":"feet"},null,null,null,null,null,null,null,null,null,{"$f":" (SIN($AL$16/2))^2+COS($AL$9)*COS($AL$13)*(SIN($AL$17/2))^2","v":7.6154354944831399E-11},{"$f":" (SIN($AM$16/2))^2+COS($AM$9)*COS($AM$13)*(SIN($AM$17/2))^2","v":6.0458380839240272E-11},null,null,null,3,5.2359877559829883E-2,1.0747506030594349E-5,2.3016063974385433E-4,null,2.8660016081584931E-6,6.1376170598361152E-5]
[null,null,null,null,null,null,null,null,null,null,null,null,null,null,null,null,null,null,null,null,null,null,null,null,null,null,{"$f":"VLOOKUP(D15,'Fixed Aid'!$Z$8:$AA$13,2,FALSE)*F15*VLOOKUP(H15,'Fixed Aid'!$Z$14:$AB$16,3,FALSE)","v":20},"feet",null,{"$f":"IF(Buoy!AA19/3<>0,Buoy!AA19/3,\"\")","v":6.666666666666667},"yards",null,null,null,null,null,null,{"$f":"2*ATAN2(SQRT(1-$AL$18),SQRT($AL$18))","v":1.7453292519953312E-5},{"$f":"2*ATAN2(SQRT(1-$AM$18),SQRT($AM$18))","v":1.55509975037563E-5},null,null,null,4,6.9813170079773182E-2,1.4324914954411711E-5,2.299150706069381E-4,null,3.8199773211764565E-6,6.1310685495183492E-5]
[null,null,null,null,null,null,null,null,null,null,null,null,null,null,null,null,null,null,null,null,null,null,null,null,null,null,null,null,null,null,null,null,null,null,null,null,null,null,null,null,null,null,5,8.7266462599716474E-2,1.7897960370365391E-5,2.2959946711227771E-4,null,4.7727894320974376E-6,6.1226524563274057E-5]
[null,null,{"$f":"IF($AA$40<>0,\"Distance from Fix to AP\",\"\")","v":"Distance from Fix to AP"},{"$f":"IF($AA$40>0,TEXT(AA25,\"0.00\"& \" ft\"),\"\")","v":"0.00 ft"},null,{"$f":"IF($AA$40>0,\"=   \"&TEXT(AA26,\"0.00\")&\" yd\",\"\")","v":"=   0.00 yd"},null,null,null,null,null,null,null,null,null,null,null,null,null,null,null,null,null,null,null,null,null,null,null,null,null,null,null,null,null,null,null,{"$f":"AL19*AL15","v":6.0107367754995505E-2},{"$f":"AM19*AM15","v":5.3556056821180094E-2},null,null,null,6,0.10471975511965977,2.1465553894208821E-5,2.2921392539575493E-4,null,5.7241477051223528E-6,6.1123713438867978E-5]
[null,null,null,null,null,null,null,null,null,null,null,null,null,null,null,null,null,null,null,null,null,null,null,null,null,null,{"$f":"SUM(AB22:AE22)","v":1},null,{"$f":"IF(Buoy!$D$18=15,1,\"\")","v":""},{"$f":"IF(Buoy!$D$18=25,1,\"\")","v":1},{"$f":"IF(Buoy!$D$18=40,1,\"\")","v":""},null,null,null,null,null,null,{"$f":"AL21*6076.11549/3","v":121.73976942641825},{"$f":"AM21*6076.11549/3","v":108.47092881149752},null,null,null,7,0.12217304763960307,2.5026608802394589E-5,2.2875856289711143E-4,null,6.6737623473052244E-6,6.1002283439229718E-5]
[null,null,{"$f":"IF($AA$40<>0,\"Bearing from Fix to AP\",\"\")","v":"Bearing from Fix to AP"},{"$f":"IF(Buoy!$AA$40>0,Buoy!AA28,\"\")","v":""},{"$f":"IF($AA$40<>0,\"° T\",\"\")","v":"° T"},null,null,null,null,null,null,null,null,null,null,null,null,null,null,null,null,null,null,null,null,null,null,null,null,null,null,null,null,null,null,null,null,null,null,null,null,null,8,0.13962634015954636,2.8580040363100941E-5,2.2823351832417557E-4,null,7.6213440968269185E-6,6.0862271553113479E-5]
[null,null,null,null,null,null,null,null,null,null,null,null,null,null,null,null,null,null,null,null,null,null,null,null,null,null,null,null,null,null,null,null,"APP - MP + 2DRMS < PT",null,null,null,null,null,null,null,null,null,9,0.15707963267948966,3.2124766166651626E-5,2.2763895161061038E-4,null,8.5666043111071017E-6,6.07037204294961E-5]
[null,null,{"$f":"IF($AA$40<>0,\"2DRMS\",\"\")","v":"2DRMS"},{"$f":"IF($AA$40>0,TEXT(AA19,\"0.00\"& \" ft\"),\"\")","v":"20.00 ft"},null,{"$f":"IF($AA$40<>0,IF(AA19/3<>0,\"=   \"&TEXT(AA19/3,\"0.00\")&\" yd\",\"\"),\"\")","v":"=   6.67 yd"},null,null,null,null,null,null,null,null,null,null,null,null,null,null,null,null,null,null,null,null,{"$f":"IFERROR($AD$36*6076.11549,\"\")","v":0},null,"r",3443.89849,"nm",null,"MPP to AP",{"$f":"AA25","v":0},null,null,null,null,null,null,null,null,10,0.17453292519943295,3.5659706455228354E-5,2.2697504386719655E-4,null,9.5092550547275619E-6,6.0526678364585746E-5]
[null,null,{"$f":"IF(AA19>AE17,\"2DRMS EXCEEDS MAX 29.5ft - CANNOT USE THE FIX\",\"\")","v":""},null,null,null,null,null,null,null,null,null,null,null,null,null,null,null,null,null,null,null,null,null,null,null,{"$f":"AA25/3","v":0},null,null,null,null,null,"2DRMS",{"$f":"Buoy!AA19","v":20},null,null,null,null,null,null,null,null,11,0.19198621771937624,3.9183784451775484E-5,2.2624199732666417E-4,null,1.044900918714013E-5,6.033119928711045E-5]
[null,null,null,null,null,null,null,null,null,null,null,null,null,null,null,null,null,null,null,null,null,null,null,null,null,null,null,null,null,null,null,null,"SUM",{"$f":"AH26+AH25","v":20},null,null,null,null,null,null,null,null,12,0.20943951023931953,4.2695926687996755E-5,2.2544003528209065E-4,null,1.138558045013247E-5,6.0117342741890845E-5]
[null,null,{"$f":"IF(Buoy!AH31=1,\"BUOY IS ON STATION (Within Positioning Tolerance)\", IF(Buoy!$AH$31=2,\"BUOY IS OFF STATION\",\"\"))","v":"BUOY IS ON STATION (Within Positioning Tolerance)"},null,null,null,null,null,null,{"$f":"Buoy!AH31","v":1},null,null,null,null,null,null,null,null,null,null,null,null,null,null,null,null,{"$f":"IFERROR(AD34*180/PI(),\"\")","v":""},null,"dLat",{"$f":"AE11-AE7","v":0},null,null,"YARDS",{"$f":"AH27/3","v":6.666666666666667},null,null,null,null,null,null,null,null,13,0.22689280275926285,4.6195063331344144E-5,2.2456940201888355E-4,null,1.2318683555025106E-5,5.988517387170228E-5]
[null,null,null,null,null,null,null,null,null,null,null,null,null,null,null,null,null,null,null,null,null,null,null,null,null,null,null,null,"dLon",{"$f":"AE12-AE8","v":0},null,null,"PT",{"$f":"Buoy!D18","v":25},null,null,null,null,null,null,null,null,14,0.24434609527920614,4.9680128510899173E-5,2.2363036274036883E-4,null,1.3248034269573115E-5,5.9634763397431687E-5]
[null,null,"IF [(AP to MPP) + 2DRMS] > PT, BUOY IS OFF STATION",null,null,null,null,null,null,null,null,null,null,null,null,null,null,null,null,null,null,null,null,null,null,null,null,null,"a",{"$f":" (SIN($AD$28/2))^2+COS($AE$7)*COS($AE$11)*(SIN($AD$29/2))^2","v":0},null,null,"PT-YARDS",{"$f":"AH29-AH28","v":18.333333333333332},null,null,null,null,null,null,null,null,15,0.26179938779914941,5.3150060642047561E-5,2.2262320348700744E-4,null,1.4173349504546018E-5,5.9366187596535318E-5]
[null,null,null,null,null,null,null,null,null,null,null,null,"Quick conversion tool:",null,null,null,null,null,null,null,null,null,null,null,null,null,null,null,"c",{"$f":"2*ATAN2(SQRT(1-$AD$30),SQRT($AD$30))","v":0},null,null,"Y/N",{"$f":"IF(AND(AA39,AA40),IFERROR(MAX(AI31:AJ31),\"\"),\"\")","v":1},{"$f":"IF(AND($AH$30<>0,$AH$30>0),1,0)","v":1},{"$f":"IF(AND($AH$30<>0,$AH$30<0),2,0)","v":0},null,null,null,null,null,null,16,0.27925268031909273,5.6603802749848196E-5,2.2154823104926451E-4,null,1.5094347399959521E-5,5.9079528279803869E-5]
[null,null,null,null,null,null,null,null,null,null,null,null,"Decimal",null,32.695255000000003,null,-79.883472999999995,null,null,null,null,null,null,null,null,null,null,null,null,null,null,null,null,null,null,null,null,null,null,null,null,null,17,0.29670597283903605,6.0040302790997883E-5,2.2040577287415805E-4,null,1.601074741093277E-5,5.8774872766442149E-5]
[null,null,"District 7 recommends that you save this file as a pdf and include it with Form 7054.",null,null,null,null,null,null,null,null,null,"DM",null,{"$f":"TEXT(O34,\"[hh]° mm\") & TEXT((O34*24*60-TRUNC(O34*24*60)),\".0000'\")","v":"32° 41.7153'"},null,{"$f":"TEXT(Q34,\"[hh]° mm\") & TEXT((Q34*24*60-TRUNC(Q34*24*60)),\".0000'\")","v":"79° 53.0084'"},null,null,null,null,null,null,null,null,null,"DM",null,null,null,null,null,null,null,null,null,null,null,null,null,null,null,18,0.31415926535897931,6.345851397429394E-5,2.1919617696551546E-4,null,1.692227039314505E-5,5.845231385747079E-5]
[null,null,null,null,null,null,null,null,null,null,null,null,"DMS",null,{"$f":"ABS(O32)/24","v":1.3623022916666667},null,{"$f":"ABS(Q32/24)","v":3.3284780416666666},null,null,null,null,null,null,null,null,null,{"$f":"TEXT(Buoy!O32,\"[hh]° mm\") & TEXT((Buoy!O32*24*60-TRUNC(Buoy!O32*24*60)),\".0000'\")","v":"784° 41.1672'"},null,"Bearing",{"$f":"MOD(ATAN2((COS($AE$7)*SIN($AE$11))-(SIN($AE$7)*COS($AE$11)*COS($AE$12-$AE$8)), SIN($AE$12-$AE$8)*COS($AE$11)),2*PI())","v":{"$error":"#DIV/0!"}},null,null,null,null,null,null,null,null,null,null,null,null,19,0.33161255787892258,6.6857395079497004E-5,2.1791981177796818E-4,null,1.7828638687865869E-5,5.8111949807458175E-5]
[null,null,null,null,null,null,null,null,null,null,null,null,null,null,null,null,null,null,null,null,null,null,null,null,null,null,null,null,null,null,null,null,null,null,null,null,null,null,null,null,null,null,20,0.3490658503988659,7.0235910774496722E-5,2.1657706610471667E-4,null,1.8729576206532462E-5,5.7753884294591112E-5]
[null,null,"U.S.C.G. AUXILIARY SEVENTH DISTRICT NAVIGATION SYSTEMS",null,null,null,null,null,null,null,null,null,null,null,null,null,null,null,null,null,null,null,null,null,null,null,null,null,null,{"$f":"AD31*AD25","v":0},"nm",null,null,"ADD PT value present check here",null,null,null,null,null,null,null,null,21,0.36651914291880922,7.3593031930683993E-5,2.151683489591005E-4,null,1.9624808514849069E-5,5.7378226389093465E-5]
[null,null,"D7NS 1010    SEPTEMBER 12, 2022",null,null,null,null,null,null,null,null,null,null,null,null,null,null,null,null,null,null,null,null,null,null,null,null,null,null,null,null,null,null,null,null,null,null,null,null,null,null,null,22,0.38397243543875248,7.6927735936433461E-5,2.1369408945000882E-4,null,2.0514062916382259E-5,5.6985090520002346E-5]
[null,null,null,null,null,null,null,null,null,null,null,null,null,null,null,null,null,null,null,null,null,null,null,null,null,null,null,null,null,null,null,null,null,null,null,null,null,null,null,null,null,null,23,0.40142572795869574,8.0239007008600991E-5,2.1215473665116952E-4,null,2.1397068535626934E-5,5.6574596440311871E-5]
[null,null,null,null,null,null,null,null,null,null,null,null,null,null,null,null,null,null,null,null,null,null,null,null,null,null,{"$f":"LEN(C26)=0","v":true},null,null,null,null,null,null,null,null,null,null,null,null,null,null,null,24,0.41887902047863906,8.3525836501940968E-5,2.1055075946435717E-4,null,2.2273556400517594E-5,5.6146869190495248E-5]
[null,null,null,null,null,null,null,null,null,null,null,null,null,null,null,null,null,null,null,null,null,null,null,null,null,null,{"$f":"IF(AND(AB40,AC40,AD40),1,0)","v":1},{"$f":"COUNTA(D7,D8,F7,F8,H7,H8,F11,F12,H11,H12,D11,D12,F15,D15,H15)=15","v":true},{"$f":"NOT(ISERROR(SUM(AD7:AD8,AD11:AD12)))","v":true},{"$f":"D17<>\" -- Select Waterway Type --\"","v":true},null,null,null,null,null,null,null,null,null,null,null,null,25,0.43633231299858238,8.6787223216349533E-5,2.08882646476561E-4,null,2.3143259524359876E-5,5.5702039060416268E-5]
[null,null,null,null,null,null,null,null,null,null,null,null,null,null,null,null,null,null,null,null,null,null,null,null,null,null,null,null,null,null,null,null,null,null,null,null,null,null,null,null,null,null,26,0.4537856055185257,9.0022173701839668E-5,2.0715090581115644E-4,null,2.4005912987157248E-5,5.5240241549641718E-5]
[null,null,null,null,null,null,null,null,null,null,null,null,null,null,null,null,null,null,null,null,null,null,null,null,null,null,null,null,null,null,null,null,null,null,null,null,null,null,null,null,null,null,27,0.47123889803846897,9.3229702561155843E-5,2.0535606497312591E-4,null,2.486125401630823E-5,5.476161732616691E-5]
[null,null,null,null,null,null,null,null,null,null,null,null,null,null,null,null,null,null,null,null,null,null,null,null,null,null,null,null,null,null,null,null,null,null,null,null,null,null,null,null,null,null,28,0.48869219055841229,9.6408832749935513E-5,2.034986706883757E-4,null,2.5709022066649473E-5,5.4266312183566851E-5]
[null,null,null,null,null,null,null,null,null,null,null,null,null,null,null,null,null,null,null,null,null,null,null,null,null,null,null,null,null,null,null,null,null,null,null,null,null,null,null,null,null,null,29,0.50614548307835561,9.9558595874326184E-5,2.015792887371979E-4,null,2.654895889982032E-5,5.3754476996586104E-5]
[null,null,null,null,null,null,null,null,null,null,null,null,null,null,null,null,null,null,null,null,null,null,null,null,null,null,null,null,null,null,null,null,null,null,null,null,null,null,null,null,null,null,30,0.52359877559829882,1.0267803248596775E-4,1.9959850378192836E-4,null,2.7380808662924738E-5,5.3226267675180898E-5]
[null,null,null,null,null,null,null,null,null,null,null,null,null,null,null,null,null,null,null,null,null,null,null,null,null,null,null,null,null,null,null,null,null,null,null,null,null,null,null,null,null,null,31,0.54105206811824214,1.0576619237424969E-4,1.9755691918885271E-4,null,2.8204317966466585E-5,5.2681845117027391E-5]
[null,null,null,null,null,null,null,null,null,null,null,null,null,null,null,null,null,null,null,null,null,null,null,null,null,null,null,null,null,null,null,null,null,null,null,null,null,null,null,null,null,null,32,0.55850536063818546,1.088221348557543E-4,1.9545515684441528E-4,null,2.9019235961534482E-5,5.2121375158510741E-5]
[null,null,null,null,null,null,null,null,null,null,null,null,null,null,null,null,null,null,null,null,null,null,null,null,null,null,null,null,null,null,null,null,null,null,null,null,null,null,null,null,null,null,33,0.57595865315812877,1.1184492906079818E-4,1.9329385696578643E-4,null,2.982531441621285E-5,5.1545028524209716E-5]
[null,null,null,null,null,null,null,null,null,null,null,null,null,null,null,null,null,null,null,null,null,null,null,null,null,null,null,null,null,null,null,null,null,null,null,null,null,null,null,null,null,null,34,0.59341194567807209,1.1483365421698397E-4,1.9107367790584614E-4,null,3.0622307791195728E-5,5.0952980774892307E-5]
[null,null,null,null,null,null,null,null,null,null,null,null,null,null,null,null,null,null,null,null,null,null,null,null,null,null,null,null,null,null,null,null,null,null,null,null,null,null,null,null,null,null,35,0.6108652381980153,1.1778739992967666E-4,1.8879529595264348E-4,null,3.1409973314580446E-5,5.0345412254038259E-5]
[null,null,null,null,null,null,null,null,null,null,null,null,null,null,null,null,null,null,null,null,null,null,null,null,null,null,null,null,null,null,null,null,null,null,null,null,null,null,null,null,null,null,36,0.62831853071795862,1.2070526645931863E-4,1.8645940512339255E-4,null,3.2188071055818304E-5,4.9722508032904681E-5]
[null,null,null,null,null,null,null,null,null,null,null,null,null,null,null,null,null,null,null,null,null,null,null,null,null,null,null,null,null,null,null,null,null,null,null,null,null,null,null,null,null,null,37,0.64577182323790194,1.235863649954989E-4,1.8406671695306819E-4,null,3.2956363998799717E-5,4.9084457854151517E-5]
[null,null,null,null,null,null,null,null,null,null,null,null,null,null,null,null,null,null,null,null,null,null,null,null,null,null,null,null,null,null,null,null,null,null,null,null,null,null,null,null,null,null,38,0.66322511575784515,1.2642981792769354E-4,1.8161796027766562E-4,null,3.3714618114051618E-5,4.8431456074044169E-5]
[null,null,null,null,null,null,null,null,null,null,null,null,null,null,null,null,null,null,null,null,null,null,null,null,null,null,null,null,null,null,null,null,null,null,null,null,null,null,null,null,null,null,39,0.68067840827778847,1.2923475911259428E-4,1.7911388101218977E-4,null,3.4462602430025146E-5,4.7763701603250605E-5]
[null,null,null,null,null,null,null,null,null,null,null,null,null,null,null,null,null,null,null,null,null,null,null,null,null,null,null,null,null,null,null,null,null,null,null,null,null,null,null,null,null,null,40,0.69813170079773179,1.320003341379441E-4,1.7655524192344249E-4,null,3.5200089103451764E-5,4.708139784625133E-5]
[null,null,null,null,null,null,null,null,null,null,null,null,null,null,null,null,null,null,null,null,null,null,null,null,null,null,null,null,null,null,null,null,null,null,null,null,null,null,null,null,null,null,41,0.715584993317675,1.3472570058279952E-4,1.7394282239767634E-4,null,3.5926853488746543E-5,4.6384752639380352E-5]
[null,null,null,null,null,null,null,null,null,null,null,null,null,null,null,null,null,null,null,null,null,null,null,null,null,null,32,41,null,null,null,null,null,null,null,null,null,null,null,null,null,null,42,0.73303828583761843,1.3741002827414033E-4,1.7127741820318582E-4,null,3.6642674206437423E-5,4.5673978187516218E-5]
[null,null,null,null,null,null,null,null,null,null,null,null,null,null,null,null,null,null,null,null,null,null,null,null,null,null,79,53,null,null,null,null,null,null,null,null,null,null,null,null,null,null,43,0.75049157835756164,1.4005249953974791E-4,1.6855984124790904E-4,null,3.7347333210599453E-5,4.4949290999442417E-5]
[null,null,null,null,null,null,null,null,null,null,null,null,null,null,null,null,null,null,null,null,null,null,null,null,null,null,null,null,null,null,null,null,null,null,null,null,null,null,null,null,null,null,44,0.76794487087750496,1.426523094572767E-4,1.6579091933211231E-4,null,3.8040615855273796E-5,4.4210911821896612E-5]
[null,null,null,null,null,null,null,null,null,null,null,null,null,null,null,null,null,null,null,null,null,null,null,null,null,null,null,null,null,null,null,null,null,null,null,null,null,null,null,null,null,null,45,0.78539816339744828,1.4520866609944085E-4,1.629714958962343E-4,null,3.87223109598509E-5,4.3459065572329147E-5]
[null,null,null,null,null,null,null,null,null,null,null,null,null,null,null,null,null,null,null,null,null,null,null,null,null,null,32,41,null,null,null,null,null,null,null,null,null,null,null,null,null,null,46,0.80285145591739149,1.4772079077524317E-4,1.60102429763966E-4,null,3.9392210873398182E-5,4.2693981270390931E-5]
[null,null,null,null,null,null,null,null,null,null,null,null,null,null,null,null,null,null,null,null,null,null,null,null,null,null,79,53,null,null,null,null,null,null,null,null,null,null,null,null,null,null,47,0.82030474843733492,1.5018791826717191E-4,1.5718459488064446E-4,null,4.0050111537912517E-5,4.1915891968171857E-5]
[null,null,null,null,null,null,null,null,null,null,null,null,null,null,null,null,null,null,null,null,null,null,null,null,null,null,null,null,null,null,null,null,null,null,null,null,null,null,null,null,null,null,48,0.83775804095727813,1.5260929706429344E-4,1.5421888004704098E-4,null,4.0695812550478259E-5,4.1125034679210929E-5]
[null,null,null,null,null,null,null,null,null,null,null,null,null,null,null,null,null,null,null,null,null,null,null,null,null,null,null,null,null,null,null,null,null,null,null,null,null,null,null,null,null,null,49,0.85521133347722145,1.5498418959116977E-4,1.5120618864862331E-4,null,4.132911722431194E-5,4.0321650306299549E-5]
[null,null,null,null,null,null,null,null,null,null,null,null,null,null,null,null,null,null,null,null,null,null,null,null,null,null,null,null,null,null,null,null,null,null,null,null,null,null,null,null,null,null,50,0.87266462599716477,1.5731187243253102E-4,1.4814743838037606E-4,null,4.1949832648674945E-5,3.9505983568100279E-5]
[null,null,null,null,null,null,null,null,null,null,null,null,null,null,null,null,null,null,null,null,null,null,null,null,null,null,null,null,null,null,null,null,null,null,null,null,null,null,null,null,null,null,51,0.89011791851710798,1.59591636553635E-4,1.4504356096726166E-4,null,4.2557769747636006E-5,3.8678282924603109E-5]
[null,null,null,null,null,null,null,null,null,null,null,null,null,null,null,null,null,null,null,null,null,null,null,null,null,null,null,null,null,null,null,null,null,null,null,null,null,null,null,null,null,null,52,0.90757121103705141,1.618227875162459E-4,1.4189550188040809E-4,null,4.3152743337665573E-5,3.7838800501442157E-5]
[null,null,null,null,null,null,null,null,null,null,null,null,null,null,null,null,null,null,null,null,null,null,null,null,null,null,null,null,null,null,null,null,null,null,null,null,null,null,null,null,null,null,53,0.92502450355699462,1.6400464569016674E-4,1.3870422004910922E-4,null,4.3734572184044467E-5,3.698779201309579E-5]
[null,null,null,null,null,null,null,null,null,null,null,null,null,null,null,null,null,null,null,null,null,null,null,null,null,null,null,null,null,null,null,null,null,null,null,null,null,null,null,null,null,null,54,0.94247779607693793,1.6613654646026172E-4,1.3547068756872535E-4,null,4.4303079056069795E-5,3.6125516684993426E-5]
[null,null,null,null,null,null,null,null,null,null,null,null,null,null,null,null,null,null,null,null,null,null,null,null,null,null,null,null,null,null,null,null,null,null,null,null,null,null,null,null,null,null,55,0.95993108859688125,1.6821784042890401E-4,1.321958894045741E-4,null,4.4858090781041074E-5,3.5252237174553089E-5]
[null,null,null,null,null,null,null,null,null,null,null,null,null,null,null,null,null,null,null,null,null,null,null,null,null,null,null,null,null,null,null,null,null,null,null,null,null,null,null,null,null,null,56,0.97738438111682457,1.7024789361378887E-4,1.2888082309189981E-4,null,4.539943829701037E-5,3.4368219491173284E-5]
[null,null,null,null,null,null,null,null,null,null,null,null,null,null,null,null,null,null,null,null,null,null,null,null,null,null,null,null,null,null,null,null,null,null,null,null,null,null,null,null,null,null,57,0.99483767363676778,1.7222608764105055E-4,1.2552649843201524E-4,null,4.5926956704280156E-5,3.3473732915204068E-5]
[null,null,null,null,null,null,null,null,null,null,null,null,null,null,null,null,null,null,null,null,null,null,null,null,null,null,null,null,null,null,null,null,null,null,null,null,null,null,null,null,null,null,58,1.0122909661567112,1.7415181993362525E-4,1.2213393718470573E-4,null,4.6440485315633407E-5,3.2569049915921527E-5]
[null,null,null,null,null,null,null,null,null,null,null,null,null,null,null,null,null,null,null,null,null,null,null,null,null,null,null,null,null,null,null,null,null,null,null,null,null,null,null,null,null,null,59,1.0297442586766543,1.7602450389480156E-4,1.187041727569918E-4,null,4.6939867705280422E-5,3.1654446068531144E-5]
[null,null,null,null,null,null,null,null,null,null,null,null,null,null,null,null,null,null,null,null,null,null,null,null,null,null,null,null,null,null,null,null,null,null,null,null,null,null,null,null,null,null,60,1.0471975511965976,1.7784356908690389E-4,1.152382498883429E-4,null,4.7424951756507704E-5,3.0730199970224772E-5]
[null,null,null,null,null,null,null,null,null,null,null,null,null,null,null,null,null,null,null,null,null,null,null,null,null,null,null,null,null,null,null,null,null,null,null,null,null,null,null,null,null,null,61,1.064650843716541,1.7960846140505299E-4,1.1173722433244001E-4,null,4.7895589708014132E-5,2.9796593155317338E-5]
[null,null,null,null,null,null,null,null,null,null,null,null,null,null,null,null,null,null,null,null,null,null,null,null,null,null,null,null,null,null,null,null,null,null,null,null,null,null,null,null,null,null,62,1.0821041362364843,1.8131864324595187E-4,1.0820216253558268E-4,null,4.8351638198920508E-5,2.8853910009488716E-5]
[null,null,null,null,null,null,null,null,null,null,null,null,null,null,null,null,null,null,null,null,null,null,null,null,null,null,null,null,null,null,null,null,null,null,null,null,null,null,null,null,null,null,63,1.0995574287564276,1.829735936716449E-4,1.046341413118391E-4,null,4.879295831243865E-5,2.7902437683157094E-5]
[null,null,null,null,null,null,null,null,null,null,null,null,null,null,null,null,null,null,null,null,null,null,null,null,null,null,null,null,null,null,null,null,null,null,null,null,null,null,null,null,null,null,64,{"$f":"AQ79*PI()/180","v":1.1170107212763709},{"$f":"$AS$8+$AS$4*SIN(AR79)","v":1.8457280856820057E-4},{"$f":"$AT$8+$AS$3*COS(AR79)","v":1.0103424751503829E-4},null,{"$f":"$AS$7+$AT$4*SIN(AR79)","v":4.921941561818683E-5},{"$f":"$AT$7+$AT$3*COS(AR79)","v":2.6942466004010208E-5}]
[null,null,null,null,null,null,null,null,null,null,null,null,null,null,null,null,null,null,null,null,null,null,null,null,null,null,null,null,null,null,null,null,null,null,null,null,null,null,null,null,null,null,65,1.1344640137963142,1.8611580079926939E-4,9.7403577707703631E-5,null,4.9630880213138512E-5,2.5974287388720967E-5]
[null,null,null,null,null,null,null,null,null,null,null,null,null,null,null,null,null,null,null,null,null,null,null,null,null,null,null,null,null,null,null,null,null,null,null,null,null,null,null,null,null,null,66,1.1519173063162575,1.8760210035447054E-4,9.3743237827029582E-5,null,5.0027226761192147E-5,2.4998196753874552E-5]
[null,null,null,null,null,null,null,null,null,null,null,null,null,null,null,null,null,null,null,null,null,null,null,null,null,null,null,null,null,null,null,null,null,null,null,null,null,null,null,null,null,null,67,1.1693705988362006,1.8903125449256132E-4,9.005434284800231E-5,null,5.0408334531349693E-5,2.4014491426133948E-5]
[null,null,null,null,null,null,null,null,null,null,null,null,null,null,null,null,null,null,null,null,null,null,null,null,null,null,null,null,null,null,null,null,null,null,null,null,null,null,null,null,null,null,68,1.1868238913561442,1.9040282787934683E-4,8.6338016443767435E-5,null,5.0774087434492493E-5,2.3023471051671315E-5]
[null,null,null,null,null,null,null,null,null,null,null,null,null,null,null,null,null,null,null,null,null,null,null,null,null,null,null,null,null,null,null,null,null,null,null,null,null,null,null,null,null,null,69,1.2042771838760873,1.9171640272028665E-4,8.2595390643348755E-5,null,5.1124374058743114E-5,2.2025437504893001E-5]
[null,null,null,null,null,null,null,null,null,null,null,null,null,null,null,null,null,null,null,null,null,null,null,null,null,null,null,null,null,null,null,null,null,null,null,null,null,null,null,null,null,null,70,1.2217304763960306,1.9297157888775938E-4,7.8827605486820536E-5,null,5.1459087703402507E-5,2.1020694796485477E-5]
[null,null,null,null,null,null,null,null,null,null,null,null,null,null,null,null,null,null,null,null,null,null,null,null,null,null,null,null,null,null,null,null,null,null,null,null,null,null,null,null,null,null,71,1.2391837689159739,1.9416797404294523E-4,7.5035808678040875E-5,null,5.1778126411452064E-5,2.0009548980810902E-5]
[null,null,null,null,null,null,null,null,null,null,null,null,null,null,null,null,null,null,null,null,null,null,null,null,null,null,null,null,null,null,null,null,null,null,null,null,null,null,null,null,null,null,72,1.2566370614359172,1.9530522375229022E-4,7.122115523504967E-5,null,5.2081393000610731E-5,1.8992308062679913E-5]
[null,null,null,null,null,null,null,null,null,null,null,null,null,null,null,null,null,null,null,null,null,null,null,null,null,null,null,null,null,null,null,null,null,null,null,null,null,null,null,null,null,null,73,1.2740903539558606,1.9638298159851606E-4,6.7384807138239075E-5,null,5.2368795092937626E-5,1.796928190353042E-5]
[null,null,null,null,null,null,null,null,null,null,null,null,null,null,null,null,null,null,null,null,null,null,null,null,null,null,null,null,null,null,null,null,null,null,null,null,null,null,null,null,null,null,74,1.2915436464758039,1.9740091928614235E-4,6.3527932976402857E-5,null,5.2640245142971302E-5,1.6940782127040762E-5]
[null,null,null,null,null,null,null,null,null,null,null,null,null,null,null,null,null,null,null,null,null,null,null,null,null,null,null,null,null,null,null,null,null,null,null,null,null,null,null,null,null,null,75,1.3089969389957472,1.9835872674148843E-4,5.965170759077314E-5,null,5.2895660464396919E-5,1.5907122024206171E-5]
[null,null,null,null,null,null,null,null,null,null,null,null,null,null,null,null,null,null,null,null,null,null,null,null,null,null,null,null,null,null,null,null,null,null,null,null,null,null,null,null,null,null,76,1.3264502315156903,1.9925611220712492E-4,5.5757311717152248E-5,null,5.3134963255233318E-5,1.4868616457907266E-5]
[null,null,null,null,null,null,null,null,null,null,null,null,null,null,null,null,null,null,null,null,null,null,null,null,null,null,null,null,null,null,null,null,null,null,null,null,null,null,null,null,null,null,77,1.3439035240356338,2.0009280233074581E-4,5.1845931626249008E-5,null,5.3358080621532223E-5,1.3825581766999735E-5]
[null,null,null,null,null,null,null,null,null,null,null,null,null,null,null,null,null,null,null,null,null,null,null,null,null,null,null,null,null,null,null,null,null,null,null,null,null,null,null,null,null,null,78,1.3613568165555769,2.0086854224843424E-4,4.7918758762329691E-5,null,5.356494459958247E-5,1.2778335669954584E-5]
[null,null,null,null,null,null,null,null,null,null,null,null,null,null,null,null,null,null,null,null,null,null,null,null,null,null,null,null,null,null,null,null,null,null,null,null,null,null,null,null,null,null,79,1.3788101090755203,2.0158309566229658E-4,4.3976989380291887E-5,null,5.3755492176612423E-5,1.1727197168077836E-5]
[null,null,null,null,null,null,null,null,null,null,null,null,null,null,null,null,null,null,null,null,null,null,null,null,null,null,null,null,null,null,null,null,null,null,null,null,null,null,null,null,null,null,80,1.3962634015954636,2.0223624491244084E-4,4.0021824181274174E-5,null,5.3929665309984227E-5,1.0672486448339779E-5]
[null,null,null,null,null,null,null,null,null,null,null,null,null,null,null,null,null,null,null,null,null,null,null,null,null,null,null,null,null,null,null,null,null,null,null,null,null,null,null,null,null,null,81,1.4137166941154069,2.0282779104327831E-4,3.6054467946910737E-5,null,5.4087410944874218E-5,9.6145247858428635E-6]
[null,null,null,null,null,null,null,null,null,null,null,null,null,null,null,null,null,null,null,null,null,null,null,null,null,null,null,null,null,null,null,null,null,null,null,null,null,null,null,null,null,null,82,1.43116998663535,2.0335755386412702E-4,3.2076129172343241E-5,null,5.422868103043388E-5,8.5536344459581985E-6]
[null,null,null,null,null,null,null,null,null,null,null,null,null,null,null,null,null,null,null,null,null,null,null,null,null,null,null,null,null,null,null,null,null,null,null,null,null,null,null,null,null,null,83,1.4486232791552935,2.038253720040999E-4,2.8088019698101314E-5,null,5.4353432534426644E-5,7.4901385861603498E-6]
[null,null,null,null,null,null,null,null,null,null,null,null,null,null,null,null,null,null,null,null,null,null,null,null,null,null,null,null,null,null,null,null,null,null,null,null,null,null,null,null,null,null,84,1.4660765716752369,2.0423110296125961E-4,2.4091354340964634E-5,null,5.4461627456335898E-5,6.4243611575905695E-6]
[null,null,null,null,null,null,null,null,null,null,null,null,null,null,null,null,null,null,null,null,null,null,null,null,null,null,null,null,null,null,null,null,null,null,null,null,null,null,null,null,null,null,85,1.4835298641951802,2.0457462314602622E-4,2.0087350523917512E-5,null,5.4553232838940326E-5,5.3566268063780026E-6]
[null,null,null,null,null,null,null,null,null,null,null,null,null,null,null,null,null,null,null,null,null,null,null,null,null,null,null,null,null,null,null,null,null,null,null,null,null,null,null,null,null,null,86,1.5009831567151233,2.0485582791882363E-4,1.6077227905310315E-5,null,5.4628220778352976E-5,4.2872607747494173E-6]
[null,null,null,null,null,null,null,null,null,null,null,null,null,null,null,null,null,null,null,null,null,null,null,null,null,null,null,null,null,null,null,null,null,null,null,null,null,null,null,null,null,null,87,1.5184364492350666,2.0507463162195403E-4,1.206220800733951E-5,null,5.4686568432521076E-5,3.2165888019572025E-6]
[null,null,null,null,null,null,null,null,null,null,null,null,null,null,null,null,null,null,null,null,null,null,null,null,null,null,null,null,null,null,null,null,null,null,null,null,null,null,null,null,null,null,88,1.5358897417550099,2.0523096760568981E-4,8.0435138439604342E-6,null,5.4728258028183958E-5,2.1449370250561159E-6]
[null,null,null,null,null,null,null,null,null,null,null,null,null,null,null,null,null,null,null,null,null,null,null,null,null,null,null,null,null,null,null,null,null,null,null,null,null,null,null,null,null,null,89,1.5533430342749535,2.0532478824857587E-4,4.0223695483451709E-6,null,5.4753276866286905E-5,1.0726318795587123E-6]
[null,null,null,null,null,null,null,null,null,null,null,null,null,null,null,null,null,null,null,null,null,null,null,null,null,null,null,null,null,null,null,null,null,null,null,null,null,null,null,null,null,null,90,1.5707963267948966,2.0535606497193554E-4,1.4118396379707671E-20,null,5.4761617325849483E-5,3.7649057012553793E-21]
[null,null,null,null,null,null,null,null,null,null,null,null,null,null,null,null,null,null,null,null,null,null,null,null,null,null,null,null,null,null,null,null,null,null,null,null,null,null,null,null,null,null,91,1.5882496193148399,2.0532478824857587E-4,-4.0223695483451938E-6,null,5.4753276866286905E-5,-1.0726318795587184E-6]
[null,null,null,null,null,null,null,null,null,null,null,null,null,null,null,null,null,null,null,null,null,null,null,null,null,null,null,null,null,null,null,null,null,null,null,null,null,null,null,null,null,null,92,1.605702911834783,2.0523096760568981E-4,-8.0435138439603546E-6,null,5.4728258028183958E-5,-2.1449370250560947E-6]
[null,null,null,null,null,null,null,null,null,null,null,null,null,null,null,null,null,null,null,null,null,null,null,null,null,null,null,null,null,null,null,null,null,null,null,null,null,null,null,null,null,null,93,1.6231562043547263,2.0507463162195403E-4,-1.206220800733943E-5,null,5.4686568432521076E-5,-3.2165888019571813E-6]
[null,null,null,null,null,null,null,null,null,null,null,null,null,null,null,null,null,null,null,null,null,null,null,null,null,null,null,null,null,null,null,null,null,null,null,null,null,null,null,null,null,null,94,1.6406094968746698,2.0485582791882363E-4,-1.6077227905310288E-5,null,5.4628220778352976E-5,-4.2872607747494097E-6]
[null,null,null,null,null,null,null,null,null,null,null,null,null,null,null,null,null,null,null,null,null,null,null,null,null,null,null,null,null,null,null,null,null,null,null,null,null,null,null,null,null,null,95,1.6580627893946132,2.0457462314602622E-4,-2.0087350523917532E-5,null,5.4553232838940326E-5,-5.3566268063780085E-6]
[null,null,null,null,null,null,null,null,null,null,null,null,null,null,null,null,null,null,null,null,null,null,null,null,null,null,null,null,null,null,null,null,null,null,null,null,null,null,null,null,null,null,96,1.6755160819145563,2.0423110296125964E-4,-2.4091354340964607E-5,null,5.4461627456335905E-5,-6.4243611575905618E-6]
[null,null,null,null,null,null,null,null,null,null,null,null,null,null,null,null,null,null,null,null,null,null,null,null,null,null,null,null,null,null,null,null,null,null,null,null,null,null,null,null,null,null,97,1.6929693744344996,2.0382537200409992E-4,-2.8088019698101283E-5,null,5.4353432534426651E-5,-7.4901385861603421E-6]
[null,null,null,null,null,null,null,null,null,null,null,null,null,null,null,null,null,null,null,null,null,null,null,null,null,null,null,null,null,null,null,null,null,null,null,null,null,null,null,null,null,null,98,1.7104226669544429,2.0335755386412705E-4,-3.2076129172343167E-5,null,5.4228681030433886E-5,-8.5536344459581764E-6]
[null,null,null,null,null,null,null,null,null,null,null,null,null,null,null,null,null,null,null,null,null,null,null,null,null,null,null,null,null,null,null,null,null,null,null,null,null,null,null,null,null,null,99,1.7278759594743864,2.0282779104327829E-4,-3.6054467946910764E-5,null,5.4087410944874218E-5,-9.6145247858428702E-6]
[null,null,null,null,null,null,null,null,null,null,null,null,null,null,null,null,null,null,null,null,null,null,null,null,null,null,null,null,null,null,null,null,null,null,null,null,null,null,null,null,null,null,100,1.7453292519943295,2.0223624491244084E-4,-4.0021824181274147E-5,null,5.3929665309984227E-5,-1.0672486448339772E-5]
[null,null,null,null,null,null,null,null,null,null,null,null,null,null,null,null,null,null,null,null,null,null,null,null,null,null,null,null,null,null,null,null,null,null,null,null,null,null,null,null,null,null,101,1.7627825445142729,2.0158309566229658E-4,-4.397698938029186E-5,null,5.3755492176612423E-5,-1.1727197168077829E-5]
[null,null,null,null,null,null,null,null,null,null,null,null,null,null,null,null,null,null,null,null,null,null,null,null,null,null,null,null,null,null,null,null,null,null,null,null,null,null,null,null,null,null,102,1.780235837034216,2.0086854224843427E-4,-4.7918758762329616E-5,null,5.3564944599582477E-5,-1.2778335669954564E-5]
[null,null,null,null,null,null,null,null,null,null,null,null,null,null,null,null,null,null,null,null,null,null,null,null,null,null,null,null,null,null,null,null,null,null,null,null,null,null,null,null,null,null,103,1.7976891295541593,2.0009280233074581E-4,-5.1845931626248981E-5,null,5.3358080621532223E-5,-1.3825581766999728E-5]
[null,null,null,null,null,null,null,null,null,null,null,null,null,null,null,null,null,null,null,null,null,null,null,null,null,null,null,null,null,null,null,null,null,null,null,null,null,null,null,null,null,null,104,1.8151424220741028,1.9925611220712492E-4,-5.5757311717152221E-5,null,5.3134963255233318E-5,-1.4868616457907259E-5]
[null,null,null,null,null,null,null,null,null,null,null,null,null,null,null,null,null,null,null,null,null,null,null,null,null,null,null,null,null,null,null,null,null,null,null,null,null,null,null,null,null,null,105,1.8325957145940461,1.9835872674148843E-4,-5.9651707590773161E-5,null,5.2895660464396919E-5,-1.5907122024206178E-5]
[null,null,null,null,null,null,null,null,null,null,null,null,null,null,null,null,null,null,null,null,null,null,null,null,null,null,null,null,null,null,null,null,null,null,null,null,null,null,null,null,null,null,106,1.8500490071139892,1.9740091928614235E-4,-6.352793297640283E-5,null,5.2640245142971302E-5,-1.6940782127040756E-5]
[null,null,null,null,null,null,null,null,null,null,null,null,null,null,null,null,null,null,null,null,null,null,null,null,null,null,null,null,null,null,null,null,null,null,null,null,null,null,null,null,null,null,107,1.8675022996339325,1.9638298159851608E-4,-6.7384807138239048E-5,null,5.2368795092937626E-5,-1.7969281903530413E-5]
[null,null,null,null,null,null,null,null,null,null,null,null,null,null,null,null,null,null,null,null,null,null,null,null,null,null,null,null,null,null,null,null,null,null,null,null,null,null,null,null,null,null,108,1.8849555921538759,1.9530522375229024E-4,-7.1221155235049656E-5,null,5.2081393000610738E-5,-1.8992308062679906E-5]
[null,null,null,null,null,null,null,null,null,null,null,null,null,null,null,null,null,null,null,null,null,null,null,null,null,null,null,null,null,null,null,null,null,null,null,null,null,null,null,null,null,null,109,1.902408884673819,1.9416797404294526E-4,-7.5035808678040807E-5,null,5.1778126411452071E-5,-2.0009548980810881E-5]
[null,null,null,null,null,null,null,null,null,null,null,null,null,null,null,null,null,null,null,null,null,null,null,null,null,null,null,null,null,null,null,null,null,null,null,null,null,null,null,null,null,null,110,1.9198621771937625,1.929715788877594E-4,-7.8827605486820509E-5,null,5.1459087703402513E-5,-2.1020694796485471E-5]
[null,null,null,null,null,null,null,null,null,null,null,null,null,null,null,null,null,null,null,null,null,null,null,null,null,null,null,null,null,null,null,null,null,null,null,null,null,null,null,null,null,null,111,1.9373154697137058,1.9171640272028665E-4,-8.2595390643348728E-5,null,5.1124374058743114E-5,-2.2025437504892994E-5]
[null,null,null,null,null,null,null,null,null,null,null,null,null,null,null,null,null,null,null,null,null,null,null,null,null,null,null,null,null,null,null,null,null,null,null,null,null,null,null,null,null,null,112,1.9547687622336491,1.9040282787934683E-4,-8.6338016443767462E-5,null,5.0774087434492493E-5,-2.3023471051671322E-5]
[null,null,null,null,null,null,null,null,null,null,null,null,null,null,null,null,null,null,null,null,null,null,null,null,null,null,null,null,null,null,null,null,null,null,null,null,null,null,null,null,null,null,113,1.9722220547535922,1.8903125449256134E-4,-9.0054342848002242E-5,null,5.04083345313497E-5,-2.4014491426133928E-5]
[null,null,null,null,null,null,null,null,null,null,null,null,null,null,null,null,null,null,null,null,null,null,null,null,null,null,null,null,null,null,null,null,null,null,null,null,null,null,null,null,null,null,114,1.9896753472735356,1.8760210035447054E-4,-9.3743237827029541E-5,null,5.0027226761192154E-5,-2.4998196753874542E-5]
[null,null,null,null,null,null,null,null,null,null,null,null,null,null,null,null,null,null,null,null,null,null,null,null,null,null,null,null,null,null,null,null,null,null,null,null,null,null,null,null,null,null,115,2.0071286397934789,1.8611580079926941E-4,-9.7403577707703604E-5,null,4.9630880213138519E-5,-2.5974287388720961E-5]
[null,null,null,null,null,null,null,null,null,null,null,null,null,null,null,null,null,null,null,null,null,null,null,null,null,null,null,null,null,null,null,null,null,null,null,null,null,null,null,null,null,null,116,2.0245819323134224,1.8457280856820055E-4,-1.010342475150383E-4,null,4.9219415618186823E-5,-2.6942466004010212E-5]
[null,null,null,null,null,null,null,null,null,null,null,null,null,null,null,null,null,null,null,null,null,null,null,null,null,null,null,null,null,null,null,null,null,null,null,null,null,null,null,null,null,null,117,2.0420352248333655,1.8297359367164492E-4,-1.0463414131183908E-4,null,4.8792958312438657E-5,-2.7902437683157087E-5]
[null,null,null,null,null,null,null,null,null,null,null,null,null,null,null,null,null,null,null,null,null,null,null,null,null,null,null,null,null,null,null,null,null,null,null,null,null,null,null,null,null,null,118,2.0594885173533086,1.8131864324595192E-4,-1.082021625355826E-4,null,4.8351638198920514E-5,-2.8853910009488692E-5]
[null,null,null,null,null,null,null,null,null,null,null,null,null,null,null,null,null,null,null,null,null,null,null,null,null,null,null,null,null,null,null,null,null,null,null,null,null,null,null,null,null,null,119,2.0769418098732522,1.7960846140505302E-4,-1.1173722433243998E-4,null,4.7895589708014138E-5,-2.9796593155317331E-5]
[null,null,null,null,null,null,null,null,null,null,null,null,null,null,null,null,null,null,null,null,null,null,null,null,null,null,null,null,null,null,null,null,null,null,null,null,null,null,null,null,null,null,120,2.0943951023931953,1.7784356908690391E-4,-1.1523824988834282E-4,null,4.7424951756507711E-5,-3.0730199970224752E-5]
[null,null,null,null,null,null,null,null,null,null,null,null,null,null,null,null,null,null,null,null,null,null,null,null,null,null,null,null,null,null,null,null,null,null,null,null,null,null,null,null,null,null,121,2.1118483949131388,1.7602450389480158E-4,-1.1870417275699177E-4,null,4.6939867705280429E-5,-3.1654446068531137E-5]
[null,null,null,null,null,null,null,null,null,null,null,null,null,null,null,null,null,null,null,null,null,null,null,null,null,null,null,null,null,null,null,null,null,null,null,null,null,null,null,null,null,null,122,2.1293016874330819,1.7415181993362527E-4,-1.221339371847057E-4,null,4.6440485315633407E-5,-3.256904991592152E-5]
[null,null,null,null,null,null,null,null,null,null,null,null,null,null,null,null,null,null,null,null,null,null,null,null,null,null,null,null,null,null,null,null,null,null,null,null,null,null,null,null,null,null,123,2.1467549799530254,1.7222608764105055E-4,-1.2552649843201522E-4,null,4.5926956704280156E-5,-3.3473732915204062E-5]
[null,null,null,null,null,null,null,null,null,null,null,null,null,null,null,null,null,null,null,null,null,null,null,null,null,null,null,null,null,null,null,null,null,null,null,null,null,null,null,null,null,null,124,2.1642082724729685,1.7024789361378887E-4,-1.2888082309189981E-4,null,4.539943829701037E-5,-3.4368219491173277E-5]
[null,null,null,null,null,null,null,null,null,null,null,null,null,null,null,null,null,null,null,null,null,null,null,null,null,null,null,null,null,null,null,null,null,null,null,null,null,null,null,null,null,null,125,2.1816615649929116,1.6821784042890406E-4,-1.3219588940457401E-4,null,4.4858090781041087E-5,-3.5252237174553069E-5]
[null,null,null,null,null,null,null,null,null,null,null,null,null,null,null,null,null,null,null,null,null,null,null,null,null,null,null,null,null,null,null,null,null,null,null,null,null,null,null,null,null,null,126,2.1991148575128552,1.6613654646026172E-4,-1.3547068756872532E-4,null,4.4303079056069795E-5,-3.6125516684993419E-5]
[null,null,null,null,null,null,null,null,null,null,null,null,null,null,null,null,null,null,null,null,null,null,null,null,null,null,null,null,null,null,null,null,null,null,null,null,null,null,null,null,null,null,127,2.2165681500327987,1.6400464569016671E-4,-1.3870422004910922E-4,null,4.373457218404446E-5,-3.698779201309579E-5]
[null,null,null,null,null,null,null,null,null,null,null,null,null,null,null,null,null,null,null,null,null,null,null,null,null,null,null,null,null,null,null,null,null,null,null,null,null,null,null,null,null,null,128,{"$f":"AQ143*PI()/180","v":2.2340214425527418},{"$f":"$AS$8+$AS$4*SIN(AR143)","v":1.618227875162459E-4},{"$f":"$AT$8+$AS$3*COS(AR143)","v":-1.4189550188040809E-4},null,{"$f":"$AS$7+$AT$4*SIN(AR143)","v":4.3152743337665573E-5},{"$f":"$AT$7+$AT$3*COS(AR143)","v":-3.7838800501442157E-5}]
[null,null,null,null,null,null,null,null,null,null,null,null,null,null,null,null,null,null,null,null,null,null,null,null,null,null,null,null,null,null,null,null,null,null,null,null,null,null,null,null,null,null,129,2.2514747350726849,1.5959163655363505E-4,-1.450435609672616E-4,null,4.2557769747636019E-5,-3.8678282924603096E-5]
[null,null,null,null,null,null,null,null,null,null,null,null,null,null,null,null,null,null,null,null,null,null,null,null,null,null,null,null,null,null,null,null,null,null,null,null,null,null,null,null,null,null,130,2.2689280275926285,1.5731187243253102E-4,-1.4814743838037606E-4,null,4.1949832648674945E-5,-3.9505983568100279E-5]
[null,null,null,null,null,null,null,null,null,null,null,null,null,null,null,null,null,null,null,null,null,null,null,null,null,null,null,null,null,null,null,null,null,null,null,null,null,null,null,null,null,null,131,2.286381320112572,1.5498418959116971E-4,-1.5120618864862336E-4,null,4.1329117224311933E-5,-4.0321650306299562E-5]
[null,null,null,null,null,null,null,null,null,null,null,null,null,null,null,null,null,null,null,null,null,null,null,null,null,null,null,null,null,null,null,null,null,null,null,null,null,null,null,null,null,null,132,2.3038346126325151,1.5260929706429347E-4,-1.5421888004704098E-4,null,4.0695812550478259E-5,-4.1125034679210929E-5]
[null,null,null,null,null,null,null,null,null,null,null,null,null,null,null,null,null,null,null,null,null,null,null,null,null,null,null,null,null,null,null,null,null,null,null,null,null,null,null,null,null,null,133,2.3212879051524582,1.5018791826717194E-4,-1.5718459488064444E-4,null,4.0050111537912523E-5,-4.191589196817185E-5]
[null,null,null,null,null,null,null,null,null,null,null,null,null,null,null,null,null,null,null,null,null,null,null,null,null,null,null,null,null,null,null,null,null,null,null,null,null,null,null,null,null,null,134,2.3387411976724013,1.4772079077524325E-4,-1.6010242976396592E-4,null,3.9392210873398202E-5,-4.2693981270390911E-5]
[null,null,null,null,null,null,null,null,null,null,null,null,null,null,null,null,null,null,null,null,null,null,null,null,null,null,null,null,null,null,null,null,null,null,null,null,null,null,null,null,null,null,135,2.3561944901923448,1.4520866609944087E-4,-1.6297149589623427E-4,null,3.87223109598509E-5,-4.345906557232914E-5]
[null,null,null,null,null,null,null,null,null,null,null,null,null,null,null,null,null,null,null,null,null,null,null,null,null,null,null,null,null,null,null,null,null,null,null,null,null,null,null,null,null,null,136,2.3736477827122884,1.4265230945727667E-4,-1.6579091933211231E-4,null,3.8040615855273789E-5,-4.4210911821896612E-5]
[null,null,null,null,null,null,null,null,null,null,null,null,null,null,null,null,null,null,null,null,null,null,null,null,null,null,null,null,null,null,null,null,null,null,null,null,null,null,null,null,null,null,137,2.3911010752322315,1.4005249953974794E-4,-1.6855984124790902E-4,null,3.7347333210599459E-5,-4.4949290999442411E-5]
[null,null,null,null,null,null,null,null,null,null,null,null,null,null,null,null,null,null,null,null,null,null,null,null,null,null,null,null,null,null,null,null,null,null,null,null,null,null,null,null,null,null,138,2.4085543677521746,1.3741002827414033E-4,-1.7127741820318577E-4,null,3.664267420643743E-5,-4.5673978187516205E-5]
[null,null,null,null,null,null,null,null,null,null,null,null,null,null,null,null,null,null,null,null,null,null,null,null,null,null,null,null,null,null,null,null,null,null,null,null,null,null,null,null,null,null,139,2.4260076602721181,1.3472570058279955E-4,-1.7394282239767631E-4,null,3.592685348874655E-5,-4.6384752639380346E-5]
[null,null,null,null,null,null,null,null,null,null,null,null,null,null,null,null,null,null,null,null,null,null,null,null,null,null,null,null,null,null,null,null,null,null,null,null,null,null,null,null,null,null,140,2.4434609527920612,1.3200033413794413E-4,-1.7655524192344247E-4,null,3.5200089103451778E-5,-4.7081397846251324E-5]
[null,null,null,null,null,null,null,null,null,null,null,null,null,null,null,null,null,null,null,null,null,null,null,null,null,null,null,null,null,null,null,null,null,null,null,null,null,null,null,null,null,null,141,2.4609142453120043,1.2923475911259436E-4,-1.7911388101218972E-4,null,3.4462602430025166E-5,-4.7763701603250591E-5]
[null,null,null,null,null,null,null,null,null,null,null,null,null,null,null,null,null,null,null,null,null,null,null,null,null,null,null,null,null,null,null,null,null,null,null,null,null,null,null,null,null,null,142,2.4783675378319479,1.264298179276936E-4,-1.8161796027766559E-4,null,3.3714618114051631E-5,-4.8431456074044163E-5]
[null,null,null,null,null,null,null,null,null,null,null,null,null,null,null,null,null,null,null,null,null,null,null,null,null,null,null,null,null,null,null,null,null,null,null,null,null,null,null,null,null,null,143,2.4958208303518914,1.2358636499549888E-4,-1.8406671695306821E-4,null,3.295636399879971E-5,-4.9084457854151524E-5]
[null,null,null,null,null,null,null,null,null,null,null,null,null,null,null,null,null,null,null,null,null,null,null,null,null,null,null,null,null,null,null,null,null,null,null,null,null,null,null,null,null,null,144,2.5132741228718345,1.2070526645931866E-4,-1.8645940512339253E-4,null,3.2188071055818311E-5,-4.9722508032904674E-5]
[null,null,null,null,null,null,null,null,null,null,null,null,null,null,null,null,null,null,null,null,null,null,null,null,null,null,null,null,null,null,null,null,null,null,null,null,null,null,null,null,null,null,145,2.5307274153917776,1.1778739992967673E-4,-1.8879529595264343E-4,null,3.1409973314580466E-5,-5.0345412254038246E-5]
[null,null,null,null,null,null,null,null,null,null,null,null,null,null,null,null,null,null,null,null,null,null,null,null,null,null,null,null,null,null,null,null,null,null,null,null,null,null,null,null,null,null,146,2.5481807079117211,1.1483365421698397E-4,-1.9107367790584614E-4,null,3.0622307791195728E-5,-5.0952980774892307E-5]
[null,null,null,null,null,null,null,null,null,null,null,null,null,null,null,null,null,null,null,null,null,null,null,null,null,null,null,null,null,null,null,null,null,null,null,null,null,null,null,null,null,null,147,2.5656340004316647,1.1184492906079815E-4,-1.9329385696578645E-4,null,2.9825314416212843E-5,-5.1545028524209723E-5]
[null,null,null,null,null,null,null,null,null,null,null,null,null,null,null,null,null,null,null,null,null,null,null,null,null,null,null,null,null,null,null,null,null,null,null,null,null,null,null,null,null,null,148,2.5830872929516078,1.088221348557543E-4,-1.9545515684441528E-4,null,2.9019235961534482E-5,-5.2121375158510741E-5]
[null,null,null,null,null,null,null,null,null,null,null,null,null,null,null,null,null,null,null,null,null,null,null,null,null,null,null,null,null,null,null,null,null,null,null,null,null,null,null,null,null,null,149,2.6005405854715509,1.0576619237424973E-4,-1.9755691918885268E-4,null,2.8204317966466599E-5,-5.2681845117027384E-5]
[null,null,null,null,null,null,null,null,null,null,null,null,null,null,null,null,null,null,null,null,null,null,null,null,null,null,null,null,null,null,null,null,null,null,null,null,null,null,null,null,null,null,150,2.6179938779914944,1.0267803248596775E-4,-1.9959850378192836E-4,null,2.7380808662924738E-5,-5.3226267675180898E-5]
[null,null,null,null,null,null,null,null,null,null,null,null,null,null,null,null,null,null,null,null,null,null,null,null,null,null,null,null,null,null,null,null,null,null,null,null,null,null,null,null,null,null,151,2.6354471705114375,9.9558595874326211E-5,-2.015792887371979E-4,null,2.6548958899820326E-5,-5.3754476996586104E-5]
[null,null,null,null,null,null,null,null,null,null,null,null,null,null,null,null,null,null,null,null,null,null,null,null,null,null,null,null,null,null,null,null,null,null,null,null,null,null,null,null,null,null,152,2.6529004630313806,9.6408832749935567E-5,-2.0349867068837564E-4,null,2.5709022066649486E-5,-5.4266312183566838E-5]
[null,null,null,null,null,null,null,null,null,null,null,null,null,null,null,null,null,null,null,null,null,null,null,null,null,null,null,null,null,null,null,null,null,null,null,null,null,null,null,null,null,null,153,2.6703537555513241,9.322970256115587E-5,-2.0535606497312588E-4,null,2.4861254016308233E-5,-5.4761617326166903E-5]
[null,null,null,null,null,null,null,null,null,null,null,null,null,null,null,null,null,null,null,null,null,null,null,null,null,null,null,null,null,null,null,null,null,null,null,null,null,null,null,null,null,null,154,2.6878070480712677,9.0022173701839641E-5,-2.0715090581115644E-4,null,2.4005912987157241E-5,-5.5240241549641718E-5]
[null,null,null,null,null,null,null,null,null,null,null,null,null,null,null,null,null,null,null,null,null,null,null,null,null,null,null,null,null,null,null,null,null,null,null,null,null,null,null,null,null,null,155,2.7052603405912108,8.6787223216349546E-5,-2.08882646476561E-4,null,2.314325952435988E-5,-5.5702039060416268E-5]
[null,null,null,null,null,null,null,null,null,null,null,null,null,null,null,null,null,null,null,null,null,null,null,null,null,null,null,null,null,null,null,null,null,null,null,null,null,null,null,null,null,null,156,2.7227136331111539,8.3525836501941022E-5,-2.1055075946435715E-4,null,2.2273556400517611E-5,-5.6146869190495241E-5]
[null,null,null,null,null,null,null,null,null,null,null,null,null,null,null,null,null,null,null,null,null,null,null,null,null,null,null,null,null,null,null,null,null,null,null,null,null,null,null,null,null,null,157,2.740166925631097,8.0239007008601072E-5,-2.1215473665116947E-4,null,2.1397068535626957E-5,-5.6574596440311857E-5]
[null,null,null,null,null,null,null,null,null,null,null,null,null,null,null,null,null,null,null,null,null,null,null,null,null,null,null,null,null,null,null,null,null,null,null,null,null,null,null,null,null,null,158,2.7576202181510405,7.6927735936433515E-5,-2.1369408945000879E-4,null,2.0514062916382272E-5,-5.6985090520002339E-5]
[null,null,null,null,null,null,null,null,null,null,null,null,null,null,null,null,null,null,null,null,null,null,null,null,null,null,null,null,null,null,null,null,null,null,null,null,null,null,null,null,null,null,159,2.7750735106709841,7.3593031930683993E-5,-2.151683489591005E-4,null,1.9624808514849066E-5,-5.7378226389093465E-5]
[null,null,null,null,null,null,null,null,null,null,null,null,null,null,null,null,null,null,null,null,null,null,null,null,null,null,null,null,null,null,null,null,null,null,null,null,null,null,null,null,null,null,160,2.7925268031909272,7.0235910774496763E-5,-2.1657706610471664E-4,null,1.8729576206532473E-5,-5.7753884294591106E-5]
[null,null,null,null,null,null,null,null,null,null,null,null,null,null,null,null,null,null,null,null,null,null,null,null,null,null,null,null,null,null,null,null,null,null,null,null,null,null,null,null,null,null,161,2.8099800957108703,6.6857395079497086E-5,-2.1791981177796815E-4,null,1.782863868786589E-5,-5.8111949807458168E-5]
[null,null,null,null,null,null,null,null,null,null,null,null,null,null,null,null,null,null,null,null,null,null,null,null,null,null,null,null,null,null,null,null,null,null,null,null,null,null,null,null,null,null,162,2.8274333882308138,6.3458513974293953E-5,-2.1919617696551546E-4,null,1.6922270393145057E-5,-5.845231385747079E-5]
[null,null,null,null,null,null,null,null,null,null,null,null,null,null,null,null,null,null,null,null,null,null,null,null,null,null,null,null,null,null,null,null,null,null,null,null,null,null,null,null,null,null,163,2.8448866807507569,6.0040302790997944E-5,-2.2040577287415805E-4,null,1.6010747410932787E-5,-5.8774872766442149E-5]
[null,null,null,null,null,null,null,null,null,null,null,null,null,null,null,null,null,null,null,null,null,null,null,null,null,null,null,null,null,null,null,null,null,null,null,null,null,null,null,null,null,null,164,2.8623399732707,5.6603802749848297E-5,-2.2154823104926445E-4,null,1.5094347399959548E-5,-5.9079528279803855E-5]
[null,null,null,null,null,null,null,null,null,null,null,null,null,null,null,null,null,null,null,null,null,null,null,null,null,null,null,null,null,null,null,null,null,null,null,null,null,null,null,null,null,null,165,2.8797932657906435,5.3150060642047622E-5,-2.2262320348700741E-4,null,1.4173349504546033E-5,-5.9366187596535312E-5]
[null,null,null,null,null,null,null,null,null,null,null,null,null,null,null,null,null,null,null,null,null,null,null,null,null,null,null,null,null,null,null,null,null,null,null,null,null,null,null,null,null,null,166,2.8972465583105871,4.9680128510899173E-5,-2.2363036274036883E-4,null,1.3248034269573115E-5,-5.9634763397431687E-5]
[null,null,null,null,null,null,null,null,null,null,null,null,null,null,null,null,null,null,null,null,null,null,null,null,null,null,null,null,null,null,null,null,null,null,null,null,null,null,null,null,null,null,167,2.9146998508305306,4.6195063331344096E-5,-2.2456940201888355E-4,null,1.2318683555025094E-5,-5.988517387170228E-5]
[null,null,null,null,null,null,null,null,null,null,null,null,null,null,null,null,null,null,null,null,null,null,null,null,null,null,null,null,null,null,null,null,null,null,null,null,null,null,null,null,null,null,168,2.9321531433504737,4.2695926687996755E-5,-2.2544003528209065E-4,null,1.138558045013247E-5,-6.0117342741890845E-5]
[null,null,null,null,null,null,null,null,null,null,null,null,null,null,null,null,null,null,null,null,null,null,null,null,null,null,null,null,null,null,null,null,null,null,null,null,null,null,null,null,null,null,169,2.9496064358704168,3.9183784451775518E-5,-2.2624199732666417E-4,null,1.044900918714014E-5,-6.033119928711045E-5]
[null,null,null,null,null,null,null,null,null,null,null,null,null,null,null,null,null,null,null,null,null,null,null,null,null,null,null,null,null,null,null,null,null,null,null,null,null,null,null,null,null,null,170,2.9670597283903604,3.565970645522834E-5,-2.2697504386719655E-4,null,9.5092550547275585E-6,-6.0526678364585746E-5]
[null,null,null,null,null,null,null,null,null,null,null,null,null,null,null,null,null,null,null,null,null,null,null,null,null,null,null,null,null,null,null,null,null,null,null,null,null,null,null,null,null,null,171,2.9845130209103035,3.2124766166651654E-5,-2.2763895161061036E-4,null,8.5666043111071085E-6,-6.0703720429496093E-5]
[null,null,null,null,null,null,null,null,null,null,null,null,null,null,null,null,null,null,null,null,null,null,null,null,null,null,null,null,null,null,null,null,null,null,null,null,null,null,null,null,null,null,172,3.0019663134302466,2.8580040363101005E-5,-2.2823351832417554E-4,null,7.6213440968269355E-6,-6.0862271553113472E-5]
[null,null,null,null,null,null,null,null,null,null,null,null,null,null,null,null,null,null,null,null,null,null,null,null,null,null,null,null,null,null,null,null,null,null,null,null,null,null,null,null,null,null,173,3.0194196059501901,2.5026608802394603E-5,-2.2875856289711143E-4,null,6.6737623473052286E-6,-6.1002283439229718E-5]
[null,null,null,null,null,null,null,null,null,null,null,null,null,null,null,null,null,null,null,null,null,null,null,null,null,null,null,null,null,null,null,null,null,null,null,null,null,null,null,null,null,null,174,3.0368728984701332,2.1465553894208879E-5,-2.2921392539575493E-4,null,5.724147705122368E-6,-6.1123713438867978E-5]
[null,null,null,null,null,null,null,null,null,null,null,null,null,null,null,null,null,null,null,null,null,null,null,null,null,null,null,null,null,null,null,null,null,null,null,null,null,null,null,null,null,null,175,3.0543261909900763,1.7897960370365486E-5,-2.2959946711227771E-4,null,4.7727894320974639E-6,-6.1226524563274057E-5]
[null,null,null,null,null,null,null,null,null,null,null,null,null,null,null,null,null,null,null,null,null,null,null,null,null,null,null,null,null,null,null,null,null,null,null,null,null,null,null,null,null,null,176,3.0717794835100198,1.4324914954411757E-5,-2.299150706069381E-4,null,3.8199773211764692E-6,-6.1310685495183492E-5]
[null,null,null,null,null,null,null,null,null,null,null,null,null,null,null,null,null,null,null,null,null,null,null,null,null,null,null,null,null,null,null,null,null,null,null,null,null,null,null,null,null,null,177,3.0892327760299634,1.0747506030594344E-5,-2.3016063974385433E-4,null,2.8660016081584918E-6,-6.1376170598361152E-5]
[null,null,null,null,null,null,null,null,null,null,null,null,null,null,null,null,null,null,null,null,null,null,null,null,null,null,null,null,null,null,null,null,null,null,null,null,null,null,null,null,null,null,178,3.1066860685499069,7.1668233123265833E-6,-2.3033609972028841E-4,null,1.911152883287089E-6,-6.1422959925410247E-5]
[null,null,null,null,null,null,null,null,null,null,null,null,null,null,null,null,null,null,null,null,null,null,null,null,null,null,null,null,null,null,null,null,null,null,null,null,null,null,null,null,null,null,179,3.12413936106985,3.5839575102514038E-6,-2.3044139708943177E-4,null,9.5572200273370777E-7,-6.1451039223848472E-5]
[null,null,null,null,null,null,null,null,null,null,null,null,null,null,null,null,null,null,null,null,null,null,null,null,null,null,null,null,null,null,null,null,null,null,null,null,null,null,null,null,null,null,180,3.1415926535897931,2.5159166570648099E-20,-2.3047649977668574E-4,null,6.7091110855061612E-21,-6.146039994044953E-5]
[null,null,null,null,null,null,null,null,null,null,null,null,null,null,null,null,null,null,null,null,null,null,null,null,null,null,null,null,null,null,null,null,null,null,null,null,null,null,null,null,null,null,181,3.1590459461097362,-3.5839575102513534E-6,-2.3044139708943177E-4,null,-9.5572200273369422E-7,-6.1451039223848472E-5]
[null,null,null,null,null,null,null,null,null,null,null,null,null,null,null,null,null,null,null,null,null,null,null,null,null,null,null,null,null,null,null,null,null,null,null,null,null,null,null,null,null,null,182,3.1764992386296798,-7.1668233123266248E-6,-2.3033609972028841E-4,null,-1.9111528832871E-6,-6.1422959925410247E-5]
[null,null,null,null,null,null,null,null,null,null,null,null,null,null,null,null,null,null,null,null,null,null,null,null,null,null,null,null,null,null,null,null,null,null,null,null,null,null,null,null,null,null,183,3.1939525311496229,-1.0747506030594293E-5,-2.3016063974385433E-4,null,-2.8660016081584782E-6,-6.1376170598361152E-5]
[null,null,null,null,null,null,null,null,null,null,null,null,null,null,null,null,null,null,null,null,null,null,null,null,null,null,null,null,null,null,null,null,null,null,null,null,null,null,null,null,null,null,184,3.211405823669566,-1.4324914954411614E-5,-2.2991507060693813E-4,null,-3.8199773211764311E-6,-6.1310685495183492E-5]
[null,null,null,null,null,null,null,null,null,null,null,null,null,null,null,null,null,null,null,null,null,null,null,null,null,null,null,null,null,null,null,null,null,null,null,null,null,null,null,null,null,null,185,3.2288591161895095,-1.7897960370365344E-5,-2.2959946711227771E-4,null,-4.7727894320974258E-6,-6.1226524563274057E-5]
[null,null,null,null,null,null,null,null,null,null,null,null,null,null,null,null,null,null,null,null,null,null,null,null,null,null,null,null,null,null,null,null,null,null,null,null,null,null,null,null,null,null,186,3.2463124087094526,-2.1465553894208737E-5,-2.2921392539575495E-4,null,-5.7241477051223307E-6,-6.1123713438867978E-5]
[null,null,null,null,null,null,null,null,null,null,null,null,null,null,null,null,null,null,null,null,null,null,null,null,null,null,null,null,null,null,null,null,null,null,null,null,null,null,null,null,null,null,187,3.2637657012293966,-2.5026608802394643E-5,-2.2875856289711143E-4,null,-6.6737623473052388E-6,-6.1002283439229718E-5]
[null,null,null,null,null,null,null,null,null,null,null,null,null,null,null,null,null,null,null,null,null,null,null,null,null,null,null,null,null,null,null,null,null,null,null,null,null,null,null,null,null,null,188,3.2812189937493397,-2.8580040363100958E-5,-2.2823351832417554E-4,null,-7.6213440968269236E-6,-6.0862271553113472E-5]
[null,null,null,null,null,null,null,null,null,null,null,null,null,null,null,null,null,null,null,null,null,null,null,null,null,null,null,null,null,null,null,null,null,null,null,null,null,null,null,null,null,null,189,3.2986722862692828,-3.2124766166651599E-5,-2.2763895161061038E-4,null,-8.566604311107095E-6,-6.07037204294961E-5]
[null,null,null,null,null,null,null,null,null,null,null,null,null,null,null,null,null,null,null,null,null,null,null,null,null,null,null,null,null,null,null,null,null,null,null,null,null,null,null,null,null,null,190,3.3161255787892263,-3.5659706455228381E-5,-2.2697504386719655E-4,null,-9.5092550547275687E-6,-6.0526678364585746E-5]
[null,null,null,null,null,null,null,null,null,null,null,null,null,null,null,null,null,null,null,null,null,null,null,null,null,null,null,null,null,null,null,null,null,null,null,null,null,null,null,null,null,null,191,3.3335788713091694,-3.9183784451775463E-5,-2.2624199732666417E-4,null,-1.0449009187140124E-5,-6.033119928711045E-5]
[null,null,null,null,null,null,null,null,null,null,null,null,null,null,null,null,null,null,null,null,null,null,null,null,null,null,null,null,null,null,null,null,null,null,null,null,null,null,null,null,null,null,192,{"$f":"AQ207*PI()/180","v":3.3510321638291125},{"$f":"$AS$8+$AS$4*SIN(AR207)","v":-4.2695926687996701E-5},{"$f":"$AT$8+$AS$3*COS(AR207)","v":-2.2544003528209065E-4},null,{"$f":"$AS$7+$AT$4*SIN(AR207)","v":-1.1385580450132456E-5},{"$f":"$AT$7+$AT$3*COS(AR207)","v":-6.0117342741890845E-5}]
[null,null,null,null,null,null,null,null,null,null,null,null,null,null,null,null,null,null,null,null,null,null,null,null,null,null,null,null,null,null,null,null,null,null,null,null,null,null,null,null,null,null,193,3.3684854563490561,-4.6195063331344137E-5,-2.2456940201888355E-4,null,-1.2318683555025104E-5,-5.988517387170228E-5]
[null,null,null,null,null,null,null,null,null,null,null,null,null,null,null,null,null,null,null,null,null,null,null,null,null,null,null,null,null,null,null,null,null,null,null,null,null,null,null,null,null,null,194,3.3859387488689991,-4.9680128510899126E-5,-2.2363036274036883E-4,null,-1.3248034269573101E-5,-5.9634763397431687E-5]
[null,null,null,null,null,null,null,null,null,null,null,null,null,null,null,null,null,null,null,null,null,null,null,null,null,null,null,null,null,null,null,null,null,null,null,null,null,null,null,null,null,null,195,3.4033920413889422,-5.3150060642047486E-5,-2.2262320348700746E-4,null,-1.4173349504545998E-5,-5.9366187596535325E-5]
[null,null,null,null,null,null,null,null,null,null,null,null,null,null,null,null,null,null,null,null,null,null,null,null,null,null,null,null,null,null,null,null,null,null,null,null,null,null,null,null,null,null,196,3.4208453339088858,-5.6603802749848162E-5,-2.2154823104926451E-4,null,-1.5094347399959511E-5,-5.9079528279803869E-5]
[null,null,null,null,null,null,null,null,null,null,null,null,null,null,null,null,null,null,null,null,null,null,null,null,null,null,null,null,null,null,null,null,null,null,null,null,null,null,null,null,null,null,197,3.4382986264288289,-6.0040302790997802E-5,-2.2040577287415808E-4,null,-1.601074741093275E-5,-5.8774872766442155E-5]
[null,null,null,null,null,null,null,null,null,null,null,null,null,null,null,null,null,null,null,null,null,null,null,null,null,null,null,null,null,null,null,null,null,null,null,null,null,null,null,null,null,null,198,3.4557519189487729,-6.3458513974294008E-5,-2.1919617696551546E-4,null,-1.6922270393145071E-5,-5.845231385747079E-5]
[null,null,null,null,null,null,null,null,null,null,null,null,null,null,null,null,null,null,null,null,null,null,null,null,null,null,null,null,null,null,null,null,null,null,null,null,null,null,null,null,null,null,199,3.473205211468716,-6.6857395079497031E-5,-2.1791981177796815E-4,null,-1.7828638687865876E-5,-5.8111949807458168E-5]
[null,null,null,null,null,null,null,null,null,null,null,null,null,null,null,null,null,null,null,null,null,null,null,null,null,null,null,null,null,null,null,null,null,null,null,null,null,null,null,null,null,null,200,3.4906585039886591,-7.0235910774496722E-5,-2.1657706610471667E-4,null,-1.8729576206532459E-5,-5.7753884294591112E-5]
[null,null,null,null,null,null,null,null,null,null,null,null,null,null,null,null,null,null,null,null,null,null,null,null,null,null,null,null,null,null,null,null,null,null,null,null,null,null,null,null,null,null,201,3.5081117965086026,-7.3593031930684034E-5,-2.151683489591005E-4,null,-1.9624808514849076E-5,-5.7378226389093465E-5]
[null,null,null,null,null,null,null,null,null,null,null,null,null,null,null,null,null,null,null,null,null,null,null,null,null,null,null,null,null,null,null,null,null,null,null,null,null,null,null,null,null,null,202,3.5255650890285457,-7.6927735936433461E-5,-2.1369408945000882E-4,null,-2.0514062916382259E-5,-5.6985090520002346E-5]
[null,null,null,null,null,null,null,null,null,null,null,null,null,null,null,null,null,null,null,null,null,null,null,null,null,null,null,null,null,null,null,null,null,null,null,null,null,null,null,null,null,null,203,3.5430183815484888,-8.023900700860095E-5,-2.1215473665116952E-4,null,-2.1397068535626923E-5,-5.6574596440311871E-5]
[null,null,null,null,null,null,null,null,null,null,null,null,null,null,null,null,null,null,null,null,null,null,null,null,null,null,null,null,null,null,null,null,null,null,null,null,null,null,null,null,null,null,204,3.5604716740684319,-8.35258365019409E-5,-2.1055075946435723E-4,null,-2.2273556400517577E-5,-5.6146869190495262E-5]
[null,null,null,null,null,null,null,null,null,null,null,null,null,null,null,null,null,null,null,null,null,null,null,null,null,null,null,null,null,null,null,null,null,null,null,null,null,null,null,null,null,null,205,3.5779249665883754,-8.6787223216349505E-5,-2.0888264647656103E-4,null,-2.314325952435987E-5,-5.5702039060416275E-5]
[null,null,null,null,null,null,null,null,null,null,null,null,null,null,null,null,null,null,null,null,null,null,null,null,null,null,null,null,null,null,null,null,null,null,null,null,null,null,null,null,null,null,206,3.5953782591083185,-9.0022173701839601E-5,-2.0715090581115646E-4,null,-2.4005912987157231E-5,-5.5240241549641725E-5]
[null,null,null,null,null,null,null,null,null,null,null,null,null,null,null,null,null,null,null,null,null,null,null,null,null,null,null,null,null,null,null,null,null,null,null,null,null,null,null,null,null,null,207,3.6128315516282616,-9.3229702561155748E-5,-2.0535606497312596E-4,null,-2.4861254016308203E-5,-5.4761617326166924E-5]
[null,null,null,null,null,null,null,null,null,null,null,null,null,null,null,null,null,null,null,null,null,null,null,null,null,null,null,null,null,null,null,null,null,null,null,null,null,null,null,null,null,null,208,3.6302848441482056,-9.6408832749935513E-5,-2.0349867068837567E-4,null,-2.5709022066649473E-5,-5.4266312183566844E-5]
[null,null,null,null,null,null,null,null,null,null,null,null,null,null,null,null,null,null,null,null,null,null,null,null,null,null,null,null,null,null,null,null,null,null,null,null,null,null,null,null,null,null,209,3.6477381366681487,-9.955859587432617E-5,-2.015792887371979E-4,null,-2.6548958899820313E-5,-5.375447699658611E-5]
[null,null,null,null,null,null,null,null,null,null,null,null,null,null,null,null,null,null,null,null,null,null,null,null,null,null,null,null,null,null,null,null,null,null,null,null,null,null,null,null,null,null,210,3.6651914291880923,-1.026780324859678E-4,-1.9959850378192833E-4,null,-2.7380808662924748E-5,-5.3226267675180891E-5]
[null,null,null,null,null,null,null,null,null,null,null,null,null,null,null,null,null,null,null,null,null,null,null,null,null,null,null,null,null,null,null,null,null,null,null,null,null,null,null,null,null,null,211,3.6826447217080354,-1.0576619237424969E-4,-1.9755691918885271E-4,null,-2.8204317966466585E-5,-5.2681845117027391E-5]
[null,null,null,null,null,null,null,null,null,null,null,null,null,null,null,null,null,null,null,null,null,null,null,null,null,null,null,null,null,null,null,null,null,null,null,null,null,null,null,null,null,null,212,3.7000980142279785,-1.0882213485575427E-4,-1.9545515684441531E-4,null,-2.9019235961534479E-5,-5.2121375158510748E-5]
[null,null,null,null,null,null,null,null,null,null,null,null,null,null,null,null,null,null,null,null,null,null,null,null,null,null,null,null,null,null,null,null,null,null,null,null,null,null,null,null,null,null,213,3.717551306747922,-1.1184492906079818E-4,-1.9329385696578643E-4,null,-2.982531441621285E-5,-5.1545028524209716E-5]
[null,null,null,null,null,null,null,null,null,null,null,null,null,null,null,null,null,null,null,null,null,null,null,null,null,null,null,null,null,null,null,null,null,null,null,null,null,null,null,null,null,null,214,3.7350045992678651,-1.1483365421698393E-4,-1.910736779058462E-4,null,-3.0622307791195721E-5,-5.095298077489232E-5]
[null,null,null,null,null,null,null,null,null,null,null,null,null,null,null,null,null,null,null,null,null,null,null,null,null,null,null,null,null,null,null,null,null,null,null,null,null,null,null,null,null,null,215,3.7524578917878082,-1.1778739992967662E-4,-1.8879529595264353E-4,null,-3.1409973314580432E-5,-5.0345412254038273E-5]
[null,null,null,null,null,null,null,null,null,null,null,null,null,null,null,null,null,null,null,null,null,null,null,null,null,null,null,null,null,null,null,null,null,null,null,null,null,null,null,null,null,null,216,3.7699111843077517,-1.2070526645931862E-4,-1.8645940512339258E-4,null,-3.2188071055818297E-5,-4.9722508032904688E-5]
[null,null,null,null,null,null,null,null,null,null,null,null,null,null,null,null,null,null,null,null,null,null,null,null,null,null,null,null,null,null,null,null,null,null,null,null,null,null,null,null,null,null,217,3.7873644768276948,-1.2358636499549888E-4,-1.8406671695306824E-4,null,-3.2956363998799703E-5,-4.908445785415153E-5]
[null,null,null,null,null,null,null,null,null,null,null,null,null,null,null,null,null,null,null,null,null,null,null,null,null,null,null,null,null,null,null,null,null,null,null,null,null,null,null,null,null,null,218,3.8048177693476379,-1.2642981792769349E-4,-1.8161796027766567E-4,null,-3.3714618114051597E-5,-4.8431456074044183E-5]
[null,null,null,null,null,null,null,null,null,null,null,null,null,null,null,null,null,null,null,null,null,null,null,null,null,null,null,null,null,null,null,null,null,null,null,null,null,null,null,null,null,null,219,3.8222710618675819,-1.2923475911259433E-4,-1.7911388101218975E-4,null,-3.4462602430025159E-5,-4.7763701603250598E-5]
[null,null,null,null,null,null,null,null,null,null,null,null,null,null,null,null,null,null,null,null,null,null,null,null,null,null,null,null,null,null,null,null,null,null,null,null,null,null,null,null,null,null,220,3.839724354387525,-1.320003341379441E-4,-1.7655524192344249E-4,null,-3.5200089103451764E-5,-4.708139784625133E-5]
[null,null,null,null,null,null,null,null,null,null,null,null,null,null,null,null,null,null,null,null,null,null,null,null,null,null,null,null,null,null,null,null,null,null,null,null,null,null,null,null,null,null,221,3.8571776469074686,-1.3472570058279957E-4,-1.7394282239767628E-4,null,-3.5926853488746557E-5,-4.6384752639380339E-5]
[null,null,null,null,null,null,null,null,null,null,null,null,null,null,null,null,null,null,null,null,null,null,null,null,null,null,null,null,null,null,null,null,null,null,null,null,null,null,null,null,null,null,222,3.8746309394274117,-1.3741002827414033E-4,-1.7127741820318582E-4,null,-3.6642674206437423E-5,-4.5673978187516218E-5]
[null,null,null,null,null,null,null,null,null,null,null,null,null,null,null,null,null,null,null,null,null,null,null,null,null,null,null,null,null,null,null,null,null,null,null,null,null,null,null,null,null,null,223,3.8920842319473548,-1.4005249953974791E-4,-1.6855984124790904E-4,null,-3.7347333210599446E-5,-4.4949290999442417E-5]
[null,null,null,null,null,null,null,null,null,null,null,null,null,null,null,null,null,null,null,null,null,null,null,null,null,null,null,null,null,null,null,null,null,null,null,null,null,null,null,null,null,null,224,3.9095375244672983,-1.4265230945727673E-4,-1.6579091933211228E-4,null,-3.8040615855273796E-5,-4.4210911821896605E-5]
[null,null,null,null,null,null,null,null,null,null,null,null,null,null,null,null,null,null,null,null,null,null,null,null,null,null,null,null,null,null,null,null,null,null,null,null,null,null,null,null,null,null,225,3.9269908169872414,-1.4520866609944085E-4,-1.6297149589623432E-4,null,-3.87223109598509E-5,-4.3459065572329154E-5]
[null,null,null,null,null,null,null,null,null,null,null,null,null,null,null,null,null,null,null,null,null,null,null,null,null,null,null,null,null,null,null,null,null,null,null,null,null,null,null,null,null,null,226,3.9444441095071845,-1.4772079077524311E-4,-1.6010242976396603E-4,null,-3.9392210873398168E-5,-4.2693981270390945E-5]
[null,null,null,null,null,null,null,null,null,null,null,null,null,null,null,null,null,null,null,null,null,null,null,null,null,null,null,null,null,null,null,null,null,null,null,null,null,null,null,null,null,null,227,3.9618974020271276,-1.5018791826717186E-4,-1.5718459488064457E-4,null,-4.0050111537912503E-5,-4.1915891968171884E-5]
[null,null,null,null,null,null,null,null,null,null,null,null,null,null,null,null,null,null,null,null,null,null,null,null,null,null,null,null,null,null,null,null,null,null,null,null,null,null,null,null,null,null,228,3.9793506945470711,-1.5260929706429341E-4,-1.5421888004704104E-4,null,-4.0695812550478253E-5,-4.1125034679210943E-5]
[null,null,null,null,null,null,null,null,null,null,null,null,null,null,null,null,null,null,null,null,null,null,null,null,null,null,null,null,null,null,null,null,null,null,null,null,null,null,null,null,null,null,229,3.9968039870670142,-1.5498418959116969E-4,-1.5120618864862339E-4,null,-4.1329117224311926E-5,-4.0321650306299569E-5]
[null,null,null,null,null,null,null,null,null,null,null,null,null,null,null,null,null,null,null,null,null,null,null,null,null,null,null,null,null,null,null,null,null,null,null,null,null,null,null,null,null,null,230,4.0142572795869578,-1.5731187243253102E-4,-1.4814743838037608E-4,null,-4.1949832648674938E-5,-3.9505983568100286E-5]
[null,null,null,null,null,null,null,null,null,null,null,null,null,null,null,null,null,null,null,null,null,null,null,null,null,null,null,null,null,null,null,null,null,null,null,null,null,null,null,null,null,null,231,4.0317105721069018,-1.5959163655363508E-4,-1.4504356096726158E-4,null,-4.2557769747636026E-5,-3.8678282924603089E-5]
[null,null,null,null,null,null,null,null,null,null,null,null,null,null,null,null,null,null,null,null,null,null,null,null,null,null,null,null,null,null,null,null,null,null,null,null,null,null,null,null,null,null,232,4.0491638646268449,-1.6182278751624592E-4,-1.4189550188040804E-4,null,-4.315274333766558E-5,-3.7838800501442144E-5]
[null,null,null,null,null,null,null,null,null,null,null,null,null,null,null,null,null,null,null,null,null,null,null,null,null,null,null,null,null,null,null,null,null,null,null,null,null,null,null,null,null,null,233,4.066617157146788,-1.6400464569016674E-4,-1.3870422004910919E-4,null,-4.3734572184044467E-5,-3.6987792013095783E-5]
[null,null,null,null,null,null,null,null,null,null,null,null,null,null,null,null,null,null,null,null,null,null,null,null,null,null,null,null,null,null,null,null,null,null,null,null,null,null,null,null,null,null,234,4.0840704496667311,-1.6613654646026169E-4,-1.3547068756872537E-4,null,-4.4303079056069788E-5,-3.6125516684993432E-5]
[null,null,null,null,null,null,null,null,null,null,null,null,null,null,null,null,null,null,null,null,null,null,null,null,null,null,null,null,null,null,null,null,null,null,null,null,null,null,null,null,null,null,235,4.1015237421866741,-1.6821784042890398E-4,-1.3219588940457415E-4,null,-4.4858090781041067E-5,-3.5252237174553103E-5]
[null,null,null,null,null,null,null,null,null,null,null,null,null,null,null,null,null,null,null,null,null,null,null,null,null,null,null,null,null,null,null,null,null,null,null,null,null,null,null,null,null,null,236,4.1189770347066172,-1.7024789361378881E-4,-1.2888082309189992E-4,null,-4.539943829701035E-5,-3.4368219491173311E-5]
[null,null,null,null,null,null,null,null,null,null,null,null,null,null,null,null,null,null,null,null,null,null,null,null,null,null,null,null,null,null,null,null,null,null,null,null,null,null,null,null,null,null,237,4.1364303272265612,-1.7222608764105057E-4,-1.2552649843201522E-4,null,-4.5926956704280163E-5,-3.3473732915204055E-5]
[null,null,null,null,null,null,null,null,null,null,null,null,null,null,null,null,null,null,null,null,null,null,null,null,null,null,null,null,null,null,null,null,null,null,null,null,null,null,null,null,null,null,238,4.1538836197465043,-1.7415181993362525E-4,-1.2213393718470575E-4,null,-4.6440485315633407E-5,-3.2569049915921534E-5]
[null,null,null,null,null,null,null,null,null,null,null,null,null,null,null,null,null,null,null,null,null,null,null,null,null,null,null,null,null,null,null,null,null,null,null,null,null,null,null,null,null,null,239,4.1713369122664474,-1.7602450389480153E-4,-1.1870417275699182E-4,null,-4.6939867705280416E-5,-3.1654446068531151E-5]
[null,null,null,null,null,null,null,null,null,null,null,null,null,null,null,null,null,null,null,null,null,null,null,null,null,null,null,null,null,null,null,null,null,null,null,null,null,null,null,null,null,null,240,4.1887902047863905,-1.7784356908690383E-4,-1.1523824988834298E-4,null,-4.7424951756507697E-5,-3.0730199970224792E-5]
[null,null,null,null,null,null,null,null,null,null,null,null,null,null,null,null,null,null,null,null,null,null,null,null,null,null,null,null,null,null,null,null,null,null,null,null,null,null,null,null,null,null,241,4.2062434973063345,-1.7960846140505302E-4,-1.1173722433243996E-4,null,-4.7895589708014145E-5,-2.9796593155317321E-5]
[null,null,null,null,null,null,null,null,null,null,null,null,null,null,null,null,null,null,null,null,null,null,null,null,null,null,null,null,null,null,null,null,null,null,null,null,null,null,null,null,null,null,242,4.2236967898262776,-1.8131864324595189E-4,-1.0820216253558265E-4,null,-4.8351638198920514E-5,-2.8853910009488709E-5]
[null,null,null,null,null,null,null,null,null,null,null,null,null,null,null,null,null,null,null,null,null,null,null,null,null,null,null,null,null,null,null,null,null,null,null,null,null,null,null,null,null,null,243,4.2411500823462207,-1.829735936716449E-4,-1.0463414131183913E-4,null,-4.879295831243865E-5,-2.79024376831571E-5]
[null,null,null,null,null,null,null,null,null,null,null,null,null,null,null,null,null,null,null,null,null,null,null,null,null,null,null,null,null,null,null,null,null,null,null,null,null,null,null,null,null,null,244,4.2586033748661638,-1.8457280856820055E-4,-1.0103424751503835E-4,null,-4.9219415618186816E-5,-2.6942466004010225E-5]
[null,null,null,null,null,null,null,null,null,null,null,null,null,null,null,null,null,null,null,null,null,null,null,null,null,null,null,null,null,null,null,null,null,null,null,null,null,null,null,null,null,null,245,4.2760566673861069,-1.8611580079926936E-4,-9.740357770770374E-5,null,-4.9630880213138499E-5,-2.5974287388720998E-5]
[null,null,null,null,null,null,null,null,null,null,null,null,null,null,null,null,null,null,null,null,null,null,null,null,null,null,null,null,null,null,null,null,null,null,null,null,null,null,null,null,null,null,246,4.2935099599060509,-1.8760210035447054E-4,-9.3743237827029555E-5,null,-5.0027226761192154E-5,-2.4998196753874546E-5]
[null,null,null,null,null,null,null,null,null,null,null,null,null,null,null,null,null,null,null,null,null,null,null,null,null,null,null,null,null,null,null,null,null,null,null,null,null,null,null,null,null,null,247,4.310963252425994,-1.8903125449256132E-4,-9.0054342848002283E-5,null,-5.0408334531349693E-5,-2.4014491426133942E-5]
[null,null,null,null,null,null,null,null,null,null,null,null,null,null,null,null,null,null,null,null,null,null,null,null,null,null,null,null,null,null,null,null,null,null,null,null,null,null,null,null,null,null,248,4.3284165449459371,-1.9040282787934681E-4,-8.6338016443767516E-5,null,-5.0774087434492486E-5,-2.3023471051671339E-5]
[null,null,null,null,null,null,null,null,null,null,null,null,null,null,null,null,null,null,null,null,null,null,null,null,null,null,null,null,null,null,null,null,null,null,null,null,null,null,null,null,null,null,249,4.3458698374658802,-1.9171640272028662E-4,-8.2595390643348823E-5,null,-5.1124374058743107E-5,-2.2025437504893021E-5]
[null,null,null,null,null,null,null,null,null,null,null,null,null,null,null,null,null,null,null,null,null,null,null,null,null,null,null,null,null,null,null,null,null,null,null,null,null,null,null,null,null,null,250,4.3633231299858233,-1.9297157888775935E-4,-7.8827605486820658E-5,null,-5.14590877034025E-5,-2.1020694796485511E-5]
[null,null,null,null,null,null,null,null,null,null,null,null,null,null,null,null,null,null,null,null,null,null,null,null,null,null,null,null,null,null,null,null,null,null,null,null,null,null,null,null,null,null,251,4.3807764225057673,-1.9416797404294526E-4,-7.5035808678040848E-5,null,-5.1778126411452071E-5,-2.0009548980810895E-5]
[null,null,null,null,null,null,null,null,null,null,null,null,null,null,null,null,null,null,null,null,null,null,null,null,null,null,null,null,null,null,null,null,null,null,null,null,null,null,null,null,null,null,252,4.3982297150257104,-1.9530522375229022E-4,-7.1221155235049697E-5,null,-5.2081393000610731E-5,-1.8992308062679919E-5]
[null,null,null,null,null,null,null,null,null,null,null,null,null,null,null,null,null,null,null,null,null,null,null,null,null,null,null,null,null,null,null,null,null,null,null,null,null,null,null,null,null,null,253,4.4156830075456535,-1.9638298159851603E-4,-6.7384807138239143E-5,null,-5.2368795092937619E-5,-1.796928190353044E-5]
[null,null,null,null,null,null,null,null,null,null,null,null,null,null,null,null,null,null,null,null,null,null,null,null,null,null,null,null,null,null,null,null,null,null,null,null,null,null,null,null,null,null,254,4.4331363000655974,-1.9740091928614238E-4,-6.3527932976402789E-5,null,-5.2640245142971309E-5,-1.6940782127040745E-5]
[null,null,null,null,null,null,null,null,null,null,null,null,null,null,null,null,null,null,null,null,null,null,null,null,null,null,null,null,null,null,null,null,null,null,null,null,null,null,null,null,null,null,255,4.4505895925855405,-1.9835872674148843E-4,-5.9651707590773113E-5,null,-5.2895660464396919E-5,-1.5907122024206164E-5]
[null,null,null,null,null,null,null,null,null,null,null,null,null,null,null,null,null,null,null,null,null,null,null,null,null,null,null,null,null,null,null,null,null,null,null,null,null,null,null,null,null,null,256,{"$f":"AQ271*PI()/180","v":4.4680428851054836},{"$f":"$AS$8+$AS$4*SIN(AR271)","v":-1.9925611220712492E-4},{"$f":"$AT$8+$AS$3*COS(AR271)","v":-5.5757311717152221E-5},null,{"$f":"$AS$7+$AT$4*SIN(AR271)","v":-5.3134963255233318E-5},{"$f":"$AT$7+$AT$3*COS(AR271)","v":-1.4868616457907259E-5}]
[null,null,null,null,null,null,null,null,null,null,null,null,null,null,null,null,null,null,null,null,null,null,null,null,null,null,null,null,null,null,null,null,null,null,null,null,null,null,null,null,null,null,257,4.4854961776254267,-2.0009280233074578E-4,-5.1845931626249082E-5,null,-5.3358080621532216E-5,-1.3825581766999755E-5]
[null,null,null,null,null,null,null,null,null,null,null,null,null,null,null,null,null,null,null,null,null,null,null,null,null,null,null,null,null,null,null,null,null,null,null,null,null,null,null,null,null,null,258,4.5029494701453698,-2.0086854224843424E-4,-4.7918758762329765E-5,null,-5.356494459958247E-5,-1.2778335669954604E-5]
[null,null,null,null,null,null,null,null,null,null,null,null,null,null,null,null,null,null,null,null,null,null,null,null,null,null,null,null,null,null,null,null,null,null,null,null,null,null,null,null,null,null,259,4.5204027626653129,-2.0158309566229655E-4,-4.3976989380292016E-5,null,-5.3755492176612416E-5,-1.1727197168077869E-5]
[null,null,null,null,null,null,null,null,null,null,null,null,null,null,null,null,null,null,null,null,null,null,null,null,null,null,null,null,null,null,null,null,null,null,null,null,null,null,null,null,null,null,260,4.5378560551852569,-2.0223624491244084E-4,-4.0021824181274154E-5,null,-5.3929665309984227E-5,-1.0672486448339774E-5]
[null,null,null,null,null,null,null,null,null,null,null,null,null,null,null,null,null,null,null,null,null,null,null,null,null,null,null,null,null,null,null,null,null,null,null,null,null,null,null,null,null,null,261,4.5553093477052,-2.0282779104327829E-4,-3.6054467946910764E-5,null,-5.4087410944874218E-5,-9.6145247858428702E-6]
[null,null,null,null,null,null,null,null,null,null,null,null,null,null,null,null,null,null,null,null,null,null,null,null,null,null,null,null,null,null,null,null,null,null,null,null,null,null,null,null,null,null,262,4.572762640225144,-2.0335755386412705E-4,-3.2076129172343072E-5,null,-5.4228681030433886E-5,-8.553634445958151E-6]
[null,null,null,null,null,null,null,null,null,null,null,null,null,null,null,null,null,null,null,null,null,null,null,null,null,null,null,null,null,null,null,null,null,null,null,null,null,null,null,null,null,null,263,4.5902159327450871,-2.0382537200409992E-4,-2.8088019698101239E-5,null,-5.4353432534426651E-5,-7.4901385861603303E-6]
[null,null,null,null,null,null,null,null,null,null,null,null,null,null,null,null,null,null,null,null,null,null,null,null,null,null,null,null,null,null,null,null,null,null,null,null,null,null,null,null,null,null,264,4.6076692252650302,-2.0423110296125964E-4,-2.4091354340964614E-5,null,-5.4461627456335905E-5,-6.4243611575905635E-6]
[null,null,null,null,null,null,null,null,null,null,null,null,null,null,null,null,null,null,null,null,null,null,null,null,null,null,null,null,null,null,null,null,null,null,null,null,null,null,null,null,null,null,265,4.6251225177849733,-2.0457462314602622E-4,-2.0087350523917535E-5,null,-5.4553232838940326E-5,-5.3566268063780093E-6]
[null,null,null,null,null,null,null,null,null,null,null,null,null,null,null,null,null,null,null,null,null,null,null,null,null,null,null,null,null,null,null,null,null,null,null,null,null,null,null,null,null,null,266,4.6425758103049164,-2.0485582791882363E-4,-1.6077227905310345E-5,null,-5.4628220778352976E-5,-4.2872607747494249E-6]
[null,null,null,null,null,null,null,null,null,null,null,null,null,null,null,null,null,null,null,null,null,null,null,null,null,null,null,null,null,null,null,null,null,null,null,null,null,null,null,null,null,null,267,4.6600291028248595,-2.0507463162195403E-4,-1.2062208007339588E-5,null,-5.4686568432521076E-5,-3.2165888019572236E-6]
[null,null,null,null,null,null,null,null,null,null,null,null,null,null,null,null,null,null,null,null,null,null,null,null,null,null,null,null,null,null,null,null,null,null,null,null,null,null,null,null,null,null,268,4.6774823953448026,-2.0523096760568978E-4,-8.0435138439605664E-6,null,-5.4728258028183952E-5,-2.144937025056151E-6]
[null,null,null,null,null,null,null,null,null,null,null,null,null,null,null,null,null,null,null,null,null,null,null,null,null,null,null,null,null,null,null,null,null,null,null,null,null,null,null,null,null,null,269,4.6949356878647466,-2.0532478824857587E-4,-4.0223695483451988E-6,null,-5.4753276866286905E-5,-1.0726318795587197E-6]
[null,null,null,null,null,null,null,null,null,null,null,null,null,null,null,null,null,null,null,null,null,null,null,null,null,null,null,null,null,null,null,null,null,null,null,null,null,null,null,null,null,null,270,4.7123889803846897,-2.0535606497193554E-4,-4.2355189139123014E-20,null,-5.4761617325849483E-5,-1.1294717103766137E-20]
[null,null,null,null,null,null,null,null,null,null,null,null,null,null,null,null,null,null,null,null,null,null,null,null,null,null,null,null,null,null,null,null,null,null,null,null,null,null,null,null,null,null,271,4.7298422729046328,-2.0532478824857587E-4,4.0223695483451141E-6,null,-5.4753276866286905E-5,1.072631879558697E-6]
[null,null,null,null,null,null,null,null,null,null,null,null,null,null,null,null,null,null,null,null,null,null,null,null,null,null,null,null,null,null,null,null,null,null,null,null,null,null,null,null,null,null,272,4.7472955654245768,-2.0523096760568981E-4,8.0435138439604817E-6,null,-5.4728258028183958E-5,2.1449370250561282E-6]
[null,null,null,null,null,null,null,null,null,null,null,null,null,null,null,null,null,null,null,null,null,null,null,null,null,null,null,null,null,null,null,null,null,null,null,null,null,null,null,null,null,null,273,4.7647488579445199,-2.0507463162195403E-4,1.2062208007339505E-5,null,-5.4686568432521076E-5,3.2165888019572012E-6]
[null,null,null,null,null,null,null,null,null,null,null,null,null,null,null,null,null,null,null,null,null,null,null,null,null,null,null,null,null,null,null,null,null,null,null,null,null,null,null,null,null,null,274,4.782202150464463,-2.0485582791882366E-4,1.607722790531026E-5,null,-5.4628220778352976E-5,4.2872607747494029E-6]
[null,null,null,null,null,null,null,null,null,null,null,null,null,null,null,null,null,null,null,null,null,null,null,null,null,null,null,null,null,null,null,null,null,null,null,null,null,null,null,null,null,null,275,4.7996554429844061,-2.0457462314602622E-4,2.0087350523917454E-5,null,-5.4553232838940326E-5,5.3566268063779873E-6]
[null,null,null,null,null,null,null,null,null,null,null,null,null,null,null,null,null,null,null,null,null,null,null,null,null,null,null,null,null,null,null,null,null,null,null,null,null,null,null,null,null,null,276,4.8171087355043491,-2.0423110296125964E-4,2.4091354340964526E-5,null,-5.4461627456335905E-5,6.4243611575905407E-6]
[null,null,null,null,null,null,null,null,null,null,null,null,null,null,null,null,null,null,null,null,null,null,null,null,null,null,null,null,null,null,null,null,null,null,null,null,null,null,null,null,null,null,277,4.8345620280242931,-2.038253720040999E-4,2.8088019698101358E-5,null,-5.4353432534426644E-5,7.4901385861603625E-6]
[null,null,null,null,null,null,null,null,null,null,null,null,null,null,null,null,null,null,null,null,null,null,null,null,null,null,null,null,null,null,null,null,null,null,null,null,null,null,null,null,null,null,278,4.8520153205442362,-2.0335755386412705E-4,3.2076129172343194E-5,null,-5.4228681030433886E-5,8.5536344459581832E-6]
[null,null,null,null,null,null,null,null,null,null,null,null,null,null,null,null,null,null,null,null,null,null,null,null,null,null,null,null,null,null,null,null,null,null,null,null,null,null,null,null,null,null,279,4.8694686130641793,-2.0282779104327831E-4,3.6054467946910676E-5,null,-5.4087410944874218E-5,9.6145247858428482E-6]
[null,null,null,null,null,null,null,null,null,null,null,null,null,null,null,null,null,null,null,null,null,null,null,null,null,null,null,null,null,null,null,null,null,null,null,null,null,null,null,null,null,null,280,4.8869219055841224,-2.0223624491244087E-4,4.0021824181274073E-5,null,-5.3929665309984234E-5,1.0672486448339752E-5]
[null,null,null,null,null,null,null,null,null,null,null,null,null,null,null,null,null,null,null,null,null,null,null,null,null,null,null,null,null,null,null,null,null,null,null,null,null,null,null,null,null,null,281,4.9043751981040655,-2.0158309566229658E-4,4.3976989380291731E-5,null,-5.375549217661243E-5,1.1727197168077795E-5]
[null,null,null,null,null,null,null,null,null,null,null,null,null,null,null,null,null,null,null,null,null,null,null,null,null,null,null,null,null,null,null,null,null,null,null,null,null,null,null,null,null,null,282,4.9218284906240086,-2.0086854224843429E-4,4.7918758762329488E-5,null,-5.3564944599582483E-5,1.277833566995453E-5]
[null,null,null,null,null,null,null,null,null,null,null,null,null,null,null,null,null,null,null,null,null,null,null,null,null,null,null,null,null,null,null,null,null,null,null,null,null,null,null,null,null,null,283,4.9392817831439526,-2.0009280233074581E-4,5.1845931626249008E-5,null,-5.3358080621532223E-5,1.3825581766999735E-5]
[null,null,null,null,null,null,null,null,null,null,null,null,null,null,null,null,null,null,null,null,null,null,null,null,null,null,null,null,null,null,null,null,null,null,null,null,null,null,null,null,null,null,284,4.9567350756638957,-1.9925611220712494E-4,5.5757311717152146E-5,null,-5.3134963255233325E-5,1.4868616457907238E-5]
[null,null,null,null,null,null,null,null,null,null,null,null,null,null,null,null,null,null,null,null,null,null,null,null,null,null,null,null,null,null,null,null,null,null,null,null,null,null,null,null,null,null,285,4.9741883681838397,-1.983587267414884E-4,5.9651707590773228E-5,null,-5.2895660464396913E-5,1.5907122024206195E-5]
[null,null,null,null,null,null,null,null,null,null,null,null,null,null,null,null,null,null,null,null,null,null,null,null,null,null,null,null,null,null,null,null,null,null,null,null,null,null,null,null,null,null,286,4.9916416607037828,-1.9740091928614233E-4,6.3527932976402911E-5,null,-5.2640245142971295E-5,1.6940782127040776E-5]
[null,null,null,null,null,null,null,null,null,null,null,null,null,null,null,null,null,null,null,null,null,null,null,null,null,null,null,null,null,null,null,null,null,null,null,null,null,null,null,null,null,null,287,5.0090949532237259,-1.9638298159851606E-4,6.7384807138239062E-5,null,-5.2368795092937626E-5,1.7969281903530416E-5]
[null,null,null,null,null,null,null,null,null,null,null,null,null,null,null,null,null,null,null,null,null,null,null,null,null,null,null,null,null,null,null,null,null,null,null,null,null,null,null,null,null,null,288,5.026548245743669,-1.9530522375229024E-4,7.1221155235049629E-5,null,-5.2081393000610738E-5,1.8992308062679899E-5]
[null,null,null,null,null,null,null,null,null,null,null,null,null,null,null,null,null,null,null,null,null,null,null,null,null,null,null,null,null,null,null,null,null,null,null,null,null,null,null,null,null,null,289,5.0440015382636121,-1.9416797404294529E-4,7.503580867804078E-5,null,-5.1778126411452078E-5,2.0009548980810875E-5]
[null,null,null,null,null,null,null,null,null,null,null,null,null,null,null,null,null,null,null,null,null,null,null,null,null,null,null,null,null,null,null,null,null,null,null,null,null,null,null,null,null,null,290,5.0614548307835552,-1.929715788877594E-4,7.8827605486820387E-5,null,-5.145908770340252E-5,2.1020694796485437E-5]
[null,null,null,null,null,null,null,null,null,null,null,null,null,null,null,null,null,null,null,null,null,null,null,null,null,null,null,null,null,null,null,null,null,null,null,null,null,null,null,null,null,null,291,5.0789081233034983,-1.9171640272028673E-4,8.2595390643348552E-5,null,-5.1124374058743128E-5,2.2025437504892947E-5]
[null,null,null,null,null,null,null,null,null,null,null,null,null,null,null,null,null,null,null,null,null,null,null,null,null,null,null,null,null,null,null,null,null,null,null,null,null,null,null,null,null,null,292,5.0963614158234423,-1.9040282787934683E-4,8.6338016443767435E-5,null,-5.0774087434492493E-5,2.3023471051671315E-5]
[null,null,null,null,null,null,null,null,null,null,null,null,null,null,null,null,null,null,null,null,null,null,null,null,null,null,null,null,null,null,null,null,null,null,null,null,null,null,null,null,null,null,293,5.1138147083433854,-1.8903125449256137E-4,9.0054342848002215E-5,null,-5.0408334531349707E-5,2.4014491426133921E-5]
[null,null,null,null,null,null,null,null,null,null,null,null,null,null,null,null,null,null,null,null,null,null,null,null,null,null,null,null,null,null,null,null,null,null,null,null,null,null,null,null,null,null,294,5.1312680008633293,-1.8760210035447051E-4,9.3743237827029649E-5,null,-5.002722676119214E-5,2.4998196753874573E-5]
[null,null,null,null,null,null,null,null,null,null,null,null,null,null,null,null,null,null,null,null,null,null,null,null,null,null,null,null,null,null,null,null,null,null,null,null,null,null,null,null,null,null,295,5.1487212933832724,-1.8611580079926939E-4,9.7403577707703672E-5,null,-4.9630880213138512E-5,2.5974287388720978E-5]
[null,null,null,null,null,null,null,null,null,null,null,null,null,null,null,null,null,null,null,null,null,null,null,null,null,null,null,null,null,null,null,null,null,null,null,null,null,null,null,null,null,null,296,5.1661745859032155,-1.8457280856820057E-4,1.0103424751503827E-4,null,-4.921941561818683E-5,2.6942466004010205E-5]
[null,null,null,null,null,null,null,null,null,null,null,null,null,null,null,null,null,null,null,null,null,null,null,null,null,null,null,null,null,null,null,null,null,null,null,null,null,null,null,null,null,null,297,5.1836278784231586,-1.8297359367164492E-4,1.0463414131183906E-4,null,-4.8792958312438657E-5,2.7902437683157083E-5]
[null,null,null,null,null,null,null,null,null,null,null,null,null,null,null,null,null,null,null,null,null,null,null,null,null,null,null,null,null,null,null,null,null,null,null,null,null,null,null,null,null,null,298,5.2010811709431017,-1.8131864324595192E-4,1.0820216253558257E-4,null,-4.8351638198920514E-5,2.8853910009488686E-5]
[null,null,null,null,null,null,null,null,null,null,null,null,null,null,null,null,null,null,null,null,null,null,null,null,null,null,null,null,null,null,null,null,null,null,null,null,null,null,null,null,null,null,299,5.2185344634630448,-1.7960846140505305E-4,1.1173722433243988E-4,null,-4.7895589708014152E-5,2.97965931553173E-5]
[null,null,null,null,null,null,null,null,null,null,null,null,null,null,null,null,null,null,null,null,null,null,null,null,null,null,null,null,null,null,null,null,null,null,null,null,null,null,null,null,null,null,300,5.2359877559829888,-1.7784356908690389E-4,1.152382498883429E-4,null,-4.7424951756507704E-5,3.0730199970224772E-5]
[null,null,null,null,null,null,null,null,null,null,null,null,null,null,null,null,null,null,null,null,null,null,null,null,null,null,null,null,null,null,null,null,null,null,null,null,null,null,null,null,null,null,301,5.2534410485029319,-1.7602450389480158E-4,1.1870417275699176E-4,null,-4.6939867705280429E-5,3.1654446068531131E-5]
[null,null,null,null,null,null,null,null,null,null,null,null,null,null,null,null,null,null,null,null,null,null,null,null,null,null,null,null,null,null,null,null,null,null,null,null,null,null,null,null,null,null,302,5.270894341022875,-1.741518199336253E-4,1.2213393718470567E-4,null,-4.6440485315633413E-5,3.2569049915921514E-5]
[null,null,null,null,null,null,null,null,null,null,null,null,null,null,null,null,null,null,null,null,null,null,null,null,null,null,null,null,null,null,null,null,null,null,null,null,null,null,null,null,null,null,303,5.2883476335428181,-1.7222608764105063E-4,1.2552649843201513E-4,null,-4.5926956704280169E-5,3.3473732915204034E-5]
[null,null,null,null,null,null,null,null,null,null,null,null,null,null,null,null,null,null,null,null,null,null,null,null,null,null,null,null,null,null,null,null,null,null,null,null,null,null,null,null,null,null,304,5.3058009260627612,-1.7024789361378895E-4,1.288808230918997E-4,null,-4.539943829701039E-5,3.436821949117325E-5]
[null,null,null,null,null,null,null,null,null,null,null,null,null,null,null,null,null,null,null,null,null,null,null,null,null,null,null,null,null,null,null,null,null,null,null,null,null,null,null,null,null,null,305,5.3232542185827052,-1.6821784042890401E-4,1.3219588940457407E-4,null,-4.4858090781041074E-5,3.5252237174553083E-5]
[null,null,null,null,null,null,null,null,null,null,null,null,null,null,null,null,null,null,null,null,null,null,null,null,null,null,null,null,null,null,null,null,null,null,null,null,null,null,null,null,null,null,306,5.3407075111026483,-1.6613654646026175E-4,1.3547068756872532E-4,null,-4.4303079056069802E-5,3.6125516684993412E-5]
[null,null,null,null,null,null,null,null,null,null,null,null,null,null,null,null,null,null,null,null,null,null,null,null,null,null,null,null,null,null,null,null,null,null,null,null,null,null,null,null,null,null,307,5.3581608036225914,-1.6400464569016679E-4,1.3870422004910911E-4,null,-4.3734572184044481E-5,3.6987792013095756E-5]
[null,null,null,null,null,null,null,null,null,null,null,null,null,null,null,null,null,null,null,null,null,null,null,null,null,null,null,null,null,null,null,null,null,null,null,null,null,null,null,null,null,null,308,5.3756140961425354,-1.6182278751624584E-4,1.4189550188040815E-4,null,-4.3152743337665566E-5,3.7838800501442171E-5]
[null,null,null,null,null,null,null,null,null,null,null,null,null,null,null,null,null,null,null,null,null,null,null,null,null,null,null,null,null,null,null,null,null,null,null,null,null,null,null,null,null,null,309,5.3930673886624785,-1.59591636553635E-4,1.4504356096726166E-4,null,-4.2557769747636006E-5,3.8678282924603109E-5]
[null,null,null,null,null,null,null,null,null,null,null,null,null,null,null,null,null,null,null,null,null,null,null,null,null,null,null,null,null,null,null,null,null,null,null,null,null,null,null,null,null,null,310,5.4105206811824216,-1.5731187243253104E-4,1.4814743838037603E-4,null,-4.1949832648674952E-5,3.9505983568100272E-5]
[null,null,null,null,null,null,null,null,null,null,null,null,null,null,null,null,null,null,null,null,null,null,null,null,null,null,null,null,null,null,null,null,null,null,null,null,null,null,null,null,null,null,311,5.4279739737023647,-1.5498418959116982E-4,1.5120618864862325E-4,null,-4.1329117224311953E-5,4.0321650306299535E-5]
[null,null,null,null,null,null,null,null,null,null,null,null,null,null,null,null,null,null,null,null,null,null,null,null,null,null,null,null,null,null,null,null,null,null,null,null,null,null,null,null,null,null,312,5.4454272662223078,-1.5260929706429355E-4,1.5421888004704088E-4,null,-4.069581255047828E-5,4.1125034679210902E-5]
[null,null,null,null,null,null,null,null,null,null,null,null,null,null,null,null,null,null,null,null,null,null,null,null,null,null,null,null,null,null,null,null,null,null,null,null,null,null,null,null,null,null,313,5.4628805587422509,-1.5018791826717205E-4,1.5718459488064438E-4,null,-4.005011153791255E-5,4.191589196817183E-5]
[null,null,null,null,null,null,null,null,null,null,null,null,null,null,null,null,null,null,null,null,null,null,null,null,null,null,null,null,null,null,null,null,null,null,null,null,null,null,null,null,null,null,314,5.480333851262194,-1.477207907752433E-4,1.6010242976396581E-4,null,-3.9392210873398216E-5,4.2693981270390884E-5]
[null,null,null,null,null,null,null,null,null,null,null,null,null,null,null,null,null,null,null,null,null,null,null,null,null,null,null,null,null,null,null,null,null,null,null,null,null,null,null,null,null,null,315,5.497787143782138,-1.452086660994409E-4,1.6297149589623424E-4,null,-3.8722310959850906E-5,4.3459065572329134E-5]
[null,null,null,null,null,null,null,null,null,null,null,null,null,null,null,null,null,null,null,null,null,null,null,null,null,null,null,null,null,null,null,null,null,null,null,null,null,null,null,null,null,null,316,5.5152404363020811,-1.4265230945727678E-4,1.6579091933211222E-4,null,-3.8040615855273809E-5,4.4210911821896591E-5]
[null,null,null,null,null,null,null,null,null,null,null,null,null,null,null,null,null,null,null,null,null,null,null,null,null,null,null,null,null,null,null,null,null,null,null,null,null,null,null,null,null,null,317,5.532693728822025,-1.4005249953974788E-4,1.6855984124790907E-4,null,-3.7347333210599439E-5,4.4949290999442424E-5]
[null,null,null,null,null,null,null,null,null,null,null,null,null,null,null,null,null,null,null,null,null,null,null,null,null,null,null,null,null,null,null,null,null,null,null,null,null,null,null,null,null,null,318,5.5501470213419681,-1.374100282741403E-4,1.7127741820318582E-4,null,-3.6642674206437416E-5,4.5673978187516218E-5]
[null,null,null,null,null,null,null,null,null,null,null,null,null,null,null,null,null,null,null,null,null,null,null,null,null,null,null,null,null,null,null,null,null,null,null,null,null,null,null,null,null,null,319,5.5676003138619112,-1.3472570058279957E-4,1.7394282239767628E-4,null,-3.5926853488746557E-5,4.6384752639380339E-5]
[null,null,null,null,null,null,null,null,null,null,null,null,null,null,null,null,null,null,null,null,null,null,null,null,null,null,null,null,null,null,null,null,null,null,null,null,null,null,null,null,null,null,320,{"$f":"AQ335*PI()/180","v":5.5850536063818543},{"$f":"$AS$8+$AS$4*SIN(AR335)","v":-1.3200033413794416E-4},{"$f":"$AT$8+$AS$3*COS(AR335)","v":1.7655524192344244E-4},null,{"$f":"$AS$7+$AT$4*SIN(AR335)","v":-3.5200089103451778E-5},{"$f":"$AT$7+$AT$3*COS(AR335)","v":4.7081397846251317E-5}]
[null,null,null,null,null,null,null,null,null,null,null,null,null,null,null,null,null,null,null,null,null,null,null,null,null,null,null,null,null,null,null,null,null,null,null,null,null,null,null,null,null,null,321,5.6025068989017974,-1.2923475911259439E-4,1.7911388101218969E-4,null,-3.4462602430025173E-5,4.7763701603250584E-5]
[null,null,null,null,null,null,null,null,null,null,null,null,null,null,null,null,null,null,null,null,null,null,null,null,null,null,null,null,null,null,null,null,null,null,null,null,null,null,null,null,null,null,322,5.6199601914217405,-1.2642981792769368E-4,1.8161796027766554E-4,null,-3.3714618114051651E-5,4.8431456074044142E-5]
[null,null,null,null,null,null,null,null,null,null,null,null,null,null,null,null,null,null,null,null,null,null,null,null,null,null,null,null,null,null,null,null,null,null,null,null,null,null,null,null,null,null,323,5.6374134839416845,-1.235863649954989E-4,1.8406671695306819E-4,null,-3.2956363998799717E-5,4.9084457854151517E-5]
[null,null,null,null,null,null,null,null,null,null,null,null,null,null,null,null,null,null,null,null,null,null,null,null,null,null,null,null,null,null,null,null,null,null,null,null,null,null,null,null,null,null,324,5.6548667764616276,-1.2070526645931868E-4,1.8645940512339253E-4,null,-3.2188071055818318E-5,4.9722508032904674E-5]
[null,null,null,null,null,null,null,null,null,null,null,null,null,null,null,null,null,null,null,null,null,null,null,null,null,null,null,null,null,null,null,null,null,null,null,null,null,null,null,null,null,null,325,5.6723200689815707,-1.1778739992967675E-4,1.8879529595264343E-4,null,-3.1409973314580473E-5,5.0345412254038246E-5]
[null,null,null,null,null,null,null,null,null,null,null,null,null,null,null,null,null,null,null,null,null,null,null,null,null,null,null,null,null,null,null,null,null,null,null,null,null,null,null,null,null,null,326,5.6897733615015138,-1.1483365421698407E-4,1.9107367790584609E-4,null,-3.0622307791195755E-5,5.0952980774892286E-5]
[null,null,null,null,null,null,null,null,null,null,null,null,null,null,null,null,null,null,null,null,null,null,null,null,null,null,null,null,null,null,null,null,null,null,null,null,null,null,null,null,null,null,327,5.7072266540214578,-1.1184492906079815E-4,1.9329385696578643E-4,null,-2.9825314416212843E-5,5.1545028524209716E-5]
[null,null,null,null,null,null,null,null,null,null,null,null,null,null,null,null,null,null,null,null,null,null,null,null,null,null,null,null,null,null,null,null,null,null,null,null,null,null,null,null,null,null,328,5.7246799465414,-1.0882213485575449E-4,1.9545515684441515E-4,null,-2.9019235961534533E-5,5.2121375158510707E-5]
[null,null,null,null,null,null,null,null,null,null,null,null,null,null,null,null,null,null,null,null,null,null,null,null,null,null,null,null,null,null,null,null,null,null,null,null,null,null,null,null,null,null,329,5.742133239061344,-1.0576619237424975E-4,1.9755691918885265E-4,null,-2.8204317966466602E-5,5.2681845117027377E-5]
[null,null,null,null,null,null,null,null,null,null,null,null,null,null,null,null,null,null,null,null,null,null,null,null,null,null,null,null,null,null,null,null,null,null,null,null,null,null,null,null,null,null,330,5.7595865315812871,-1.0267803248596786E-4,1.9959850378192828E-4,null,-2.7380808662924765E-5,5.3226267675180877E-5]
[null,null,null,null,null,null,null,null,null,null,null,null,null,null,null,null,null,null,null,null,null,null,null,null,null,null,null,null,null,null,null,null,null,null,null,null,null,null,null,null,null,null,331,5.7770398241012311,-9.9558595874326157E-5,2.015792887371979E-4,null,-2.6548958899820309E-5,5.375447699658611E-5]
[null,null,null,null,null,null,null,null,null,null,null,null,null,null,null,null,null,null,null,null,null,null,null,null,null,null,null,null,null,null,null,null,null,null,null,null,null,null,null,null,null,null,332,5.7944931166211742,-9.6408832749935513E-5,2.0349867068837567E-4,null,-2.5709022066649473E-5,5.4266312183566844E-5]
[null,null,null,null,null,null,null,null,null,null,null,null,null,null,null,null,null,null,null,null,null,null,null,null,null,null,null,null,null,null,null,null,null,null,null,null,null,null,null,null,null,null,333,5.8119464091411173,-9.3229702561155897E-5,2.0535606497312588E-4,null,-2.486125401630824E-5,5.4761617326166903E-5]
[null,null,null,null,null,null,null,null,null,null,null,null,null,null,null,null,null,null,null,null,null,null,null,null,null,null,null,null,null,null,null,null,null,null,null,null,null,null,null,null,null,null,334,5.8293997016610613,-9.0022173701839587E-5,2.0715090581115646E-4,null,-2.4005912987157228E-5,5.5240241549641725E-5]
[null,null,null,null,null,null,null,null,null,null,null,null,null,null,null,null,null,null,null,null,null,null,null,null,null,null,null,null,null,null,null,null,null,null,null,null,null,null,null,null,null,null,335,5.8468529941810035,-8.6787223216349641E-5,2.0888264647656095E-4,null,-2.3143259524359907E-5,5.5702039060416254E-5]
[null,null,null,null,null,null,null,null,null,null,null,null,null,null,null,null,null,null,null,null,null,null,null,null,null,null,null,null,null,null,null,null,null,null,null,null,null,null,null,null,null,null,336,5.8643062867009474,-8.3525836501940968E-5,2.105507594643572E-4,null,-2.2273556400517594E-5,5.6146869190495255E-5]
[null,null,null,null,null,null,null,null,null,null,null,null,null,null,null,null,null,null,null,null,null,null,null,null,null,null,null,null,null,null,null,null,null,null,null,null,null,null,null,null,null,null,337,5.8817595792208897,-8.0239007008601194E-5,2.1215473665116941E-4,null,-2.1397068535626988E-5,5.6574596440311844E-5]
[null,null,null,null,null,null,null,null,null,null,null,null,null,null,null,null,null,null,null,null,null,null,null,null,null,null,null,null,null,null,null,null,null,null,null,null,null,null,null,null,null,null,338,5.8992128717408336,-7.6927735936433529E-5,2.1369408945000879E-4,null,-2.0514062916382279E-5,5.6985090520002339E-5]
[null,null,null,null,null,null,null,null,null,null,null,null,null,null,null,null,null,null,null,null,null,null,null,null,null,null,null,null,null,null,null,null,null,null,null,null,null,null,null,null,null,null,339,5.9166661642607767,-7.3593031930684101E-5,2.1516834895910045E-4,null,-1.9624808514849096E-5,5.7378226389093451E-5]
[null,null,null,null,null,null,null,null,null,null,null,null,null,null,null,null,null,null,null,null,null,null,null,null,null,null,null,null,null,null,null,null,null,null,null,null,null,null,null,null,null,null,340,5.9341194567807207,-7.0235910774496708E-5,2.1657706610471667E-4,null,-1.8729576206532456E-5,5.7753884294591112E-5]
[null,null,null,null,null,null,null,null,null,null,null,null,null,null,null,null,null,null,null,null,null,null,null,null,null,null,null,null,null,null,null,null,null,null,null,null,null,null,null,null,null,null,341,5.9515727493006629,-6.685739507949718E-5,2.179198117779681E-4,null,-1.7828638687865917E-5,5.8111949807458154E-5]
[null,null,null,null,null,null,null,null,null,null,null,null,null,null,null,null,null,null,null,null,null,null,null,null,null,null,null,null,null,null,null,null,null,null,null,null,null,null,null,null,null,null,342,5.9690260418206069,-6.345851397429398E-5,2.1919617696551546E-4,null,-1.6922270393145064E-5,5.845231385747079E-5]
[null,null,null,null,null,null,null,null,null,null,null,null,null,null,null,null,null,null,null,null,null,null,null,null,null,null,null,null,null,null,null,null,null,null,null,null,null,null,null,null,null,null,343,5.9864793343405509,-6.0040302790997781E-5,2.2040577287415811E-4,null,-1.6010747410932743E-5,5.8774872766442162E-5]
[null,null,null,null,null,null,null,null,null,null,null,null,null,null,null,null,null,null,null,null,null,null,null,null,null,null,null,null,null,null,null,null,null,null,null,null,null,null,null,null,null,null,344,6.0039326268604931,-5.6603802749848318E-5,2.2154823104926445E-4,null,-1.5094347399959553E-5,5.9079528279803855E-5]
[null,null,null,null,null,null,null,null,null,null,null,null,null,null,null,null,null,null,null,null,null,null,null,null,null,null,null,null,null,null,null,null,null,null,null,null,null,null,null,null,null,null,345,6.0213859193804371,-5.3150060642047554E-5,2.2262320348700744E-4,null,-1.4173349504546015E-5,5.9366187596535318E-5]
[null,null,null,null,null,null,null,null,null,null,null,null,null,null,null,null,null,null,null,null,null,null,null,null,null,null,null,null,null,null,null,null,null,null,null,null,null,null,null,null,null,null,346,6.0388392119003802,-4.96801285108992E-5,2.2363036274036883E-4,null,-1.3248034269573122E-5,5.9634763397431687E-5]
[null,null,null,null,null,null,null,null,null,null,null,null,null,null,null,null,null,null,null,null,null,null,null,null,null,null,null,null,null,null,null,null,null,null,null,null,null,null,null,null,null,null,347,6.0562925044203233,-4.6195063331344211E-5,2.2456940201888353E-4,null,-1.2318683555025125E-5,5.9885173871702274E-5]
[null,null,null,null,null,null,null,null,null,null,null,null,null,null,null,null,null,null,null,null,null,null,null,null,null,null,null,null,null,null,null,null,null,null,null,null,null,null,null,null,null,null,348,6.0737457969402664,-4.269592668799687E-5,2.2544003528209063E-4,null,-1.13855804501325E-5,6.0117342741890838E-5]
[null,null,null,null,null,null,null,null,null,null,null,null,null,null,null,null,null,null,null,null,null,null,null,null,null,null,null,null,null,null,null,null,null,null,null,null,null,null,null,null,null,null,349,6.0911990894602104,-3.9183784451775457E-5,2.2624199732666417E-4,null,-1.0449009187140123E-5,6.033119928711045E-5]
[null,null,null,null,null,null,null,null,null,null,null,null,null,null,null,null,null,null,null,null,null,null,null,null,null,null,null,null,null,null,null,null,null,null,null,null,null,null,null,null,null,null,350,6.1086523819801526,-3.5659706455228543E-5,2.2697504386719652E-4,null,-9.5092550547276127E-6,6.0526678364585739E-5]
[null,null,null,null,null,null,null,null,null,null,null,null,null,null,null,null,null,null,null,null,null,null,null,null,null,null,null,null,null,null,null,null,null,null,null,null,null,null,null,null,null,null,351,6.1261056745000966,-3.2124766166651681E-5,2.2763895161061036E-4,null,-8.5666043111071153E-6,6.0703720429496093E-5]
[null,null,null,null,null,null,null,null,null,null,null,null,null,null,null,null,null,null,null,null,null,null,null,null,null,null,null,null,null,null,null,null,null,null,null,null,null,null,null,null,null,null,352,6.1435589670200397,-2.8580040363101032E-5,2.2823351832417554E-4,null,-7.6213440968269431E-6,6.0862271553113472E-5]
[null,null,null,null,null,null,null,null,null,null,null,null,null,null,null,null,null,null,null,null,null,null,null,null,null,null,null,null,null,null,null,null,null,null,null,null,null,null,null,null,null,null,353,6.1610122595399828,-2.5026608802394721E-5,2.2875856289711143E-4,null,-6.6737623473052591E-6,6.1002283439229718E-5]
[null,null,null,null,null,null,null,null,null,null,null,null,null,null,null,null,null,null,null,null,null,null,null,null,null,null,null,null,null,null,null,null,null,null,null,null,null,null,null,null,null,null,354,6.1784655520599268,-2.1465553894208811E-5,2.2921392539575493E-4,null,-5.7241477051223502E-6,6.1123713438867978E-5]
[null,null,null,null,null,null,null,null,null,null,null,null,null,null,null,null,null,null,null,null,null,null,null,null,null,null,null,null,null,null,null,null,null,null,null,null,null,null,null,null,null,null,355,6.1959188445798699,-1.7897960370365421E-5,2.2959946711227771E-4,null,-4.7727894320974461E-6,6.1226524563274057E-5]
[null,null,null,null,null,null,null,null,null,null,null,null,null,null,null,null,null,null,null,null,null,null,null,null,null,null,null,null,null,null,null,null,null,null,null,null,null,null,null,null,null,null,356,6.2133721370998138,-1.4324914954411599E-5,2.2991507060693813E-4,null,-3.8199773211764269E-6,6.1310685495183492E-5]
[null,null,null,null,null,null,null,null,null,null,null,null,null,null,null,null,null,null,null,null,null,null,null,null,null,null,null,null,null,null,null,null,null,null,null,null,null,null,null,null,null,null,357,6.2308254296197561,-1.0747506030594459E-5,2.3016063974385433E-4,null,-2.8660016081585227E-6,6.1376170598361152E-5]
[null,null,null,null,null,null,null,null,null,null,null,null,null,null,null,null,null,null,null,null,null,null,null,null,null,null,null,null,null,null,null,null,null,null,null,null,null,null,null,null,null,null,358,6.2482787221397,-7.1668233123266087E-6,2.3033609972028841E-4,null,-1.9111528832870962E-6,6.1422959925410247E-5]
[null,null,null,null,null,null,null,null,null,null,null,null,null,null,null,null,null,null,null,null,null,null,null,null,null,null,null,null,null,null,null,null,null,null,null,null,null,null,null,null,null,null,359,6.2657320146596422,-3.5839575102516113E-6,2.3044139708943177E-4,null,-9.5572200273376304E-7,6.1451039223848472E-5]

{"sheet":"Sheet1","index":2,"n_rows":0,"n_cols":0,"rows_kept":0,"cut":false,"hidden":true,"merged":[]}